Service Area Categorisation,Service Division Categorisation,Responsible Unit,Expenses Type,Expenses Sub-Type,Detailed Expenses Type,Date,Transaction Number,Amount,Capital/Revenue,Supplier Name
CS -Oth Operating Inc & Expend,TAXATION AND NON-SPECIFIC GRAN,Payroll Contingency,Corporate Items,,Expenditure,20110401,1,"434,247.46",Revenue,NEWSCHOOLS (MERTON) LIMITED
Childrens & Education Services,Assuring Access To Schools,PFI Unitary Charges,Third Party Payments,Private Contractors,Contract Payments,20110401,2,"2,959,649.94",Revenue,NEWSCHOOLS (MERTON) LIMITED
Childrens & Education Services,Schools Strategic Management,Head of Special Educatn Needs,Oth Grants Reimbmnts/Contribs,Rev Inc to fund joint projects,Miscellaneous Contributions X,20110401,3,"70,000.00",Revenue,CRICKET GREEN SCHOOL
,No FE Detail,Tiffin Boys,Fund Balances,,Other Deductions,20110401,4,"98,591.15",Revenue,THE COLLECTOR OF TAXES
,No FE Detail,Ursuline  - Payroll Contract,Fund Balances,,Other Deductions,20110401,5,"116,884.69",Revenue,THE COLLECTOR OF TAXES
,No FE Detail,Payroll Summary Account,Fund Balances,Funded by Other grants & contr,Extl Payees Monthly,20110401,6,"3,416,660.96",Revenue,THE COLLECTOR OF TAXES
CS -Oth Operating Inc & Expend,Trading A/c Surpluses/Deficits,Transport-Operations,Transport Related Expenditure,Contract Hire and Op Leasing,Vehicle Hire for LB Sutton,20110408,7,"1,086.00",Revenue,KINGSTON TOWN CARS
CS -Oth Operating Inc & Expend,Trading A/c Surpluses/Deficits,Transport-Operations,Transport Related Expenditure,Contract Hire and Op Leasing,Mini Cab Hire -Soc Serv -Adult,20110408,8,"1,870.00",Revenue,KINGSTON TOWN CARS
CS -Oth Operating Inc & Expend,Trading A/c Surpluses/Deficits,Transport-Operations,Transport Related Expenditure,Contract Hire and Op Leasing,Mini Cab Hire -Soc Serv -Child,20110408,9,"2,111.00",Revenue,KINGSTON TOWN CARS
CS -Oth Operating Inc & Expend,Trading A/c Surpluses/Deficits,Transport-Operations,Transport Related Expenditure,Contract Hire and Op Leasing,Vehicle Hire Special Projects,20110408,10,"2,158.00",Revenue,KINGSTON TOWN CARS
CS -Oth Operating Inc & Expend,Trading A/c Surpluses/Deficits,Transport-Operations,Transport Related Expenditure,Contract Hire and Op Leasing,Mini Cab Hire for Education,20110408,11,"14,170.00",Revenue,KINGSTON TOWN CARS
Adult Social Care,Adlt u65 Learning Disabilities,LD Direct Payment Scheme,Third Party Payments,Private Contractors,Direct Payments,20110401,12,617.15,Revenue,REDACTED
Adult Social Care,Adlt u65 Learning Disabilities,LD Direct Payment Scheme,Third Party Payments,Private Contractors,Direct Payments,20110404,13,"1,552.15",Revenue,REDACTED
Adult Social Care,Adlt u65 Learning Disabilities,LD Direct Payment Scheme,Third Party Payments,Private Contractors,Direct Payments,20110404,14,"1,356.90",Revenue,REDACTED
Adult Social Care,Adlt u65 Learning Disabilities,LD Direct Payment Scheme,Third Party Payments,Private Contractors,Direct Payments,20110404,15,"1,278.00",Revenue,REDACTED
Childrens & Education Services,Other Ch's & Family Services,CL Setting Up Home Allowance,Third Party Payments,Private Contractors,Miscellaneous Agency Services,20110406,16,"1,390.16",Revenue,REDACTED
Housing Services,Homelessness,Homelessness Prevention,Transfer Payments,Housing Benefits,Rent Deposits,20110406,17,"1,300.00",Revenue,CAPITOL HOMES MANAGEMENT LTD
Central Services,Fully rechargeable Overheads,Legal Services,Supplies and Services,,Court Fees,20110405,18,"2,225.00",Revenue,REDACTED
,No FE Detail,Bldng Sub-Cntrctrs Tax Acc,Fund Balances,,Payments X,20110406,19,"4,151.80",Revenue,HM REVENUE & CUSTOMS
Adult Social Care,Older People 65&Over inc OP-MH,OP West - Home Care External,Third Party Payments,Private Contractors,Miscellaneous Agency Services,20110406,20,"2,268.85",Revenue,COMPASSIONATE CARING AGENCY UK
Childrens & Education Services,Other Ch's & Family Services,CL Setting Up Home Allowance,Third Party Payments,Private Contractors,Miscellaneous Agency Services,20110406,21,"1,883.60",Revenue,REDACTED
Housing Services,Homelessness,Homelessness Prevention,Transfer Payments,Housing Benefits,Rent Deposits,20110407,22,"1,047.11",Revenue,REDACTED
Housing Services,Homelessness,Homelessness Prevention,Transfer Payments,Housing Benefits,Rent Deposits,20110407,23,749.98,Revenue,REDACTED
Housing Services,Homelessness,Homelessness Prevention,Transfer Payments,Housing Benefits,Rent Deposits,20110407,24,"1,499.99",Revenue,UNIVERSAL ESTATES
Housing Services,Homelessness,Homelessness Prevention,Transfer Payments,Housing Benefits,Rent Deposits,20110408,25,900.00,Revenue,DRURY & COLE
Housing Services,Homelessness,Homelessness Prevention,Transfer Payments,Housing Benefits,Rent Deposits,20110412,26,"1,213.34",Revenue,REDACTED
Childrens & Education Services,Pre-School Ed (inc Nursery),E.Years-Intergenerational Cntr,Employees,Direct Employee Expenses,Agency Staff & Casual Paymts,20110412,27,"1,646.40",Revenue,REDACTED
Childrens & Education Services,Other Ch's & Family Services,CL Setting Up Home Allowance,Third Party Payments,Private Contractors,Miscellaneous Agency Services,20110413,28,655.16,Revenue,REDACTED
,No FE Detail,Ursuline  - Payroll Contract,Fund Balances,,Other Deductions,20110413,29,"55,459.82",Revenue,TEACHERS PENSIONS AGENCY
,No FE Detail,Wimbledon College,Fund Balances,Funded by Other grants & contr,Extl Payees Monthly,20110413,30,"59,737.20",Revenue,TEACHERS PENSIONS AGENCY
,No FE Detail,Payroll Summary Account,Fund Balances,Funded by Other grants & contr,Extl Payees Monthly,20110413,31,"720,597.05",Revenue,TEACHERS PENSIONS AGENCY
Housing Services,Homelessness,Homelessness Prevention,Transfer Payments,Housing Benefits,Rent Deposits,20110413,32,800.00,Revenue,REDACTED
Childrens & Education Services,Pre-School Ed (inc Nursery),GSSG Workforce Development,Supplies and Services,Services,Consultants,20110414,33,"15,860.00",Revenue,MERTON PRE-SCH LEARN ALLIANCE
Housing Services,Homelessness,Homelessness Prevention,Transfer Payments,Housing Benefits,Rent Deposits,20110414,34,"1,600.00",Revenue,KILOSTATE ESTATE AGENTS
Housing Services,Housing Benefit Administration,Benefits Administration,Supplies and Services,Services,Miscellaneous Fees,20110420,35,693.56,Revenue,REDACTED
Childrens & Education Services,Other Ch's & Family Services,CL Leaving Care/Supp Lodgings,Third Party Payments,Private Contractors,Private Tenant/Landlord,20110418,36,"1,310.00",Revenue,TOWNENDS LETTING MANAGEMENT
Childrens & Education Services,Children Looked After (24hrs+),CL Fostering Services,Supplies and Services,Services,Task Based Fostering,20110420,37,897.74,Revenue,REDACTED
Childrens & Education Services,Other Ch's & Family Services,CL Setting Up Home Allowance,Third Party Payments,Private Contractors,Miscellaneous Agency Services,20110420,38,"1,286.77",Revenue,REDACTED
,No FE Detail,Disabled Facilities Grant DCLG,Other Capital Expenditure,Grants,Grants,20110420,39,"10,000.00",Capital,CARING SOLUTIONS LTD
,No FE Detail,Disabled Facilities Grant DCLG,Other Capital Expenditure,Grants,Grants,20110419,40,"5,869.40",Capital,TBS ADAPTATIONS LTD
,No FE Detail,Disabled Facilities Grant DCLG,Other Capital Expenditure,Grants,Grants,20110419,41,"3,016.00",Capital,TOTAL HYGIENE LTD
,No FE Detail,Private Sector Housing Program,Other Capital Expenditure,Grants,Grants,20110420,42,"4,000.00",Capital,BRITELITE WINDOWS
,No FE Detail,Disabled Facilities Grant DCLG,Other Capital Expenditure,Grants,Grants,20110420,43,"6,674.00",Capital,FREEWAY LIFT SERVICES LTD
Adult Social Care,Adlt u65 Learning Disabilities,LD Dolliffe Close,Supplies and Services,Equip Furniture/Materials,Provisions - General,20110420,44,696.95,Revenue,SUPPORTED LIVING TEAM
Cultural Env Reg&Plan Services,Cemetery Cremation & Mortuary,London Road Cemetery,Customer and client receipts,Fees,Internment Fees E,20110420,45,792.00,Revenue,REDACTED
Cultural Env Reg&Plan Services,Cemetery Cremation & Mortuary,London Road Cemetery,Customer and client receipts,Fees,Internment Fees E,20110420,46,"1,612.50",Revenue,REDACTED
,No FE Detail,REDACTED,Fund Balances,,Payments X,20110420,47,"4,500.00",Revenue,REDACTED
Childrens & Education Services,Children's Services - C & S W,CH Unallocated grants,Supplies and Services,Services,Miscellaneous Expenses,20110420,48,"4,800.88",Revenue,BLACKLAWS DAVIS LLP
,No FE Detail,"Wimbledon Park Hall, Arthur Rd",Fund Balances,,Payments X,20110420,49,"1,500.00",Revenue,WIMBLEDON PARK RESIDENTS ASS.
Central Services,Fully rechargeable Overheads,Pensions,Supplies and Services,Comms and Computing,Software Licences,20110401,50,"1,290.00",Revenue,BT ENGAGE IT
,No FE Detail,Payroll Summary Account,Fund Balances,Funded by Other grants & contr,Extl Payees Monthly,20110401,51,"5,218.81",Revenue,REDACTED
,No FE Detail,Payroll Summary Account,Fund Balances,Funded by Other grants & contr,Extl Payees Monthly,20110401,52,929.18,Revenue,REDACTED
,No FE Detail,Payroll Summary Account,Fund Balances,Funded by Other grants & contr,Extl Payees Monthly,20110401,53,"8,628.42",Revenue,REDACTED
,No FE Detail,Payroll Summary Account,Fund Balances,Funded by Other grants & contr,Extl Payees Monthly,20110401,54,"10,325.19",Revenue,PRUDENTIAL (LOCAL GOVERMENT)
,No FE Detail,Ursuline  - Payroll Contract,Fund Balances,,Other Deductions,20110401,55,"1,004.93",Revenue,PRUDENTIAL (TEACHERS)
,No FE Detail,Payroll Summary Account,Fund Balances,Funded by Other grants & contr,Extl Payees Monthly,20110401,56,"1,059.50",Revenue,REDACTED
,No FE Detail,Payroll Summary Account,Fund Balances,Funded by Other grants & contr,Extl Payees Monthly,20110401,57,"9,898.90",Revenue,REDACTED
,No FE Detail,Payroll Summary Account,Fund Balances,Funded by Other grants & contr,Extl Payees Monthly,20110401,58,"1,756.33",Revenue,REDACTED
,No FE Detail,Payroll Summary Account,Fund Balances,Funded by Other grants & contr,Extl Payees Monthly,20110401,59,732.63,Revenue,REDACTED
,No FE Detail,Payroll Summary Account,Fund Balances,Funded by Other grants & contr,Extl Payees Monthly,20110401,60,"4,013.71",Revenue,REDACTED
,No FE Detail,Tiffin Boys,Fund Balances,,Other Deductions,20110401,61,"17,895.74",Revenue,LONDON BOROUGH OF KINGSTON
,No FE Detail,Tiffin Boys,Fund Balances,,Other Deductions,20110401,62,"50,681.44",Revenue,ROYAL BOROUGH OF KINGSTON
,No FE Detail,Payroll Summary Account,Fund Balances,Funded by Other grants & contr,Extl Payees Monthly,20110401,63,"1,679.35",Revenue,REDACTED
,No FE Detail,Precepts,Fund Balances,,Greate London Authority S,20110405,64,"2,359,782.29",Revenue,GREATER LONDON AUTHORITY
CS -Oth Operating Inc & Expend,Precepts and Levies,London Pens Fund Auth,Corporate Items,,Expenditure,20110405,65,"25,433.20",Revenue,LONDON PENSIONS FUND AUTHORITY
CS -Oth Operating Inc & Expend,Precepts and Levies,WPCC,Corporate Items,,Expenditure,20110405,66,"26,664.74",Revenue,WPCC
,No FE Detail,Annual Season Ticket Loans,Fund Balances,,Payments X,20110406,67,"1,576.00",Revenue,LONDON UNDERGROUND LTD
Childrens & Education Services,Delegated Ind Sec. Sch Budgets,Schools Delegated Budget,Supplies and Services,,Contigency,20110406,68,"50,000.00",Revenue,RAYNES PARK HIGH SCHOOL
Adult Social Care,Adlt u65 Learning Disabilities,LD Residential Care External,Third Party Payments,Private Contractors,Miscellaneous Agency Services,20110406,69,"55,113.16",Revenue,BOSTON HIGASHI SCHOOL INC
,No FE Detail,Payroll Summary Account,Fund Balances,Funded by Other grants & contr,Salary Sacrifice,20110414,70,570.99,Revenue,ACCOR SERVICES
,No FE Detail,Payroll Summary Account,Fund Balances,Funded by Other grants & contr,Salary Sacrifice,20110414,71,"10,381.67",Revenue,ACCOR SERVICES
CS -Oth Operating Inc & Expend,Precepts and Levies,Flood Defence,Corporate Items,,Expenditure,20110420,72,"36,648.00",Revenue,ENVIRONMENT AGENCY
CS -Oth Operating Inc & Expend,Precepts and Levies,Lee Valley Regional Park,Corporate Items,,Expenditure,20110415,73,"18,350.46",Revenue,LEE VALLEY REGIONAL PARK AUTH.
Central Services,Fully rechargeable Overheads,Director of Corporate Services,Supplies and Services,Grants and Subscriptions,Subscriptions,20110420,74,840.00,Revenue,REDACTED
Central Services,Fully rechargeable Overheads,Legal Services,Supplies and Services,Services,Court Fees,20110426,75,"1,900.00",Revenue,REDACTED
,No FE Detail,Payroll Summary Account,Fund Balances,Funded by Other grants & contr,Salary Sacrifice,20110427,76,"2,042.00",Revenue,ACCOR SERVICES
,No FE Detail,Payroll Summary Account,Fund Balances,Funded by Other grants & contr,Salary Sacrifice,20110427,77,"13,528.00",Revenue,ACCOR SERVICES
,No FE Detail,Payroll Summary Account,Fund Balances,Funded by Other grants & contr,Salary Sacrifice,20110427,78,744.04,Revenue,ACCOR SERVICES
Central Services,Fully rechargeable Overheads,Democratic Services,Supplies and Services,Expenses,Incoming Mayor (May-March),20110427,79,511.24,Revenue,REDACTED
Central Services,Fully rechargeable Overheads,Democratic Services,Supplies and Services,Expenses,Incoming Mayor (May-March),20110427,80,579.50,Revenue,REDACTED
Adult Social Care,Adult u65 Mental Health Needs,MH ResidentialCare Ext-Morden,Third Party Payments,Private Contractors,Miscellaneous Agency Services,20110406,81,"2,839.00",Revenue,REDACTED
Childrens & Education Services,Children Looked After (24hrs+),CL Residential Care Homes CLA,Third Party Payments,Private Contractors,Miscellaneous Agency Services,20110405,82,"-3,105.13",Revenue,REDACTED
Childrens & Education Services,Children Looked After (24hrs+),CL Fostering Services,Supplies and Services,Services,Task Based Fostering,20110408,83,"2,266.12",Revenue,REDACTED
Childrens & Education Services,Children Looked After (24hrs+),CL Residential Care Homes CLA,Third Party Payments,Private Contractors,Miscellaneous Agency Services,20110426,84,"4,121.00",Revenue,REDACTED
Adult Social Care,Adult u65 Phys/Sensory Impair,PD EAST TEAM-Residential,Third Party Payments,Private Contractors,Miscellaneous Agency Services,20110418,85,"8,384.84",Revenue,RNID
Adult Social Care,Adult u65 Mental Health Needs,MH ResidentialCare Ext - Wim,Third Party Payments,Private Contractors,Miscellaneous Agency Services,20110401,86,689.09,Revenue,ASRA G.LONDON HOUSING ASS.LTD
Adult Social Care,Older People 65&Over inc OP-MH,OP Mitcham-Residential CareExt,Third Party Payments,Private Contractors,Miscellaneous Agency Services,20110401,87,"-3,103.68",Revenue,WILLETT LODGE
Adult Social Care,Older People 65&Over inc OP-MH,OP East - Residential Care Ext,Third Party Payments,Private Contractors,Miscellaneous Agency Services,20110401,88,"4,655.52",Revenue,WILLETT LODGE
Adult Social Care,Asylum seekers,AS Child Res Care  (No Grant),Third Party Payments,Private Contractors,Miscellaneous Agency Services,20110401,89,"3,444.03",Revenue,RBS INVOICE FINANCE LIMITED
Childrens & Education Services,Other Ch's & Family Services,CL Leaving Care/Supp Lodgings,Third Party Payments,Private Contractors,Miscellaneous Agency Services,20110401,90,"8,720.00",Revenue,RBS INVOICE FINANCE LIMITED
Childrens & Education Services,Other Ch's & Family Services,CL Leaving Care/Supp Lodgings,Third Party Payments,Private Contractors,Supported Lodgings,20110401,91,600.00,Revenue,REDACTED
Adult Social Care,Older People 65&Over inc OP-MH,OP East - Residential Care Ext,Third Party Payments,Private Contractors,Miscellaneous Agency Services,20110401,92,"1,887.90",Revenue,ABBEYGATE RESIDENTIAL HOME
Adult Social Care,Older People 65&Over inc OP-MH,OP Hosp - Nursing Care,Third Party Payments,Private Contractors,Miscellaneous Agency Services,20110401,93,"2,341.92",Revenue,ASLOCKTON HALL
Adult Social Care,Older People 65&Over inc OP-MH,OP Hosp - Nursing Care,Third Party Payments,Private Contractors,Miscellaneous Agency Services,20110401,94,"2,592.84",Revenue,ASLOCKTON HALL
Adult Social Care,Older People 65&Over inc OP-MH,OP Hosp - Residential Care Ext,Third Party Payments,Private Contractors,Miscellaneous Agency Services,20110401,95,"1,624.00",Revenue,THE BEECHES
Adult Social Care,Older People 65&Over inc OP-MH,OP East - Residential Care Ext,Third Party Payments,Private Contractors,Miscellaneous Agency Services,20110401,96,"1,873.20",Revenue,BETHUNE COURT
Adult Social Care,Older People 65&Over inc OP-MH,OP East - Residential Care Ext,Third Party Payments,Private Contractors,Miscellaneous Agency Services,20110401,97,"2,056.24",Revenue,BOLTERS CORNER CARE HOME
Adult Social Care,Older People 65&Over inc OP-MH,OP Hosp - Nursing Care,Third Party Payments,Private Contractors,Miscellaneous Agency Services,20110401,98,"1,804.95",Revenue,BUPA CARE HOMES
Adult Social Care,Older People 65&Over inc OP-MH,OP Hosp - Nursing Care,Third Party Payments,Private Contractors,Miscellaneous Agency Services,20110401,99,"-9,970.20",Revenue,BUPA CARE HOMES
Adult Social Care,Older People 65&Over inc OP-MH,OP East - Nursing Care,Third Party Payments,Private Contractors,Miscellaneous Agency Services,20110401,100,"10,056.15",Revenue,BUPA CARE HOMES
Adult Social Care,Older People 65&Over inc OP-MH,OP East - Nursing Care,Third Party Payments,Private Contractors,Miscellaneous Agency Services,20110401,101,"2,062.80",Revenue,BUPA CARE HOMES
Adult Social Care,Older People 65&Over inc OP-MH,OP Hosp - Nursing Care,Third Party Payments,Private Contractors,Miscellaneous Agency Services,20110401,102,"3,266.10",Revenue,BUPA CARE HOMES
Adult Social Care,Older People 65&Over inc OP-MH,OP East - Nursing Care,Third Party Payments,Private Contractors,Miscellaneous Agency Services,20110401,103,"2,074.68",Revenue,BUPA CARE HOMES
Adult Social Care,Older People 65&Over inc OP-MH,OP Hosp - Nursing Care,Third Party Payments,Private Contractors,Miscellaneous Agency Services,20110401,104,"2,805.19",Revenue,CARE UK
Adult Social Care,Older People 65&Over inc OP-MH,OP Hosp - Nursing Care,Third Party Payments,Private Contractors,Miscellaneous Agency Services,20110401,105,"2,805.19",Revenue,CARE UK
Adult Social Care,Older People 65&Over inc OP-MH,OP East - Residential Care Ext,Third Party Payments,Private Contractors,Miscellaneous Agency Services,20110401,106,"1,840.00",Revenue,CHARLTON HOUSE
Adult Social Care,Adlt u65 Learning Disabilities,LD Residential Care External,Third Party Payments,Private Contractors,Miscellaneous Agency Services,20110401,107,"7,368.00",Revenue,CHATSWORTH CARE
Adult Social Care,Older People 65&Over inc OP-MH,OP East - Residential Care Ext,Third Party Payments,Private Contractors,Miscellaneous Agency Services,20110401,108,"1,717.80",Revenue,CHERRY TREE HOUSE
Adult Social Care,Older People 65&Over inc OP-MH,OP Hosp - Residential Care Ext,Third Party Payments,Private Contractors,Miscellaneous Agency Services,20110401,109,"1,812.40",Revenue,CHERRY TREE HOUSE
Adult Social Care,Older People 65&Over inc OP-MH,OP West - Residential Care Ext,Third Party Payments,Private Contractors,Miscellaneous Agency Services,20110401,110,"1,940.00",Revenue,CHERRY TREE HOUSE
Adult Social Care,Older People 65&Over inc OP-MH,OP Hosp - Nursing Care,Third Party Payments,Private Contractors,Miscellaneous Agency Services,20110401,111,"2,337.20",Revenue,CLARENDON LS
Adult Social Care,Older People 65&Over inc OP-MH,OP West - Nursing Care,Third Party Payments,Private Contractors,Miscellaneous Agency Services,20110401,112,"2,354.80",Revenue,GALLEON CARE HOMES LTD
Adult Social Care,Older People 65&Over inc OP-MH,OP Hosp - Residential Care Ext,Third Party Payments,Private Contractors,Miscellaneous Agency Services,20110401,113,"2,380.00",Revenue,EASTERLEA REST HOME
Adult Social Care,Older People 65&Over inc OP-MH,OP Hosp - Residential Care Ext,Third Party Payments,Private Contractors,Miscellaneous Agency Services,20110401,114,"2,380.00",Revenue,EASTERLEA REST HOME
Adult Social Care,Older People 65&Over inc OP-MH,OP Hosp - Residential Care Ext,Third Party Payments,Private Contractors,Miscellaneous Agency Services,20110401,115,"1,577.14",Revenue,THE ELMS REST HOME LTD
Adult Social Care,Adlt u65 Learning Disabilities,LD Residential Care External,Third Party Payments,Private Contractors,Miscellaneous Agency Services,20110401,116,"4,780.00",Revenue,GREENFIELD CARE HOMES LTD
Adult Social Care,Adlt u65 Learning Disabilities,LD Residential Care External,Third Party Payments,Private Contractors,Miscellaneous Agency Services,20110401,117,"4,868.00",Revenue,GREENFIELD CARE HOMES LTD
Adult Social Care,Adlt u65 Learning Disabilities,LD Residential Care External,Third Party Payments,Private Contractors,Miscellaneous Agency Services,20110401,118,"4,624.00",Revenue,GREENFIELD CARE HOMES LTD
Adult Social Care,Adlt u65 Learning Disabilities,LD Residential Care External,Third Party Payments,Private Contractors,Miscellaneous Agency Services,20110401,119,"4,744.00",Revenue,GREENFIELD CARE HOMES LTD
Adult Social Care,Adlt u65 Learning Disabilities,LD Residential Care External,Third Party Payments,Private Contractors,Miscellaneous Agency Services,20110401,120,"4,780.00",Revenue,GREENFIELD CARE HOMES LTD
Adult Social Care,Adlt u65 Learning Disabilities,LD Residential Care External,Third Party Payments,Private Contractors,Miscellaneous Agency Services,20110401,121,"4,780.00",Revenue,GREENFIELD CARE HOMES LTD
Adult Social Care,Adlt u65 Learning Disabilities,LD Residential Care External,Third Party Payments,Private Contractors,Miscellaneous Agency Services,20110401,122,"4,732.00",Revenue,GREENFIELD CARE HOMES LTD
Adult Social Care,Older People 65&Over inc OP-MH,OP Hosp - Nursing Care,Customer and client receipts,Charges,Bd&Acc-contrib coll by home X,20110401,123,"-3,913.20",Revenue,GROSVENOR PARK NURSING HOME
Adult Social Care,Older People 65&Over inc OP-MH,OP Hosp - Nursing Care,Third Party Payments,Private Contractors,Miscellaneous Agency Services,20110401,124,"4,813.20",Revenue,GROSVENOR PARK NURSING HOME
Adult Social Care,Older People 65&Over inc OP-MH,OP West - Nursing Care,Third Party Payments,Private Contractors,Miscellaneous Agency Services,20110401,125,"2,341.84",Revenue,LYNTON HALL NURSING HOME
Adult Social Care,Adlt u65 Learning Disabilities,LD Residential Care External,Third Party Payments,Private Contractors,Miscellaneous Agency Services,20110401,126,"5,288.83",Revenue,KENT AUTISTIC TRUST
Adult Social Care,Older People 65&Over inc OP-MH,OP Hosp - Nursing Care,Third Party Payments,Private Contractors,Miscellaneous Agency Services,20110401,127,"-2,267.86",Revenue,LAKESIDE HOME
Adult Social Care,Older People 65&Over inc OP-MH,OP East - Nursing Care,Customer and client receipts,Charges,Bd&Acc-contrib coll by home X,20110401,128,-823.01,Revenue,LAKESIDE HOME
Adult Social Care,Older People 65&Over inc OP-MH,OP East - Nursing Care,Third Party Payments,Private Contractors,Miscellaneous Agency Services,20110401,129,"4,807.86",Revenue,LAKESIDE HOME
Adult Social Care,Adlt u65 Learning Disabilities,LD Residential Care External,Third Party Payments,Private Contractors,Miscellaneous Agency Services,20110401,130,"1,857.14",Revenue,LINK HOUSE
Adult Social Care,Older People 65&Over inc OP-MH,OP East - Residential Care Ext,Third Party Payments,Private Contractors,Miscellaneous Agency Services,20110401,131,"1,827.00",Revenue,MEDIHANDS CLIFTON CARE HOME
Adult Social Care,Older People 65&Over inc OP-MH,OP East - Residential Care Ext,Third Party Payments,Private Contractors,Miscellaneous Agency Services,20110401,132,"1,827.00",Revenue,MEDIHANDS CLIFTON CARE HOME
Adult Social Care,Older People 65&Over inc OP-MH,OP East - Residential Care Ext,Third Party Payments,Private Contractors,Miscellaneous Agency Services,20110401,133,"1,827.00",Revenue,MEDIHANDS CLIFTON CARE HOME
Adult Social Care,Older People 65&Over inc OP-MH,OP Hosp - Nursing Care,Third Party Payments,Private Contractors,Miscellaneous Agency Services,20110401,134,"2,341.84",Revenue,PRIORY COURT CARE HOME
Adult Social Care,Adlt u65 Learning Disabilities,LD Supported Housing,Third Party Payments,Private Contractors,Miscellaneous Agency Services,20110401,135,"2,352.00",Revenue,ROYAL MENCAP SOCIETY
Adult Social Care,Adult u65 Mental Health Needs,MH ResidentialCare Ext - Wim,Third Party Payments,Private Contractors,Miscellaneous Agency Services,20110401,136,"6,500.00",Revenue,SIGNHEALTH
Adult Social Care,Adult u65 Mental Health Needs,MH ResidentialCare Ext - Wim,Third Party Payments,Private Contractors,Miscellaneous Agency Services,20110401,137,"6,500.00",Revenue,SIGNHEALTH
Adult Social Care,Older People 65&Over inc OP-MH,OP East - Residential Care Ext,Third Party Payments,Private Contractors,Miscellaneous Agency Services,20110401,138,737.99,Revenue,SOUTHERN CROSS HEALTHCARE LTD
Adult Social Care,Older People 65&Over inc OP-MH,OP Hosp - Nursing Care,Third Party Payments,Private Contractors,Miscellaneous Agency Services,20110401,139,"-12,078.50",Revenue,SOUTHERN CROSS HEALTHCARE LTD
Adult Social Care,Older People 65&Over inc OP-MH,OP East - Nursing Care,Third Party Payments,Private Contractors,Miscellaneous Agency Services,20110401,140,"14,920.50",Revenue,SOUTHERN CROSS HEALTHCARE LTD
Adult Social Care,Older People 65&Over inc OP-MH,OP East - Residential Care Ext,Third Party Payments,Private Contractors,Miscellaneous Agency Services,20110401,141,"1,878.52",Revenue,SOUTHERN CROSS HEALTHCARE LTD
Adult Social Care,Older People 65&Over inc OP-MH,OP Hosp - Residential Care Ext,Third Party Payments,Private Contractors,Miscellaneous Agency Services,20110401,142,"1,878.52",Revenue,SOUTHERN CROSS HEALTHCARE LTD
Adult Social Care,Adult u65 Phys/Sensory Impair,PD EAST TEAM-Nursing,Third Party Payments,Private Contractors,Miscellaneous Agency Services,20110401,143,"3,096.00",Revenue,SOUTHERN CROSS HEALTHCARE LTD
Adult Social Care,Older People 65&Over inc OP-MH,OP East - Residential Care Ext,Third Party Payments,Private Contractors,Miscellaneous Agency Services,20110401,144,"1,878.52",Revenue,SOUTHERN CROSS HEALTHCARE LTD
Adult Social Care,Older People 65&Over inc OP-MH,OP East - Nursing Care,Third Party Payments,Private Contractors,Miscellaneous Agency Services,20110401,145,"2,237.64",Revenue,SOUTHERN CROSS HEALTHCARE LTD
Adult Social Care,Older People 65&Over inc OP-MH,OP Hosp - Nursing Care,Third Party Payments,Private Contractors,Miscellaneous Agency Services,20110401,146,"2,237.64",Revenue,SOUTHERN CROSS HEALTHCARE LTD
Adult Social Care,Older People 65&Over inc OP-MH,OP East - Residential Care Ext,Third Party Payments,Private Contractors,Miscellaneous Agency Services,20110401,147,"1,878.52",Revenue,SOUTHERN CROSS HEALTHCARE LTD
Adult Social Care,Older People 65&Over inc OP-MH,OP Hosp - Residential Care Ext,Third Party Payments,Private Contractors,Miscellaneous Agency Services,20110401,148,"2,840.00",Revenue,SOUTHERN CROSS HEALTHCARE LTD
Adult Social Care,Older People 65&Over inc OP-MH,OP Hosp - Residential Care Ext,Third Party Payments,Private Contractors,Miscellaneous Agency Services,20110401,149,"1,878.52",Revenue,SOUTHERN CROSS HEALTHCARE LTD
Adult Social Care,Older People 65&Over inc OP-MH,OP Hosp - Residential Care Ext,Third Party Payments,Private Contractors,Miscellaneous Agency Services,20110401,150,"1,878.52",Revenue,SOUTHERN CROSS HEALTHCARE LTD
Adult Social Care,Older People 65&Over inc OP-MH,OP East - Residential Care Ext,Third Party Payments,Private Contractors,Miscellaneous Agency Services,20110401,151,"1,878.52",Revenue,SOUTHERN CROSS HEALTHCARE LTD
Adult Social Care,Older People 65&Over inc OP-MH,OP East - Nursing Care,Third Party Payments,Private Contractors,Miscellaneous Agency Services,20110401,152,"1,997.89",Revenue,SOUTHERN CROSS HEALTHCARE LTD
Adult Social Care,Older People 65&Over inc OP-MH,OP East - Nursing Care,Third Party Payments,Private Contractors,Miscellaneous Agency Services,20110401,153,"1,278.65",Revenue,SOUTHERN CROSS HEALTHCARE LTD
Adult Social Care,Older People 65&Over inc OP-MH,OP East - Nursing Care,Third Party Payments,Private Contractors,Miscellaneous Agency Services,20110401,154,"2,237.64",Revenue,SOUTHERN CROSS HEALTHCARE LTD
Adult Social Care,Older People 65&Over inc OP-MH,OP Hosp - Residential Care Ext,Third Party Payments,Private Contractors,Miscellaneous Agency Services,20110401,155,"2,071.31",Revenue,STOKEFIELD CARE HOME
Adult Social Care,Older People 65&Over inc OP-MH,OP Hosp - Residential Care Ext,Third Party Payments,Private Contractors,Miscellaneous Agency Services,20110401,156,"1,920.00",Revenue,LITTLE SISTERS OF THE POOR
Adult Social Care,Older People 65&Over inc OP-MH,OP East - Residential Care Ext,Third Party Payments,Private Contractors,Miscellaneous Agency Services,20110401,157,"1,806.12",Revenue,THORNTON LODGE
Adult Social Care,Adult u65 Phys/Sensory Impair,PD WEST TEAM-Residential Care,Third Party Payments,Private Contractors,Miscellaneous Agency Services,20110401,158,"3,596.00",Revenue,WESTMINSTER HEALTHCARE LTD
Adult Social Care,Adult u65 Phys/Sensory Impair,PD EAST TEAM-Day Care,Third Party Payments,Private Contractors,Miscellaneous Agency Services,20110401,159,"1,066.40",Revenue,ACTION FOR BLIND PEOPLE
Adult Social Care,Adult u65 Phys/Sensory Impair,PD WEST TEAM-Homecare,Third Party Payments,Private Contractors,Miscellaneous Agency Services,20110401,160,955.44,Revenue,ALPENBEST LIMITED
Adult Social Care,Older People 65&Over inc OP-MH,OP Hosp - Home Care External,Third Party Payments,Private Contractors,Miscellaneous Agency Services,20110401,161,"1,118.70",Revenue,ALPENBEST LIMITED
Adult Social Care,Older People 65&Over inc OP-MH,OP East - Home Care External,Third Party Payments,Private Contractors,Miscellaneous Agency Services,20110401,162,"3,595.20",Revenue,ALPENBEST LIMITED
Adult Social Care,Older People 65&Over inc OP-MH,OP West - Home Care External,Third Party Payments,Private Contractors,Miscellaneous Agency Services,20110401,163,"7,027.20",Revenue,ALPENBEST LIMITED
Adult Social Care,Adult u65 Mental Health Needs,MH Home Care External-MitWest,Third Party Payments,Private Contractors,Miscellaneous Agency Services,20110401,164,663.72,Revenue,GOLDSBOROUGH HOMECARE
Adult Social Care,Adult u65 Phys/Sensory Impair,PD WEST TEAM-Homecare,Third Party Payments,Private Contractors,Miscellaneous Agency Services,20110401,165,"1,085.26",Revenue,GOLDSBOROUGH HOMECARE
Adult Social Care,Older People 65&Over inc OP-MH,OP West - Carer Services,Third Party Payments,Private Contractors,Miscellaneous Agency Services,20110401,166,"1,334.31",Revenue,GOLDSBOROUGH HOMECARE
Adult Social Care,Older People 65&Over inc OP-MH,OP East - Carer Services,Third Party Payments,Private Contractors,Miscellaneous Agency Services,20110401,167,"2,015.31",Revenue,GOLDSBOROUGH HOMECARE
Adult Social Care,Older People 65&Over inc OP-MH,OP Hosp - Home Care External,Third Party Payments,Private Contractors,Miscellaneous Agency Services,20110401,168,"2,356.16",Revenue,GOLDSBOROUGH HOMECARE
Adult Social Care,Adult u65 Phys/Sensory Impair,PD EAST TEAM-Homecare,Third Party Payments,Private Contractors,Miscellaneous Agency Services,20110401,169,"3,215.98",Revenue,GOLDSBOROUGH HOMECARE
Adult Social Care,Older People 65&Over inc OP-MH,OP West - Home Care External,Third Party Payments,Private Contractors,Miscellaneous Agency Services,20110401,170,"15,312.12",Revenue,GOLDSBOROUGH HOMECARE
Adult Social Care,Older People 65&Over inc OP-MH,OP East - Home Care External,Third Party Payments,Private Contractors,Miscellaneous Agency Services,20110401,171,"41,311.78",Revenue,GOLDSBOROUGH HOMECARE
Adult Social Care,Adult u65 Phys/Sensory Impair,PD WEST TEAM-Homecare,Third Party Payments,Private Contractors,Miscellaneous Agency Services,20110401,172,795.42,Revenue,GOLDSBOROUGH HOMECARE
Adult Social Care,Adult u65 Mental Health Needs,MH Home Care External-MitWest,Third Party Payments,Private Contractors,Miscellaneous Agency Services,20110401,173,823.91,Revenue,GOLDSBOROUGH HOMECARE
Adult Social Care,Older People 65&Over inc OP-MH,OP West - Carer Services,Third Party Payments,Private Contractors,Miscellaneous Agency Services,20110401,174,"1,315.10",Revenue,GOLDSBOROUGH HOMECARE
Adult Social Care,Older People 65&Over inc OP-MH,OP East - Carer Services,Third Party Payments,Private Contractors,Miscellaneous Agency Services,20110401,175,"2,000.19",Revenue,GOLDSBOROUGH HOMECARE
Adult Social Care,Older People 65&Over inc OP-MH,OP Hosp - Home Care External,Third Party Payments,Private Contractors,Miscellaneous Agency Services,20110401,176,"2,444.77",Revenue,GOLDSBOROUGH HOMECARE
Adult Social Care,Adult u65 Phys/Sensory Impair,PD EAST TEAM-Homecare,Third Party Payments,Private Contractors,Miscellaneous Agency Services,20110401,177,"3,280.96",Revenue,GOLDSBOROUGH HOMECARE
Adult Social Care,Older People 65&Over inc OP-MH,OP West - Home Care External,Third Party Payments,Private Contractors,Miscellaneous Agency Services,20110401,178,"17,179.64",Revenue,GOLDSBOROUGH HOMECARE
Adult Social Care,Older People 65&Over inc OP-MH,OP East - Home Care External,Third Party Payments,Private Contractors,Miscellaneous Agency Services,20110401,179,"37,852.32",Revenue,GOLDSBOROUGH HOMECARE
Adult Social Care,Adlt u65 Learning Disabilities,LD Home Care External,Third Party Payments,Private Contractors,Miscellaneous Agency Services,20110401,180,975.44,Revenue,HOUSING21
Adult Social Care,Older People 65&Over inc OP-MH,OP Morden -Home Care External,Third Party Payments,Private Contractors,Miscellaneous Agency Services,20110401,181,"1,425.49",Revenue,HOUSING21
Adult Social Care,Older People 65&Over inc OP-MH,OP Wim - Home Care External,Third Party Payments,Private Contractors,Miscellaneous Agency Services,20110401,182,"2,049.82",Revenue,HOUSING21
Adult Social Care,Older People 65&Over inc OP-MH,OP West - Home Care External,Third Party Payments,Private Contractors,Miscellaneous Agency Services,20110401,183,"2,837.11",Revenue,HOUSING21
Adult Social Care,Older People 65&Over inc OP-MH,OP East - Home Care External,Third Party Payments,Private Contractors,Miscellaneous Agency Services,20110401,184,"3,776.25",Revenue,HOUSING21
Adult Social Care,Adlt u65 Learning Disabilities,LD Home Care External,Third Party Payments,Private Contractors,Miscellaneous Agency Services,20110401,185,869.06,Revenue,HOUSING21
Adult Social Care,Older People 65&Over inc OP-MH,OP West - Home Care External,Third Party Payments,Private Contractors,Miscellaneous Agency Services,20110401,186,"4,077.16",Revenue,HOUSING21
Adult Social Care,Older People 65&Over inc OP-MH,OP East - Home Care External,Third Party Payments,Private Contractors,Miscellaneous Agency Services,20110401,187,"6,506.07",Revenue,HOUSING21
Adult Social Care,Adult u65 Mental Health Needs,MH Home Care External - Wim,Third Party Payments,Private Contractors,Miscellaneous Agency Services,20110401,188,858.66,Revenue,PLAN PERSONNEL
Adult Social Care,Older People 65&Over inc OP-MH,OP Hosp - Home Care External,Third Party Payments,Private Contractors,Miscellaneous Agency Services,20110401,189,"1,946.02",Revenue,PLAN PERSONNEL
Adult Social Care,Adult u65 Phys/Sensory Impair,PD EAST TEAM-Homecare,Third Party Payments,Private Contractors,Miscellaneous Agency Services,20110401,190,"2,026.51",Revenue,PLAN PERSONNEL
Adult Social Care,Adlt u65 Learning Disabilities,LD Home Care External,Third Party Payments,Private Contractors,Miscellaneous Agency Services,20110401,191,"4,536.70",Revenue,PLAN PERSONNEL
Adult Social Care,Adult u65 Phys/Sensory Impair,PD WEST TEAM-Homecare,Third Party Payments,Private Contractors,Miscellaneous Agency Services,20110401,192,"4,615.62",Revenue,PLAN PERSONNEL
Adult Social Care,Older People 65&Over inc OP-MH,OP East - Home Care External,Third Party Payments,Private Contractors,Miscellaneous Agency Services,20110401,193,"16,444.35",Revenue,PLAN PERSONNEL
Adult Social Care,Older People 65&Over inc OP-MH,OP West - Home Care External,Third Party Payments,Private Contractors,Miscellaneous Agency Services,20110401,194,"19,353.98",Revenue,PLAN PERSONNEL
Childrens & Education Services,Other Ch's & Family Services,CL Setting Up Home Allowance,Third Party Payments,Private Contractors,Miscellaneous Agency Services,20110401,195,"2,131.34",Revenue,REDACTED
Adult Social Care,Asylum seekers,AS Child - Res Care (Grant),Third Party Payments,Private Contractors,Supported Lodgings,20110401,196,600.00,Revenue,REDACTED
Childrens & Education Services,Other Ch's & Family Services,CL Leaving Care/Supp Lodgings,Third Party Payments,Private Contractors,Supported Lodgings,20110401,197,"1,071.42",Revenue,REDACTED
Adult Social Care,Adlt u65 Learning Disabilities,LD Direct Payment Scheme,Third Party Payments,Private Contractors,Direct Payments,20110401,198,677.10,Revenue,REDACTED
Childrens & Education Services,Family Support Services,CS Direct Payments,Third Party Payments,Private Contractors,Direct Payments,20110404,199,958.50,Revenue,REDACTED
Childrens & Education Services,Other Ch's & Family Services,CL Leaving Care/Supp Lodgings,Third Party Payments,Private Contractors,Supported Lodgings,20110404,200,650.00,Revenue,REDACTED
Childrens & Education Services,Other Ch's & Family Services,CL Leaving Care/Supp Lodgings,Third Party Payments,Private Contractors,Supported Lodgings,20110404,201,600.00,Revenue,REDACTED
Childrens & Education Services,Children Looked After (24hrs+),CL Independent Fostering,Supplies and Services,Services,Task Based Fostering,20110404,202,"3,759.00",Revenue,FOLLOWING WHISPERS FAMILY CONS
Childrens & Education Services,Children Looked After (24hrs+),CL Independent Fostering,Supplies and Services,Services,Task Based Fostering,20110404,203,"7,768.60",Revenue,FOLLOWING WHISPERS FAMILY CONS
Childrens & Education Services,Other Ch's & Family Services,CL Leaving Care/Supp Lodgings,Third Party Payments,Private Contractors,Supported Lodgings,20110404,204,600.00,Revenue,REDACTED
Childrens & Education Services,Children Looked After (24hrs+),CL Independent Fostering,Supplies and Services,Services,Task Based Fostering,20110404,205,"1,569.26",Revenue,CORNERWAYS FOSTERING SERV.LTD
Childrens & Education Services,Children Looked After (24hrs+),CL Independent Fostering,Supplies and Services,Services,Long Term Fostering,20110404,206,"4,800.00",Revenue,SANKOFA CARE LTD
Childrens & Education Services,Children Looked After (24hrs+),CL Independent Fostering,Supplies and Services,Services,Long Term Fostering,20110404,207,"4,800.00",Revenue,SANKOFA CARE LTD
Childrens & Education Services,Other Ch's & Family Services,CL Leaving Care/Supp Lodgings,Third Party Payments,Private Contractors,Supported Lodgings,20110404,208,700.00,Revenue,REDACTED
Adult Social Care,Older People 65&Over inc OP-MH,OP Hosp - Home Care External,Third Party Payments,Private Contractors,Miscellaneous Agency Services,20110404,209,844.53,Revenue,BELGRAVIA NURS. & CARE BUREAU
Adult Social Care,Adult u65 Phys/Sensory Impair,PD WEST TEAM-Homecare,Third Party Payments,Private Contractors,Miscellaneous Agency Services,20110404,210,"1,553.21",Revenue,BELGRAVIA NURS. & CARE BUREAU
Adult Social Care,Older People 65&Over inc OP-MH,OP West - Home Care External,Third Party Payments,Private Contractors,Miscellaneous Agency Services,20110404,211,"11,244.19",Revenue,BELGRAVIA NURS. & CARE BUREAU
Adult Social Care,Older People 65&Over inc OP-MH,OP East - Home Care External,Third Party Payments,Private Contractors,Miscellaneous Agency Services,20110404,212,"12,622.03",Revenue,BELGRAVIA NURS. & CARE BUREAU
Adult Social Care,Adult u65 Phys/Sensory Impair,PD WEST TEAM-Homecare,Third Party Payments,Private Contractors,Miscellaneous Agency Services,20110404,213,678.59,Revenue,ANCHOR CARE
Adult Social Care,Adult u65 Mental Health Needs,MH Home Care External - Wim,Third Party Payments,Private Contractors,Miscellaneous Agency Services,20110404,214,"1,131.72",Revenue,ANCHOR CARE
Adult Social Care,Adult u65 Phys/Sensory Impair,PD EAST TEAM-Homecare,Third Party Payments,Private Contractors,Miscellaneous Agency Services,20110404,215,"1,486.77",Revenue,ANCHOR CARE
Adult Social Care,Older People 65&Over inc OP-MH,OP East - Carer Services,Third Party Payments,Private Contractors,Miscellaneous Agency Services,20110404,216,"1,561.95",Revenue,ANCHOR CARE
Adult Social Care,Older People 65&Over inc OP-MH,OP West - Home Care External,Third Party Payments,Private Contractors,Miscellaneous Agency Services,20110404,217,"12,766.43",Revenue,ANCHOR CARE
Adult Social Care,Older People 65&Over inc OP-MH,OP East - Home Care External,Third Party Payments,Private Contractors,Miscellaneous Agency Services,20110404,218,"12,936.34",Revenue,ANCHOR CARE
Adult Social Care,Older People 65&Over inc OP-MH,OP East - Home Care External,Third Party Payments,Private Contractors,Miscellaneous Agency Services,20110404,219,"2,170.88",Revenue,COMPASSIONATE CARING AGENCY UK
Adult Social Care,Older People 65&Over inc OP-MH,OP West - Home Care External,Third Party Payments,Private Contractors,Miscellaneous Agency Services,20110404,220,"1,342.92",Revenue,COMPASSIONATE CARING AGENCY UK
Adult Social Care,Adult u65 Phys/Sensory Impair,PD WEST TEAM-Homecare,Third Party Payments,Private Contractors,Miscellaneous Agency Services,20110404,221,"1,643.95",Revenue,COMPASSIONATE CARING AGENCY UK
Adult Social Care,Adult u65 Phys/Sensory Impair,PD EAST TEAM-Homecare,Third Party Payments,Private Contractors,Miscellaneous Agency Services,20110404,222,"1,823.80",Revenue,COMPASSIONATE CARING AGENCY UK
Adult Social Care,Older People 65&Over inc OP-MH,OP East - Home Care External,Third Party Payments,Private Contractors,Miscellaneous Agency Services,20110404,223,"2,580.28",Revenue,COMPASSIONATE CARING AGENCY UK
Adult Social Care,Adlt u65 Learning Disabilities,LD Day Care Agency,Third Party Payments,Private Contractors,Miscellaneous Agency Services,20110404,224,696.28,Revenue,UNITED RESPONSE
Adult Social Care,Adult u65 Phys/Sensory Impair,PD EAST TEAM-Hostel,Third Party Payments,Private Contractors,Miscellaneous Agency Services,20110404,225,987.66,Revenue,ADMINLAND LTD
Adult Social Care,Adult u65 Mental Health Needs,MH ResidentialCare Ext - Wim,Third Party Payments,Private Contractors,Miscellaneous Agency Services,20110406,226,"1,524.76",Revenue,ALDWICK RESIDENTIAL CARE HOME
Adult Social Care,Adlt u65 Learning Disabilities,LD Residential Care External,Third Party Payments,Private Contractors,Miscellaneous Agency Services,20110404,227,"6,725.24",Revenue,BROADHAM CARE LTD
Adult Social Care,Adlt u65 Learning Disabilities,LD Residential Care External,Third Party Payments,Private Contractors,Miscellaneous Agency Services,20110404,228,"5,680.00",Revenue,BROADHAM CARE LTD
Adult Social Care,Older People 65&Over inc OP-MH,OP East - Residential Care Ext,Third Party Payments,Private Contractors,Miscellaneous Agency Services,20110404,229,"1,928.56",Revenue,CHASE HOUSE REST HOME
Adult Social Care,Adult u65 Mental Health Needs,MH ResidentialCare Ext-Morden,Third Party Payments,Private Contractors,Miscellaneous Agency Services,20110404,230,"1,425.56",Revenue,REDACTED
Adult Social Care,Adlt u65 Learning Disabilities,LD Nursing Care,Third Party Payments,Private Contractors,Miscellaneous Agency Services,20110406,231,"5,884.32",Revenue,SUSSEX HEALTH CARE
Adult Social Care,Adlt u65 Learning Disabilities,LD Residential Care External,Third Party Payments,Private Contractors,Miscellaneous Agency Services,20110406,232,"6,552.00",Revenue,SUSSEX HEALTH CARE
Adult Social Care,Older People 65&Over inc OP-MH,OP East - Residential Care Ext,Third Party Payments,Private Contractors,Miscellaneous Agency Services,20110406,233,"1,880.00",Revenue,'LA LUZ'
Adult Social Care,Adlt u65 Learning Disabilities,LD Residential Care External,Third Party Payments,Private Contractors,Miscellaneous Agency Services,20110406,234,"3,323.31",Revenue,L'ARCHE
Adult Social Care,Older People 65&Over inc OP-MH,OP East - Nursing Care,Third Party Payments,Private Contractors,Miscellaneous Agency Services,20110404,235,"2,341.84",Revenue,FOUR SEASONS LTD T/A UPLANDS
Adult Social Care,Older People 65&Over inc OP-MH,OP Hosp - Residential Care Ext,Third Party Payments,Private Contractors,Miscellaneous Agency Services,20110404,236,"3,613.50",Revenue,NEWENT HOUSE
Adult Social Care,Adlt u65 Learning Disabilities,LD Residential Care External,Third Party Payments,Private Contractors,Miscellaneous Agency Services,20110404,237,"4,984.60",Revenue,ODYSSEY CARE SOLUTIONS
Adult Social Care,Adlt u65 Learning Disabilities,LD Comm -Residential-Orch Hill,Third Party Payments,Private Contractors,Miscellaneous Agency Services,20110404,238,"5,984.08",Revenue,PROSPECT HOUSING & SUPPORT SER
Adult Social Care,Adult u65 Phys/Sensory Impair,PD EAST TEAM-Residential,Third Party Payments,Private Contractors,Miscellaneous Agency Services,20110404,239,715.00,Revenue,VITALISE
Adult Social Care,Other Adult Services,Fixed & Variable Client Paymen,Third Party Payments,Private Contractors,Miscellaneous Agency Services,20110404,240,"37,839.30",Revenue,ABILITY HOUSING ASSOCIATION
Adult Social Care,Other Adult Services,Fixed & Variable Client Paymen,Third Party Payments,Private Contractors,Miscellaneous Agency Services,20110404,241,"2,993.30",Revenue,ANCHOR SP PAYMENT FROM SEP'03
Adult Social Care,Other Adult Services,Fixed & Variable Client Paymen,Third Party Payments,Private Contractors,Miscellaneous Agency Services,20110404,242,"1,522.50",Revenue,ASIAN ELDERLY GROUP OF MERTON
Adult Social Care,Other Adult Services,Fixed & Variable Client Paymen,Third Party Payments,Private Contractors,Miscellaneous Agency Services,20110404,243,"1,504.92",Revenue,CENTRAL & CECIL HOUSING TRUST
Adult Social Care,Other Adult Services,Fixed & Variable Client Paymen,Third Party Payments,Private Contractors,Miscellaneous Agency Services,20110404,244,"1,973.47",Revenue,CROYDON CHURCHES HOUSING ASSOC
Adult Social Care,Other Adult Services,Fixed & Variable Client Paymen,Third Party Payments,Private Contractors,Miscellaneous Agency Services,20110404,245,"10,150.75",Revenue,EQUINOX
Adult Social Care,Other Adult Services,Fixed & Variable Client Paymen,Third Party Payments,Private Contractors,Miscellaneous Agency Services,20110404,246,"12,458.43",Revenue,FAMILY HOUSING ASSOCIATION
Adult Social Care,Other Adult Services,Fixed & Variable Client Paymen,Third Party Payments,Private Contractors,Miscellaneous Agency Services,20110404,247,"20,171.75",Revenue,GRENFELL HOUSING ASSOCIATION
Adult Social Care,Other Adult Services,Fixed & Variable Client Paymen,Third Party Payments,Private Contractors,Miscellaneous Agency Services,20110404,248,"1,188.53",Revenue,HANOVER HOUSING ASSOCIATION
Adult Social Care,Other Adult Services,Fixed & Variable Client Paymen,Third Party Payments,Private Contractors,Miscellaneous Agency Services,20110404,249,"10,750.11",Revenue,HESTIA HOUSING AND SUPPORT
Adult Social Care,Other Adult Services,Fixed & Variable Client Paymen,Third Party Payments,Private Contractors,Miscellaneous Agency Services,20110406,250,663.81,Revenue,REDACTED
Adult Social Care,Other Adult Services,Fixed & Variable Client Paymen,Third Party Payments,Private Contractors,Miscellaneous Agency Services,20110404,251,"1,558.40",Revenue,AMICUS HORIZON
Adult Social Care,Other Adult Services,Fixed & Variable Client Paymen,Third Party Payments,Private Contractors,Miscellaneous Agency Services,20110404,252,"1,031.76",Revenue,HOUSING21
Adult Social Care,Other Adult Services,Fixed & Variable Client Paymen,Third Party Payments,Private Contractors,Miscellaneous Agency Services,20110404,253,537.64,Revenue,KINGSTON CHURCHES HSG ASSOC
Adult Social Care,Other Adult Services,Fixed & Variable Client Paymen,Third Party Payments,Private Contractors,Miscellaneous Agency Services,20110404,254,600.46,Revenue,KINGSTON CHURCHES ACTION ON HO
Adult Social Care,Other Adult Services,Fixed & Variable Client Paymen,Third Party Payments,Private Contractors,Miscellaneous Agency Services,20110404,255,"12,060.49",Revenue,MERTON ACT.FOR SINGLE HOMELESS
Adult Social Care,Other Adult Services,Fixed & Variable Client Paymen,Third Party Payments,Private Contractors,Miscellaneous Agency Services,20110404,256,"8,589.60",Revenue,MERTON REFUGE
Adult Social Care,Other Adult Services,Fixed & Variable Client Paymen,Third Party Payments,Private Contractors,Miscellaneous Agency Services,20110404,257,"6,086.41",Revenue,MERTON PRIORY HOMES
Adult Social Care,Other Adult Services,Fixed & Variable Client Paymen,Third Party Payments,Private Contractors,Miscellaneous Agency Services,20110404,258,"1,587.96",Revenue,MERTON PRIORY HOMES
Adult Social Care,Other Adult Services,Fixed & Variable Client Paymen,Third Party Payments,Private Contractors,Miscellaneous Agency Services,20110404,259,"6,814.18",Revenue,METROPOLITAN SUPPORT TRUST
Adult Social Care,Other Adult Services,Fixed & Variable Client Paymen,Third Party Payments,Private Contractors,Miscellaneous Agency Services,20110404,260,565.20,Revenue,MILLAT ASIAN HOUSING ASSOC
Adult Social Care,Other Adult Services,Fixed & Variable Client Paymen,Third Party Payments,Private Contractors,Miscellaneous Agency Services,20110404,261,"6,080.45",Revenue,NOTTING HILL HOUSING
Adult Social Care,Other Adult Services,Fixed & Variable Client Paymen,Third Party Payments,Private Contractors,Miscellaneous Agency Services,20110404,262,"5,541.61",Revenue,SANCTUARY CARE
Adult Social Care,Other Adult Services,Fixed & Variable Client Paymen,Third Party Payments,Private Contractors,Miscellaneous Agency Services,20110404,263,"8,782.11",Revenue,SERVITE HOUSES
Adult Social Care,Other Adult Services,Fixed & Variable Client Paymen,Third Party Payments,Private Contractors,Miscellaneous Agency Services,20110404,264,"26,886.66",Revenue,COMFORT CARE SERVICES (UK) LTD
Adult Social Care,Other Adult Services,Fixed & Variable Client Paymen,Third Party Payments,Private Contractors,Miscellaneous Agency Services,20110404,265,584.00,Revenue,SHAFTESBURY HOUSING ASSOC.
Adult Social Care,Other Adult Services,Fixed & Variable Client Paymen,Third Party Payments,Private Contractors,Miscellaneous Agency Services,20110404,266,"1,676.32",Revenue,REDACTED
Adult Social Care,Other Adult Services,Fixed & Variable Client Paymen,Third Party Payments,Private Contractors,Miscellaneous Agency Services,20110404,267,709.47,Revenue,THRESHOLD CENTRE LTD
Adult Social Care,Other Adult Services,Fixed & Variable Client Paymen,Third Party Payments,Private Contractors,Miscellaneous Agency Services,20110404,268,"19,895.34",Revenue,WANDLE HOUSING ASSOCIATION LTD
Adult Social Care,Other Adult Services,Fixed & Variable Client Paymen,Third Party Payments,Private Contractors,Miscellaneous Agency Services,20110404,269,"33,899.30",Revenue,WIMBLEDON & DISTRICT YMCA
Adult Social Care,Adult u65 Mental Health Needs,MH Adult Placement Cont-Wim,Third Party Payments,Private Contractors,Accommodation Based Support,20110405,270,"12,932.48",Revenue,SW LONDON ST GEORGES NHS TRUST
Adult Social Care,Adult u65 Mental Health Needs,MH Adult Placement Cont-Wim,Third Party Payments,Private Contractors,Accommodation Based Support,20110405,271,"12,932.48",Revenue,SW LONDON ST GEORGES NHS TRUST
Adult Social Care,Adult u65 Mental Health Needs,MH Adult Placement Cont-Wim,Third Party Payments,Private Contractors,Accommodation Based Support,20110405,272,"13,163.28",Revenue,SW LONDON ST GEORGES NHS TRUST
Adult Social Care,Adult u65 Mental Health Needs,MH Adult Placement Cont-Wim,Third Party Payments,Private Contractors,Accommodation Based Support,20110405,273,"2,020.70",Revenue,SW LONDON ST GEORGES NHS TRUST
Adult Social Care,Adult u65 Mental Health Needs,MH AdultPlacementCont-MSAOR,Third Party Payments,Private Contractors,Accommodation Based Support,20110405,274,"2,020.70",Revenue,SW LONDON ST GEORGES NHS TRUST
Adult Social Care,Adlt u65 Learning Disabilities,LD Comm -Other-Surrey Oak,Third Party Payments,Private Contractors,Miscellaneous Agency Services,20110405,275,"6,451.44",Revenue,SURREY & BORDERS PARTNERSHIP
Adult Social Care,Asylum seekers,AS Child Res Care  (No Grant),Third Party Payments,Private Contractors,Private Tenant/Landlord,20110405,276,600.00,Revenue,REDACTED
Childrens & Education Services,Children Looked After (24hrs+),CL Independent Fostering,Supplies and Services,Services,Long Term Fostering,20110405,277,"3,710.92",Revenue,ETHELBERT SPECIALIST HOMES LTD
Childrens & Education Services,Children Looked After (24hrs+),CL Independent Fostering,Supplies and Services,Services,Long Term Fostering,20110405,278,530.13,Revenue,ETHELBERT SPECIALIST HOMES LTD
Childrens & Education Services,Children Looked After (24hrs+),CL Independent Fostering,Supplies and Services,Services,Task Based Fostering,20110406,279,817.50,Revenue,HEATH FARM FAMILY SVS LTD.
Childrens & Education Services,Children Looked After (24hrs+),CL Independent Fostering,Supplies and Services,Services,Task Based Fostering,20110405,280,"6,913.62",Revenue,HILLCREST CARE LTD
Childrens & Education Services,Children Looked After (24hrs+),CL Independent Fostering,Supplies and Services,Services,Task Based Fostering,20110405,281,"7,185.80",Revenue,HILLCREST CARE LTD
Childrens & Education Services,Children Looked After (24hrs+),CL Independent Fostering,Supplies and Services,Services,Task Based Fostering,20110405,282,"6,913.62",Revenue,HILLCREST CARE LTD
Childrens & Education Services,Children Looked After (24hrs+),CL Independent Fostering,Supplies and Services,Services,Task Based Fostering,20110405,283,"4,384.02",Revenue,HILLCREST CARE LTD
Childrens & Education Services,Children Looked After (24hrs+),CL Independent Fostering,Supplies and Services,Services,Task Based Fostering,20110405,284,"4,384.02",Revenue,HILLCREST CARE LTD
Adult Social Care,Asylum seekers,AS Child - Res Care (Grant),Third Party Payments,Private Contractors,Miscellaneous Agency Services,20110405,285,"1,200.00",Revenue,LIVINGSTONE SUPPORTED HOUSING
Adult Social Care,Asylum seekers,AS Child Res Care  (No Grant),Third Party Payments,Private Contractors,Miscellaneous Agency Services,20110405,286,775.00,Revenue,LIVINGSTONE SUPPORTED HOUSING
Adult Social Care,Asylum seekers,AS Child Res Care  (No Grant),Third Party Payments,Private Contractors,Miscellaneous Agency Services,20110405,287,720.00,Revenue,LIVINGSTONE SUPPORTED HOUSING
Adult Social Care,Asylum seekers,AS Child - Res Care (Grant),Third Party Payments,Private Contractors,Miscellaneous Agency Services,20110405,288,"1,500.00",Revenue,LIVINGSTONE SUPPORTED HOUSING
Adult Social Care,Asylum seekers,AS Child - Res Care (Grant),Third Party Payments,Private Contractors,Miscellaneous Agency Services,20110405,289,"1,200.00",Revenue,LIVINGSTONE SUPPORTED HOUSING
Childrens & Education Services,Children Looked After (24hrs+),CL Independent Fostering,Supplies and Services,Services,Task Based Fostering,20110405,290,"5,256.88",Revenue,ORCHIDS FOSTERING FOR CHILDREN
Childrens & Education Services,Children Looked After (24hrs+),CL Independent Fostering,Supplies and Services,Services,Task Based Fostering,20110406,291,"5,943.94",Revenue,RAINBOW FOSTERING SERVICES LTD
Childrens & Education Services,Children Looked After (24hrs+),CL Independent Fostering,Supplies and Services,Services,Task Based Fostering,20110406,292,"5,943.94",Revenue,RAINBOW FOSTERING SERVICES LTD
Childrens & Education Services,Children Looked After (24hrs+),CL Independent Fostering,Supplies and Services,Services,Task Based Fostering,20110406,293,"6,214.88",Revenue,RAINBOW FOSTERING SERVICES LTD
Childrens & Education Services,Children Looked After (24hrs+),CL Independent Fostering,Supplies and Services,Services,Task Based Fostering,20110406,294,"5,943.94",Revenue,RAINBOW FOSTERING SERVICES LTD
Childrens & Education Services,Family Support Services,CS Day Care CWD,Third Party Payments,Private Contractors,Miscellaneous Agency Services,20110405,295,733.60,Revenue,SOLACE COMMUNITY CARE LTD
Childrens & Education Services,Children Looked After (24hrs+),CL Residential Care Homes CLA,Third Party Payments,Private Contractors,Miscellaneous Agency Services,20110405,296,"13,285.67",Revenue,REDACTED
Adult Social Care,Adult u65 Phys/Sensory Impair,PD WEST TEAM-Homecare,Third Party Payments,Private Contractors,Miscellaneous Agency Services,20110405,297,"1,085.99",Revenue,ABLE COMMUNITY CARE
Adult Social Care,Adlt u65 Learning Disabilities,LD Comm -Home Care-Campus Hm,Third Party Payments,Private Contractors,Miscellaneous Agency Services,20110405,298,"11,356.91",Revenue,CHOICE SUPPORT
Adult Social Care,Adlt u65 Learning Disabilities,LD Comm -Home Care-Campus Hm,Third Party Payments,Private Contractors,Miscellaneous Agency Services,20110405,299,"11,356.91",Revenue,CHOICE SUPPORT
Adult Social Care,Older People 65&Over inc OP-MH,OP East - Home Care External,Third Party Payments,Private Contractors,Miscellaneous Agency Services,20110405,300,"1,554.56",Revenue,COMPASSIONATE CARING AGENCY UK
Adult Social Care,Older People 65&Over inc OP-MH,OP West - Home Care External,Third Party Payments,Private Contractors,Miscellaneous Agency Services,20110405,301,"2,067.32",Revenue,COMPASSIONATE CARING AGENCY UK
Adult Social Care,Older People 65&Over inc OP-MH,OP East - Home Care External,Third Party Payments,Private Contractors,Miscellaneous Agency Services,20110405,302,"1,760.48",Revenue,COMPASSIONATE CARING AGENCY UK
Adult Social Care,Older People 65&Over inc OP-MH,OP West - Home Care External,Third Party Payments,Private Contractors,Miscellaneous Agency Services,20110405,303,"1,631.84",Revenue,COMPASSIONATE CARING AGENCY UK
Adult Social Care,Older People 65&Over inc OP-MH,OP East - Home Care External,Third Party Payments,Private Contractors,Miscellaneous Agency Services,20110405,304,"2,085.36",Revenue,COMPASSIONATE CARING AGENCY UK
Adult Social Care,Adult u65 Phys/Sensory Impair,PD EAST TEAM-Homecare,Third Party Payments,Private Contractors,Miscellaneous Agency Services,20110405,305,907.97,Revenue,COMPASSIONATE CARING AGENCY UK
Adult Social Care,Older People 65&Over inc OP-MH,OP East - Home Care External,Third Party Payments,Private Contractors,Miscellaneous Agency Services,20110405,306,"1,972.48",Revenue,COMPASSIONATE CARING AGENCY UK
Adult Social Care,Older People 65&Over inc OP-MH,OP West - Home Care External,Third Party Payments,Private Contractors,Miscellaneous Agency Services,20110405,307,984.76,Revenue,HFH HOMECARE LTD
Adult Social Care,Older People 65&Over inc OP-MH,OP East - Carer Services,Third Party Payments,Private Contractors,Miscellaneous Agency Services,20110405,308,"2,376.55",Revenue,HFH HOMECARE LTD
Adult Social Care,Older People 65&Over inc OP-MH,OP East - Home Care External,Third Party Payments,Private Contractors,Miscellaneous Agency Services,20110405,309,"2,386.37",Revenue,HFH HOMECARE LTD
Adult Social Care,Adlt u65 Learning Disabilities,LD Home Care External,Third Party Payments,Private Contractors,Miscellaneous Agency Services,20110405,310,"9,377.60",Revenue,METROPOLITAN SUPPORT TRUST
Adult Social Care,Adlt u65 Learning Disabilities,LD Home Care External,Third Party Payments,Private Contractors,Miscellaneous Agency Services,20110405,311,"3,446.08",Revenue,ODYSSEY CARE SOLUTIONS
Adult Social Care,Adult u65 Phys/Sensory Impair,PD EAST TEAM-Homecare,Third Party Payments,Private Contractors,Miscellaneous Agency Services,20110405,312,777.60,Revenue,ODYSSEY CARE SOLUTIONS
Adult Social Care,Adult u65 Phys/Sensory Impair,PD EAST TEAM-Homecare,Third Party Payments,Private Contractors,Miscellaneous Agency Services,20110405,313,523.04,Revenue,ODYSSEY CARE SOLUTIONS
Adult Social Care,Adult u65 Mental Health Needs,MH Home Care External - Wim,Third Party Payments,Private Contractors,Miscellaneous Agency Services,20110405,314,"1,966.80",Revenue,RNIB REDHILL COLLEGE
Adult Social Care,Adult u65 Mental Health Needs,MH Home Care External-MitWest,Third Party Payments,Private Contractors,Miscellaneous Agency Services,20110405,315,871.36,Revenue,COMFORT CARE SERVICES (UK) LTD
Adult Social Care,Adult u65 Phys/Sensory Impair,PD EAST TEAM-Homecare,Third Party Payments,Private Contractors,Miscellaneous Agency Services,20110405,316,608.00,Revenue,SWEET TREE HOME CARE SERVICES
Adult Social Care,Older People 65&Over inc OP-MH,OP East - Residential Care Ext,Third Party Payments,Private Contractors,Miscellaneous Agency Services,20110405,317,"1,717.80",Revenue,REDACTED
Adult Social Care,Adult u65 Mental Health Needs,MH Hostels/B & B- Mitcham West,Third Party Payments,Private Contractors,Miscellaneous Agency Services,20110405,318,"1,000.00",Revenue,ASTRA HOMES
Adult Social Care,Adult u65 Mental Health Needs,MH Hostels/B & B- Mitcham West,Third Party Payments,Private Contractors,Miscellaneous Agency Services,20110405,319,"1,000.00",Revenue,ASTRA HOMES
Adult Social Care,Adult u65 Mental Health Needs,MH Hostels/B & B- Mitcham West,Third Party Payments,Private Contractors,Miscellaneous Agency Services,20110405,320,"1,000.00",Revenue,ASTRA HOMES
Adult Social Care,Adult u65 Mental Health Needs,MH Hostels/B & B- Mitcham West,Third Party Payments,Private Contractors,Miscellaneous Agency Services,20110405,321,"1,270.00",Revenue,ASTRA HOMES
Adult Social Care,Adult u65 Mental Health Needs,MH Hostels/B & B- Mitcham West,Third Party Payments,Private Contractors,Miscellaneous Agency Services,20110405,322,"1,000.00",Revenue,ASTRA HOMES
Adult Social Care,Adult u65 Mental Health Needs,MH Hostels/B & B- Mitcham West,Third Party Payments,Private Contractors,Miscellaneous Agency Services,20110405,323,"1,000.00",Revenue,ASTRA HOMES
Adult Social Care,Adult u65 Mental Health Needs,MH Hostels/B & B- Mitcham West,Third Party Payments,Private Contractors,Miscellaneous Agency Services,20110405,324,"1,270.00",Revenue,ASTRA HOMES
Adult Social Care,Other Adult Services,MH Residential Care Ext- SM&A,Third Party Payments,Private Contractors,Miscellaneous Agency Services,20110405,325,"1,045.88",Revenue,CRANSTOUN DRUG SERVICES
Adult Social Care,Adult u65 Mental Health Needs,MH Res Care Ext- Mitcham West,Third Party Payments,Private Contractors,Miscellaneous Agency Services,20110405,326,"1,944.12",Revenue,CRANSTOUN DRUG SERVICES
Adult Social Care,Other Adult Services,MH Residential Care Ext- SM&A,Third Party Payments,Private Contractors,Miscellaneous Agency Services,20110405,327,"1,045.88",Revenue,CRANSTOUN DRUG SERVICES
Adult Social Care,Adult u65 Mental Health Needs,MH Res Care Ext- Mitcham West,Third Party Payments,Private Contractors,Miscellaneous Agency Services,20110405,328,"1,944.12",Revenue,CRANSTOUN DRUG SERVICES
Adult Social Care,Other Adult Services,MH Residential Care Ext- SM&A,Third Party Payments,Private Contractors,Miscellaneous Agency Services,20110405,329,"1,045.88",Revenue,CRANSTOUN DRUG SERVICES
Adult Social Care,Adult u65 Mental Health Needs,MH Res Care Ext- Mitcham West,Third Party Payments,Private Contractors,Miscellaneous Agency Services,20110405,330,"1,944.12",Revenue,CRANSTOUN DRUG SERVICES
Adult Social Care,Other Adult Services,MH Residential Care Ext- SM&A,Third Party Payments,Private Contractors,Miscellaneous Agency Services,20110405,331,522.94,Revenue,CRANSTOUN DRUG SERVICES
Adult Social Care,Adult u65 Mental Health Needs,MH Res Care Ext- Mitcham West,Third Party Payments,Private Contractors,Miscellaneous Agency Services,20110405,332,972.06,Revenue,CRANSTOUN DRUG SERVICES
Adult Social Care,Other Adult Services,MH Residential Care Ext- SM&A,Third Party Payments,Private Contractors,Miscellaneous Agency Services,20110405,333,"1,045.88",Revenue,CRANSTOUN DRUG SERVICES
Adult Social Care,Adult u65 Mental Health Needs,MH Res Care Ext- Mitcham West,Third Party Payments,Private Contractors,Miscellaneous Agency Services,20110405,334,"1,944.12",Revenue,CRANSTOUN DRUG SERVICES
Adult Social Care,Adult u65 Mental Health Needs,MH Res Care Ext- Mitcham West,Third Party Payments,Private Contractors,Miscellaneous Agency Services,20110405,335,"4,455.75",Revenue,COMMUNITY HOUSING & THERAPY
Adult Social Care,Adult u65 Mental Health Needs,MH ResidentialCare Ext - Wim,Third Party Payments,Private Contractors,Miscellaneous Agency Services,20110405,336,"4,058.75",Revenue,COMMUNITY HOUSING & THERAPY
Adult Social Care,Adlt u65 Learning Disabilities,LD Residential Care External,Third Party Payments,Private Contractors,Miscellaneous Agency Services,20110405,337,"4,113.72",Revenue,ESTHER CARE HOMES LIMITED
Adult Social Care,Adlt u65 Learning Disabilities,LD Residential Care External,Third Party Payments,Private Contractors,Miscellaneous Agency Services,20110406,338,"-16,013.34",Revenue,HARBOUR CARE GROUP
Adult Social Care,Adlt u65 Learning Disabilities,LD Comm -Residential-Campus Hm,Third Party Payments,Private Contractors,Miscellaneous Agency Services,20110406,339,"23,130.38",Revenue,HARBOUR CARE GROUP
Adult Social Care,Adlt u65 Learning Disabilities,LD Residential Care External,Third Party Payments,Private Contractors,Miscellaneous Agency Services,20110405,340,"2,815.75",Revenue,MACINTYRE
Adult Social Care,Adult u65 Mental Health Needs,MH ResidentialCare Ext - Wim,Third Party Payments,Private Contractors,Miscellaneous Agency Services,20110405,341,"3,171.08",Revenue,MENTAL HEALTH CARE (UK) LTD
Adult Social Care,Adlt u65 Learning Disabilities,LD Residential Care External,Third Party Payments,Private Contractors,Miscellaneous Agency Services,20110405,342,"5,288.04",Revenue,REDACTED
Adult Social Care,Adlt u65 Learning Disabilities,LD Residential Care External,Third Party Payments,Private Contractors,Miscellaneous Agency Services,20110406,343,"3,612.24",Revenue,THE SONS OF DIVINE PROVIDENCE
Adult Social Care,Older People 65&Over inc OP-MH,OP West - Nursing Care,Third Party Payments,Private Contractors,Miscellaneous Agency Services,20110405,344,"2,300.00",Revenue,SOUTHDOWN NURSING + RES.HOME
Adult Social Care,Older People 65&Over inc OP-MH,OP West - Nursing Care,Third Party Payments,Private Contractors,Miscellaneous Agency Services,20110405,345,"2,300.00",Revenue,SOUTHDOWN NURSING + RES.HOME
Adult Social Care,Older People 65&Over inc OP-MH,OP East - Residential Care Ext,Third Party Payments,Private Contractors,Miscellaneous Agency Services,20110405,346,"1,703.44",Revenue,SOUTHPARK RESIDENTIAL HOME
Adult Social Care,Older People 65&Over inc OP-MH,OP Hosp - Residential Care Ext,Third Party Payments,Private Contractors,Miscellaneous Agency Services,20110405,347,"1,812.40",Revenue,SOUTHPARK RESIDENTIAL HOME
Adult Social Care,Older People 65&Over inc OP-MH,OP West - Residential Care Ext,Third Party Payments,Private Contractors,Miscellaneous Agency Services,20110405,348,"1,784.20",Revenue,SOUTHPARK RESIDENTIAL HOME
Adult Social Care,Older People 65&Over inc OP-MH,OP East - Residential Care Ext,Third Party Payments,Private Contractors,Miscellaneous Agency Services,20110405,349,"3,164.00",Revenue,SUNRISE SENIOR LIVING RES.HOME
Adult Social Care,Adlt u65 Learning Disabilities,LD Comm-Residential-Surrey Oak,Third Party Payments,Private Contractors,Miscellaneous Agency Services,20110405,350,"26,236.70",Revenue,SURREY & BORDERS PARTNERSHIP
Adult Social Care,Older People 65&Over inc OP-MH,OP West - Nursing Care,Third Party Payments,Private Contractors,Miscellaneous Agency Services,20110405,351,"4,194.02",Revenue,WESTMINSTER HEALTHCARE LTD
Childrens & Education Services,Children Looked After (24hrs+),CL Fostering Services,Supplies and Services,Services,Task Based Fostering,20110405,352,"1,543.90",Revenue,REDACTED
Childrens & Education Services,Children Looked After (24hrs+),CL Fostering Services,Supplies and Services,Services,Task Based Fostering,20110405,353,780.44,Revenue,REDACTED
Childrens & Education Services,Children Looked After (24hrs+),CL Fostering Services,Supplies and Services,Services,Task Based Fostering,20110405,354,"1,502.66",Revenue,REDACTED
Childrens & Education Services,Children Looked After (24hrs+),CL Fostering Services,Supplies and Services,Services,Task Based Fostering,20110405,355,"2,541.08",Revenue,REDACTED
Childrens & Education Services,Children Looked After (24hrs+),CL Fostering Services,Supplies and Services,Services,Task Based Fostering,20110405,356,"2,266.12",Revenue,REDACTED
Childrens & Education Services,Children Looked After (24hrs+),CL Fostering Services,Supplies and Services,Services,Task Based Fostering,20110405,357,"1,185.16",Revenue,REDACTED
Childrens & Education Services,Children Looked After (24hrs+),CL Fostering Services,Supplies and Services,Services,Task Based Fostering,20110405,358,780.44,Revenue,REDACTED
Childrens & Education Services,Children Looked After (24hrs+),CL Fostering Services,Supplies and Services,Services,Task Based Fostering,20110405,359,"2,324.34",Revenue,REDACTED
Childrens & Education Services,Children Looked After (24hrs+),CL Fostering Services,Supplies and Services,Services,Task Based Fostering,20110405,360,"1,543.90",Revenue,REDACTED
Childrens & Education Services,Children Looked After (24hrs+),CL Fostering Services,Supplies and Services,Services,Task Based Fostering,20110405,361,"1,560.88",Revenue,REDACTED
Childrens & Education Services,Children Looked After (24hrs+),CL Fostering Services,Supplies and Services,Services,Task Based Fostering,20110405,362,"2,500.88",Revenue,REDACTED
Childrens & Education Services,Children Looked After (24hrs+),CL Fostering Services,Supplies and Services,Services,Task Based Fostering,20110405,363,"1,560.88",Revenue,REDACTED
Childrens & Education Services,Children Looked After (24hrs+),CL Fostering Services,Supplies and Services,Services,Task Based Fostering,20110405,364,"1,478.40",Revenue,REDACTED
Childrens & Education Services,Children Looked After (24hrs+),CL Fostering Services,Supplies and Services,Services,Task Based Fostering,20110405,365,"1,560.88",Revenue,REDACTED
Childrens & Education Services,Children Looked After (24hrs+),CL Fostering Services,Supplies and Services,Services,Task Based Fostering,20110405,366,"2,724.48",Revenue,REDACTED
Childrens & Education Services,Children Looked After (24hrs+),CL Fostering Services,Supplies and Services,Services,Task Based Fostering,20110405,367,"1,478.40",Revenue,REDACTED
Childrens & Education Services,Children Looked After (24hrs+),CL Fostering Services,Supplies and Services,Services,Task Based Fostering,20110405,368,780.44,Revenue,REDACTED
Childrens & Education Services,Children Looked After (24hrs+),CL Fostering Services,Supplies and Services,Services,Task Based Fostering,20110405,369,"1,502.66",Revenue,REDACTED
Childrens & Education Services,Children Looked After (24hrs+),CL Fostering Services,Supplies and Services,Services,Task Based Fostering,20110405,370,"2,217.60",Revenue,REDACTED
Childrens & Education Services,Children Looked After (24hrs+),CL Fostering Services,Supplies and Services,Services,Task Based Fostering,20110405,371,"2,264.94",Revenue,REDACTED
Childrens & Education Services,Children Looked After (24hrs+),CL Fostering Services,Supplies and Services,Services,Task Based Fostering,20110405,372,739.20,Revenue,REDACTED
Childrens & Education Services,Children Looked After (24hrs+),CL Fostering Services,Supplies and Services,Services,Task Based Fostering,20110405,373,"2,217.60",Revenue,REDACTED
Childrens & Education Services,Children Looked After (24hrs+),CL Fostering Services,Supplies and Services,Services,Task Based Fostering,20110405,374,780.44,Revenue,REDACTED
Childrens & Education Services,Children Looked After (24hrs+),CL Independent Fostering,Supplies and Services,Services,Task Based Fostering,20110406,375,"4,887.58",Revenue,BANYA
Childrens & Education Services,Children Looked After (24hrs+),CL Independent Fostering,Supplies and Services,Services,Task Based Fostering,20110406,376,"10,185.36",Revenue,OUTLOOK FOSTERING SERVICES LTD
Childrens & Education Services,Children Looked After (24hrs+),CL Independent Fostering,Supplies and Services,Services,Task Based Fostering,20110406,377,"5,176.98",Revenue,RAINBOW FOSTERING SERVICES LTD
Adult Social Care,Older People 65&Over inc OP-MH,OP Hosp - Nursing Care,Third Party Payments,Private Contractors,Miscellaneous Agency Services,20110406,378,650.00,Revenue,BUPA CARE HOMES
Adult Social Care,Older People 65&Over inc OP-MH,OP East - Residential Care Ext,Third Party Payments,Private Contractors,Miscellaneous Agency Services,20110406,379,"1,840.00",Revenue,CHARLTON HOUSE
Adult Social Care,Older People 65&Over inc OP-MH,OP Hosp - Residential Care Ext,Third Party Payments,Private Contractors,Miscellaneous Agency Services,20110406,380,"1,516.18",Revenue,CLOYDA REST HOME
Adult Social Care,Older People 65&Over inc OP-MH,OP Hosp - Residential Care Ext,Third Party Payments,Private Contractors,Miscellaneous Agency Services,20110406,381,"1,768.88",Revenue,CLOYDA REST HOME
Adult Social Care,Adlt u65 Learning Disabilities,LD Residential Care External,Third Party Payments,Private Contractors,Miscellaneous Agency Services,20110406,382,"7,468.76",Revenue,CORICH COMMUNITY CARE LTD
Adult Social Care,Adlt u65 Learning Disabilities,LD Residential Care External,Third Party Payments,Private Contractors,Miscellaneous Agency Services,20110406,383,"2,552.84",Revenue,FREEWAYS TRUST LTD
Adult Social Care,Older People 65&Over inc OP-MH,OP East - Nursing Care,Third Party Payments,Private Contractors,Miscellaneous Agency Services,20110406,384,"2,210.16",Revenue,GREAT WHEATLEY NURSING HOME
Adult Social Care,Older People 65&Over inc OP-MH,OP Hosp - Residential Care Ext,Third Party Payments,Private Contractors,Miscellaneous Agency Services,20110406,385,"2,200.00",Revenue,HASLINGTON RESIDENTIAL HOME
Adult Social Care,Adult u65 Phys/Sensory Impair,PD WEST TEAM-Nursing,Third Party Payments,Private Contractors,Miscellaneous Agency Services,20110406,386,"4,800.00",Revenue,HAVERING COURT NURSING HOME
Adult Social Care,Adlt u65 Learning Disabilities,LD Residential Care External,Third Party Payments,Private Contractors,Miscellaneous Agency Services,20110406,387,"5,288.83",Revenue,KENT AUTISTIC TRUST
Adult Social Care,Older People 65&Over inc OP-MH,OP West - Residential Care Ext,Third Party Payments,Private Contractors,Miscellaneous Agency Services,20110406,388,"1,812.40",Revenue,LAVENDER LODGE
Adult Social Care,Adlt u65 Learning Disabilities,LD Residential Care External,Third Party Payments,Private Contractors,Miscellaneous Agency Services,20110406,389,"2,633.52",Revenue,THE NAK CENTRE
Adult Social Care,Older People 65&Over inc OP-MH,OP Hosp - Nursing Care,Third Party Payments,Private Contractors,Miscellaneous Agency Services,20110406,390,"2,341.84",Revenue,PRIORY COURT CARE HOME
Adult Social Care,Older People 65&Over inc OP-MH,OP Hosp - Nursing Care,Third Party Payments,Private Contractors,Miscellaneous Agency Services,20110406,391,585.46,Revenue,ROYAL MASONIC BENEVOLENT INST.
Adult Social Care,Older People 65&Over inc OP-MH,OP Hosp - Residential Care Ext,Third Party Payments,Private Contractors,Miscellaneous Agency Services,20110406,392,"3,689.95",Revenue,SOUTHERN CROSS HEALTHCARE LTD
Adult Social Care,Older People 65&Over inc OP-MH,OP Wimbledon - Nursing Care,Third Party Payments,Private Contractors,Miscellaneous Agency Services,20110406,393,"-8,311.23",Revenue,SOUTHERN CROSS HEALTHCARE LTD
Adult Social Care,Older People 65&Over inc OP-MH,OP West - Residential Care Ext,Third Party Payments,Private Contractors,Miscellaneous Agency Services,20110406,394,"3,757.04",Revenue,SOUTHERN CROSS HEALTHCARE LTD
Adult Social Care,Older People 65&Over inc OP-MH,OP Hosp - Nursing Care,Third Party Payments,Private Contractors,Miscellaneous Agency Services,20110406,395,"6,712.92",Revenue,SOUTHERN CROSS HEALTHCARE LTD
Adult Social Care,Older People 65&Over inc OP-MH,OP East - Nursing Care,Third Party Payments,Private Contractors,Miscellaneous Agency Services,20110406,396,"11,188.20",Revenue,SOUTHERN CROSS HEALTHCARE LTD
Adult Social Care,Older People 65&Over inc OP-MH,OP Hosp - Residential Care Ext,Third Party Payments,Private Contractors,Miscellaneous Agency Services,20110406,397,"13,149.64",Revenue,SOUTHERN CROSS HEALTHCARE LTD
Adult Social Care,Older People 65&Over inc OP-MH,OP West - Nursing Care,Third Party Payments,Private Contractors,Miscellaneous Agency Services,20110406,398,"19,499.43",Revenue,SOUTHERN CROSS HEALTHCARE LTD
Adult Social Care,Older People 65&Over inc OP-MH,OP East - Residential Care Ext,Third Party Payments,Private Contractors,Miscellaneous Agency Services,20110406,399,"26,299.28",Revenue,SOUTHERN CROSS HEALTHCARE LTD
Adult Social Care,Older People 65&Over inc OP-MH,OP Hosp - Nursing Care,Third Party Payments,Private Contractors,Miscellaneous Agency Services,20110406,400,958.99,Revenue,SOUTHERN CROSS HEALTHCARE LTD
Adult Social Care,Adlt u65 Learning Disabilities,LD Comm-Residential-Surrey Oak,Third Party Payments,Private Contractors,Miscellaneous Agency Services,20110418,401,"6,120.80",Revenue,LONDON BOROUGH OF SUTTON
Adult Social Care,Other Adult Services,MH Residential Care Ext- SM&A,Third Party Payments,Private Contractors,Miscellaneous Agency Services,20110406,402,"2,036.48",Revenue,TURNING POINT SERVICES LTD
Adult Social Care,Older People 65&Over inc OP-MH,OP East - Carer Services,Third Party Payments,Private Contractors,Miscellaneous Agency Services,20110406,403,582.75,Revenue,CLASSIC HOME CARE SERVICES
Adult Social Care,Adult u65 Phys/Sensory Impair,PD EAST TEAM-Homecare,Third Party Payments,Private Contractors,Miscellaneous Agency Services,20110406,404,633.26,Revenue,COMMUNITY HOME CARE PROVIDER
Adult Social Care,Older People 65&Over inc OP-MH,OP East - Carer Services,Third Party Payments,Private Contractors,Miscellaneous Agency Services,20110406,405,656.61,Revenue,COMMUNITY HOME CARE PROVIDER
Adult Social Care,Older People 65&Over inc OP-MH,OP East - Home Care External,Third Party Payments,Private Contractors,Miscellaneous Agency Services,20110406,406,"1,424.69",Revenue,COMMUNITY HOME CARE PROVIDER
Adult Social Care,Adlt u65 Learning Disabilities,LD Day Care Agency,Third Party Payments,Private Contractors,Miscellaneous Agency Services,20110406,407,630.00,Revenue,MERTON MENCAP
Adult Social Care,Adlt u65 Learning Disabilities,LD Home Care External,Third Party Payments,Private Contractors,Miscellaneous Agency Services,20110406,408,812.24,Revenue,ROYAL MENCAP SOCIETY
Adult Social Care,Adlt u65 Learning Disabilities,LD Day Care Agency,Third Party Payments,Private Contractors,Miscellaneous Agency Services,20110406,409,646.56,Revenue,UNITED RESPONSE
Childrens & Education Services,Other Ch's & Family Services,CL Setting Up Home Allowance,Third Party Payments,Private Contractors,Miscellaneous Agency Services,20110414,410,926.96,Revenue,ARGOS BUSINESS SOLUTIONS LTD
Childrens & Education Services,Children's Services - C & S W,CL IndepAssess Expert Witness,Third Party Payments,Private Contractors,Miscellaneous Agency Services,20110415,411,538.33,Revenue,REDACTED
Childrens & Education Services,Children's Services - C & S W,CL IndepAssess Expert Witness,Third Party Payments,Private Contractors,Miscellaneous Agency Services,20110414,412,"1,595.00",Revenue,REDACTED
Childrens & Education Services,Children's Services - C & S W,CL IndepAssess Expert Witness,Third Party Payments,Private Contractors,Miscellaneous Agency Services,20110415,413,650.00,Revenue,SWINDON COMMUNITY CAMHS
Childrens & Education Services,Other Ch's & Family Services,CL Setting Up Home Allowance,Third Party Payments,Private Contractors,Miscellaneous Agency Services,20110414,414,808.50,Revenue,WRIXON CARE SERVICES
Adult Social Care,Adult u65 Phys/Sensory Impair,PD EAST TEAM-Direct Payment,Third Party Payments,Private Contractors,Direct Payments,20110407,415,570.44,Revenue,REDACTED
Adult Social Care,Older People 65&Over inc OP-MH,OP East -Direct Payment Scheme,Third Party Payments,Private Contractors,Direct Payments,20110407,416,"1,856.20",Revenue,REDACTED
Adult Social Care,Adult u65 Phys/Sensory Impair,PD WEST TEAM-Direct Payment,Third Party Payments,Private Contractors,Direct Payments,20110407,417,596.40,Revenue,REDACTED
Adult Social Care,Adlt u65 Learning Disabilities,LD Direct Payment Scheme,Third Party Payments,Private Contractors,Direct Payments,20110407,418,593.88,Revenue,REDACTED
Adult Social Care,Adult u65 Phys/Sensory Impair,PD EAST TEAM-Direct Payment,Third Party Payments,Private Contractors,Direct Payments,20110407,419,"1,818.64",Revenue,REDACTED
Adult Social Care,Older People 65&Over inc OP-MH,OP Hosp -Direct Payment Scheme,Third Party Payments,Private Contractors,Direct Payments,20110407,420,608.28,Revenue,REDACTED
Adult Social Care,Adult u65 Phys/Sensory Impair,PD WEST TEAM-Direct Payment,Third Party Payments,Private Contractors,Direct Payments,20110407,421,792.00,Revenue,REDACTED
Adult Social Care,Older People 65&Over inc OP-MH,OP West -Direct Payment Scheme,Third Party Payments,Private Contractors,Direct Payments,20110407,422,"1,566.56",Revenue,REDACTED
Adult Social Care,Older People 65&Over inc OP-MH,OP East -Direct Payment Scheme,Third Party Payments,Private Contractors,Direct Payments,20110407,423,719.80,Revenue,REDACTED
Adult Social Care,Older People 65&Over inc OP-MH,OP West - Residential Care Ext,Third Party Payments,Private Contractors,Miscellaneous Agency Services,20110407,424,"1,380.00",Revenue,ASHMOUNT RESIDENTIAL & NURSING
Adult Social Care,Adlt u65 Learning Disabilities,LD Residential Care External,Third Party Payments,Private Contractors,Miscellaneous Agency Services,20110407,425,"4,688.88",Revenue,CRAEGMOOR FACILITIES CO LTD
Adult Social Care,Adlt u65 Learning Disabilities,LD Residential Care External,Third Party Payments,Private Contractors,Miscellaneous Agency Services,20110407,426,"3,210.36",Revenue,CRAEGMOOR FACILITIES CO LTD
Adult Social Care,Adlt u65 Learning Disabilities,LD Residential Care External,Third Party Payments,Private Contractors,Miscellaneous Agency Services,20110408,427,"5,931.68",Revenue,THE LEO TRUST
Adult Social Care,Adlt u65 Learning Disabilities,LD Home Care External,Third Party Payments,Private Contractors,Miscellaneous Agency Services,20110407,428,"2,800.00",Revenue,ABLE COMMUNITY CARE
Adult Social Care,Adlt u65 Learning Disabilities,LD Home Care External,Third Party Payments,Private Contractors,Miscellaneous Agency Services,20110407,429,655.30,Revenue,BEECH HOME CARE SERVICES
Adult Social Care,Adlt u65 Learning Disabilities,LD Home Care External,Third Party Payments,Private Contractors,Miscellaneous Agency Services,20110407,430,"7,400.40",Revenue,COMMUNITY HOME CARE PROVIDER
Adult Social Care,Older People 65&Over inc OP-MH,OP East - Home Care External,Third Party Payments,Private Contractors,Miscellaneous Agency Services,20110407,431,686.00,Revenue,COMPASSIONATE CARING AGENCY UK
Adult Social Care,Older People 65&Over inc OP-MH,OP East - Home Care External,Third Party Payments,Private Contractors,Miscellaneous Agency Services,20110407,432,"2,170.88",Revenue,COMPASSIONATE CARING AGENCY UK
Adult Social Care,Older People 65&Over inc OP-MH,OP West - Home Care External,Third Party Payments,Private Contractors,Miscellaneous Agency Services,20110407,433,"1,342.92",Revenue,COMPASSIONATE CARING AGENCY UK
Adult Social Care,Adult u65 Phys/Sensory Impair,PD WEST TEAM-Homecare,Third Party Payments,Private Contractors,Miscellaneous Agency Services,20110407,434,"1,603.10",Revenue,COMPASSIONATE CARING AGENCY UK
Adult Social Care,Adult u65 Phys/Sensory Impair,PD EAST TEAM-Homecare,Third Party Payments,Private Contractors,Miscellaneous Agency Services,20110407,435,"1,823.80",Revenue,COMPASSIONATE CARING AGENCY UK
Adult Social Care,Older People 65&Over inc OP-MH,OP West - Home Care External,Third Party Payments,Private Contractors,Miscellaneous Agency Services,20110407,436,"2,032.80",Revenue,COMPASSIONATE CARING AGENCY UK
Adult Social Care,Older People 65&Over inc OP-MH,OP East - Home Care External,Third Party Payments,Private Contractors,Miscellaneous Agency Services,20110407,437,739.78,Revenue,COMPASSIONATE CARING AGENCY UK
Adult Social Care,Older People 65&Over inc OP-MH,OP West - Home Care External,Third Party Payments,Private Contractors,Miscellaneous Agency Services,20110407,438,"2,619.60",Revenue,COMPASSIONATE CARING AGENCY UK
Adult Social Care,Older People 65&Over inc OP-MH,OP West - Home Care External,Third Party Payments,Private Contractors,Miscellaneous Agency Services,20110407,439,"2,170.88",Revenue,COMPASSIONATE CARING AGENCY UK
Adult Social Care,Older People 65&Over inc OP-MH,OP Hosp - Home Care External,Third Party Payments,Private Contractors,Miscellaneous Agency Services,20110407,440,"1,511.98",Revenue,COMPASSIONATE CARING AGENCY UK
Adult Social Care,Older People 65&Over inc OP-MH,OP East - Home Care External,Third Party Payments,Private Contractors,Miscellaneous Agency Services,20110407,441,"2,085.36",Revenue,COMPASSIONATE CARING AGENCY UK
Adult Social Care,Adult u65 Phys/Sensory Impair,PD EAST TEAM-Homecare,Third Party Payments,Private Contractors,Miscellaneous Agency Services,20110407,442,"1,013.08",Revenue,COMPASSIONATE CARING AGENCY UK
Adult Social Care,Adult u65 Phys/Sensory Impair,PD EAST TEAM-Homecare,Third Party Payments,Private Contractors,Miscellaneous Agency Services,20110407,443,"2,218.59",Revenue,COMPASSIONATE CARING AGENCY UK
Adult Social Care,Older People 65&Over inc OP-MH,OP West - Home Care External,Third Party Payments,Private Contractors,Miscellaneous Agency Services,20110407,444,"2,171.68",Revenue,COMPASSIONATE CARING AGENCY UK
Adult Social Care,Older People 65&Over inc OP-MH,OP East - Home Care External,Third Party Payments,Private Contractors,Miscellaneous Agency Services,20110407,445,"1,972.48",Revenue,COMPASSIONATE CARING AGENCY UK
Adult Social Care,Older People 65&Over inc OP-MH,OP East - Home Care External,Third Party Payments,Private Contractors,Miscellaneous Agency Services,20110407,446,"2,580.28",Revenue,COMPASSIONATE CARING AGENCY UK
Adult Social Care,Adult u65 Phys/Sensory Impair,PD EAST TEAM-Homecare,Third Party Payments,Private Contractors,Miscellaneous Agency Services,20110407,447,672.00,Revenue,REDACTED
Adult Social Care,Older People 65&Over inc OP-MH,OP East - Daycare,Third Party Payments,Private Contractors,Miscellaneous Agency Services,20110407,448,779.40,Revenue,SOLACE COMMUNITY CARE LTD
Adult Social Care,Older People 65&Over inc OP-MH,OP East -Direct Payment Scheme,Third Party Payments,Private Contractors,Direct Payments,20110407,449,"1,800.00",Revenue,REDACTED
Adult Social Care,Adult u65 Phys/Sensory Impair,PS Other Serv - NRTPF,Third Party Payments,Private Contractors,Miscellaneous Agency Services,20110407,450,562.36,Revenue,SUPREME FOODS
Childrens & Education Services,Children Looked After (24hrs+),CL Residential Care Homes CLA,Third Party Payments,Private Contractors,Miscellaneous Agency Services,20110407,451,"4,388.42",Revenue,REDACTED
Childrens & Education Services,Children Looked After (24hrs+),CL Residential Care Homes CLA,Third Party Payments,Private Contractors,Miscellaneous Agency Services,20110407,452,"4,750.00",Revenue,REDACTED
Childrens & Education Services,Children Looked After (24hrs+),CL Residential Care Homes CLA,Third Party Payments,Private Contractors,Miscellaneous Agency Services,20110407,453,"3,800.00",Revenue,REDACTED
Childrens & Education Services,Children Looked After (24hrs+),CL Residential Care Homes CLA,Third Party Payments,Private Contractors,Miscellaneous Agency Services,20110407,454,"12,073.60",Revenue,REDACTED
Childrens & Education Services,Children Looked After (24hrs+),CL Mother&BabyAssessment-Court,Third Party Payments,Private Contractors,Miscellaneous Agency Services,20110407,455,"14,720.00",Revenue,REDACTED
Childrens & Education Services,Children Looked After (24hrs+),CL Independent Fostering,Supplies and Services,Services,Task Based Fostering,20110407,456,"5,645.92",Revenue,FOSTERING OUTCOMES LTD
Childrens & Education Services,Children Looked After (24hrs+),CL Independent Fostering,Supplies and Services,Services,Task Based Fostering,20110407,457,"9,291.52",Revenue,FOSTERING OUTCOMES LTD
Childrens & Education Services,Children Looked After (24hrs+),CL Independent Fostering,Supplies and Services,Services,Task Based Fostering,20110407,458,"6,273.12",Revenue,FOSTERING OUTCOMES LTD
Childrens & Education Services,Children Looked After (24hrs+),CL Independent Fostering,Supplies and Services,Services,Task Based Fostering,20110407,459,"2,688.96",Revenue,KINDERCARE FOSTERING
Childrens & Education Services,Other Ch's & Family Services,CL Leaving Care/Supp Lodgings,Third Party Payments,Private Contractors,Miscellaneous Agency Services,20110407,460,"2,711.50",Revenue,YMCA LONDON SOUTH WEST
Childrens & Education Services,Children Looked After (24hrs+),CL Independent Fostering,Supplies and Services,Services,Task Based Fostering,20110408,461,"5,813.92",Revenue,RAINBOW FOSTERING SERVICES LTD
Childrens & Education Services,Children Looked After (24hrs+),CL Independent Fostering,Supplies and Services,Services,Task Based Fostering,20110407,462,"1,569.26",Revenue,CORNERWAYS FOSTERING SERV.LTD
Childrens & Education Services,Children Looked After (24hrs+),CL Independent Fostering,Supplies and Services,Services,Task Based Fostering,20110407,463,"1,569.26",Revenue,CORNERWAYS FOSTERING SERV.LTD
Childrens & Education Services,Family Support Services,CS Direct Payments,Third Party Payments,Private Contractors,Direct Payments,20110407,464,613.20,Revenue,REDACTED
Adult Social Care,Adult u65 Mental Health Needs,MH Hostels/B & B - NRTPF,Third Party Payments,Private Contractors,Miscellaneous Agency Services,20110408,465,892.08,Revenue,ADMINLAND LTD
Adult Social Care,Older People 65&Over inc OP-MH,OP East - Nursing Care,Third Party Payments,Private Contractors,Miscellaneous Agency Services,20110408,466,"2,800.00",Revenue,THE BRADBURY CENT.NURSING HOME
Adult Social Care,Adult u65 Mental Health Needs,MH Nursing Care - Morden,Third Party Payments,Private Contractors,Miscellaneous Agency Services,20110408,467,"2,716.52",Revenue,CARE UNLIMITED
Adult Social Care,Adlt u65 Learning Disabilities,LD Nursing Care,Third Party Payments,Private Contractors,Miscellaneous Agency Services,20110408,468,"5,402.21",Revenue,HIGH HURLANDS HOMES
Adult Social Care,Older People 65&Over inc OP-MH,OP Mitcham-Residential CareExt,Third Party Payments,Private Contractors,Miscellaneous Agency Services,20110408,469,"1,812.40",Revenue,KELSTONE COURT NURSING HOME
Adult Social Care,Older People 65&Over inc OP-MH,OP Hosp - Nursing Care,Third Party Payments,Private Contractors,Miscellaneous Agency Services,20110408,470,"2,341.84",Revenue,KELSTONE COURT NURSING HOME
Adult Social Care,Older People 65&Over inc OP-MH,OP West - Nursing Care,Third Party Payments,Private Contractors,Miscellaneous Agency Services,20110408,471,"1,254.56",Revenue,KELSTONE COURT NURSING HOME
Adult Social Care,Older People 65&Over inc OP-MH,OP Hosp - Nursing Care,Third Party Payments,Private Contractors,Miscellaneous Agency Services,20110408,472,"2,341.84",Revenue,SUTTON NURSING HOMES LTD
Adult Social Care,Older People 65&Over inc OP-MH,OP Hosp - Nursing Care,Third Party Payments,Private Contractors,Miscellaneous Agency Services,20110408,473,"2,767.04",Revenue,SUTTON NURSING HOMES LTD
Adult Social Care,Older People 65&Over inc OP-MH,OP Hosp - Nursing Care,Third Party Payments,Private Contractors,Miscellaneous Agency Services,20110408,474,"2,221.84",Revenue,SUTTON NURSING HOMES LTD
Adult Social Care,Adult u65 Mental Health Needs,MH ResidentialCare Ext - Wim,Third Party Payments,Private Contractors,Miscellaneous Agency Services,20110408,475,"2,247.52",Revenue,QUALITY CARE CHOICE LTD
Adult Social Care,Adult u65 Phys/Sensory Impair,PS Nursing Care - NRTPF,Third Party Payments,Private Contractors,Miscellaneous Agency Services,20110408,476,"2,341.84",Revenue,SUTTON COURT CARE CENTRE
Adult Social Care,Older People 65&Over inc OP-MH,OP West - Residential Care Ext,Third Party Payments,Private Contractors,Miscellaneous Agency Services,20110408,477,"2,100.00",Revenue,THE DEVONSHIRE RESID CARE HOME
Adult Social Care,Other Adult Services,MH Residential Care Ext - SM&D,Third Party Payments,Private Contractors,Miscellaneous Agency Services,20110408,478,"1,814.17",Revenue,WESTERN COUNSELLING SERVICES
Adult Social Care,Older People 65&Over inc OP-MH,OP West - Nursing Care,Third Party Payments,Private Contractors,Miscellaneous Agency Services,20110408,479,"2,173.96",Revenue,THE WHITE HOUSE NURSING HOME
Adult Social Care,Older People 65&Over inc OP-MH,OP West - Nursing Care,Third Party Payments,Private Contractors,Miscellaneous Agency Services,20110408,480,"2,233.00",Revenue,THE WHITE HOUSE NURSING HOME
Adult Social Care,Adult u65 Phys/Sensory Impair,PD WEST TEAM-Homecare,Third Party Payments,Private Contractors,Miscellaneous Agency Services,20110408,481,"1,323.48",Revenue,ABLE COMMUNITY CARE
Adult Social Care,Adult u65 Phys/Sensory Impair,PD WEST TEAM-Homecare,Third Party Payments,Private Contractors,Miscellaneous Agency Services,20110408,482,"2,888.00",Revenue,ABLE COMMUNITY CARE
Adult Social Care,Adult u65 Phys/Sensory Impair,PD EAST TEAM-Homecare,Third Party Payments,Private Contractors,Miscellaneous Agency Services,20110408,483,"2,828.00",Revenue,ABLE COMMUNITY CARE
Adult Social Care,Adult u65 Phys/Sensory Impair,PD WEST TEAM-Homecare,Third Party Payments,Private Contractors,Miscellaneous Agency Services,20110408,484,"2,884.00",Revenue,ABLE COMMUNITY CARE
Adult Social Care,Adult u65 Phys/Sensory Impair,PD WEST TEAM-Homecare,Third Party Payments,Private Contractors,Miscellaneous Agency Services,20110408,485,850.00,Revenue,BELGRAVIA NURS. & CARE BUREAU
Adult Social Care,Adult u65 Phys/Sensory Impair,PD EAST TEAM-Homecare,Third Party Payments,Private Contractors,Miscellaneous Agency Services,20110408,486,664.62,Revenue,BELGRAVIA NURS. & CARE BUREAU
Adult Social Care,Older People 65&Over inc OP-MH,OP West - Home Care External,Third Party Payments,Private Contractors,Miscellaneous Agency Services,20110408,487,547.72,Revenue,COMPASSIONATE CARING AGENCY UK
Adult Social Care,Older People 65&Over inc OP-MH,OP West - Home Care External,Third Party Payments,Private Contractors,Miscellaneous Agency Services,20110408,488,"2,170.88",Revenue,COMPASSIONATE CARING AGENCY UK
Adult Social Care,Adult u65 Phys/Sensory Impair,PD EAST TEAM-Homecare,Third Party Payments,Private Contractors,Miscellaneous Agency Services,20110408,489,"2,218.63",Revenue,COMPASSIONATE CARING AGENCY UK
Adult Social Care,Older People 65&Over inc OP-MH,OP West - Home Care External,Third Party Payments,Private Contractors,Miscellaneous Agency Services,20110408,490,"2,171.28",Revenue,COMPASSIONATE CARING AGENCY UK
Adult Social Care,Adlt u65 Learning Disabilities,LD Day Care Agency,Third Party Payments,Private Contractors,Miscellaneous Agency Services,20110408,491,618.20,Revenue,HIGH HURLANDS HOMES
Adult Social Care,Adult u65 Phys/Sensory Impair,PD EAST TEAM-Homecare,Third Party Payments,Private Contractors,Miscellaneous Agency Services,20110408,492,"3,714.92",Revenue,HOMECARE SERVICES LTD
Adult Social Care,Adlt u65 Learning Disabilities,LD Day Care Agency,Third Party Payments,Private Contractors,Miscellaneous Agency Services,20110408,493,516.00,Revenue,UNICORN HOUSE
Adult Social Care,Adult u65 Mental Health Needs,MH Adult Placement Cont-Wim,Third Party Payments,Private Contractors,Accommodation Based Support,20110408,494,"2,000.00",Revenue,REDACTED
Adult Social Care,Adult u65 Mental Health Needs,MH Adult PlacementCont-MitWest,Third Party Payments,Private Contractors,Accommodation Based Support,20110408,495,"1,000.00",Revenue,REDACTED
Adult Social Care,Adult u65 Phys/Sensory Impair,PD WEST TEAM-Direct Payment,Third Party Payments,Private Contractors,Direct Payments,20110408,496,818.20,Revenue,REDACTED
Childrens & Education Services,Family Support Services,CS Children in Need Section 17,Transfer Payments,Adult Soc Servs Clients,Childr Act 1989 S17,20110408,497,"1,328.35",Revenue,ADMINLAND LTD
Childrens & Education Services,Other Ch's & Family Services,CL Adoption Allowances,Transfer Payments,Adult Soc Servs Clients,Adodption Allowances,20110408,498,553.84,Revenue,REDACTED
Childrens & Education Services,Other Ch's & Family Services,CL Adoption Allowances,Transfer Payments,Adult Soc Servs Clients,Adodption Allowances,20110408,499,562.88,Revenue,REDACTED
Childrens & Education Services,Other Ch's & Family Services,CL Adoption Allowances,Transfer Payments,Adult Soc Servs Clients,Adodption Allowances,20110408,500,607.08,Revenue,REDACTED
Childrens & Education Services,Family Support Services,CL Residence Orders,Supplies and Services,Grants and Subscriptions,Residence Orders,20110408,501,606.90,Revenue,REDACTED
Childrens & Education Services,Other Ch's & Family Services,CL Adoption Allowances,Transfer Payments,Adult Soc Servs Clients,Adodption Allowances,20110408,502,912.40,Revenue,REDACTED
Childrens & Education Services,Family Support Services,CL Residence Orders,Supplies and Services,Grants and Subscriptions,Residence Orders,20110408,503,879.02,Revenue,REDACTED
Adult Social Care,Adult u65 Mental Health Needs,MH Res Care Ext- Mitcham West,Third Party Payments,Private Contractors,Miscellaneous Agency Services,20110408,504,"7,071.60",Revenue,BIBBY FACTORS SLOUGH LTD
Adult Social Care,Older People 65&Over inc OP-MH,OP Hosp - Nursing Care,Third Party Payments,Private Contractors,Miscellaneous Agency Services,20110408,505,"2,509.20",Revenue,ASLOCKTON HALL
Adult Social Care,Older People 65&Over inc OP-MH,OP West - Nursing Care,Third Party Payments,Private Contractors,Miscellaneous Agency Services,20110408,506,"2,341.84",Revenue,LONDON RESIDENTIAL H/CARE LTD
Adult Social Care,Older People 65&Over inc OP-MH,OP East - Residential Care Ext,Third Party Payments,Private Contractors,Miscellaneous Agency Services,20110408,507,"1,634.61",Revenue,BUPA CARE HOMES
Adult Social Care,Older People 65&Over inc OP-MH,OP East - Residential Care Ext,Third Party Payments,Private Contractors,Miscellaneous Agency Services,20110408,508,"1,907.04",Revenue,BUPA CARE HOMES
Adult Social Care,Older People 65&Over inc OP-MH,OP East - Nursing Care,Third Party Payments,Private Contractors,Miscellaneous Agency Services,20110408,509,"5,067.44",Revenue,CARE UK
Adult Social Care,Adlt u65 Learning Disabilities,LD Residential Care External,Third Party Payments,Private Contractors,Miscellaneous Agency Services,20110408,510,"4,760.00",Revenue,CARE MANAGEMENT GROUP
Adult Social Care,Adlt u65 Learning Disabilities,LD Residential Care External,Third Party Payments,Private Contractors,Miscellaneous Agency Services,20110408,511,"5,380.00",Revenue,CARE MANAGEMENT GROUP
Adult Social Care,Adlt u65 Learning Disabilities,LD Residential Care External,Third Party Payments,Private Contractors,Miscellaneous Agency Services,20110408,512,"5,500.00",Revenue,CARE MANAGEMENT GROUP
Adult Social Care,Adlt u65 Learning Disabilities,LD Residential Care External,Third Party Payments,Private Contractors,Miscellaneous Agency Services,20110408,513,"5,981.20",Revenue,CARE MANAGEMENT GROUP
Adult Social Care,Adult u65 Mental Health Needs,MH ResidentialCare Ext - Wim,Third Party Payments,Private Contractors,Miscellaneous Agency Services,20110408,514,"3,632.00",Revenue,CARE MANAGEMENT GROUP
Adult Social Care,Adlt u65 Learning Disabilities,LD Residential Care External,Third Party Payments,Private Contractors,Miscellaneous Agency Services,20110408,515,"5,980.00",Revenue,CARE MANAGEMENT GROUP
Adult Social Care,Adult u65 Phys/Sensory Impair,PD WEST TEAM-Homecare,Third Party Payments,Private Contractors,Miscellaneous Agency Services,20110408,516,"5,520.00",Revenue,CARE MANAGEMENT GROUP
Adult Social Care,Adult u65 Phys/Sensory Impair,PD EAST TEAM-Homecare,Third Party Payments,Private Contractors,Miscellaneous Agency Services,20110408,517,"4,168.00",Revenue,CARE MANAGEMENT GROUP
Adult Social Care,Adlt u65 Learning Disabilities,LD Residential Care External,Third Party Payments,Private Contractors,Miscellaneous Agency Services,20110408,518,"5,044.00",Revenue,CARE MANAGEMENT GROUP
Adult Social Care,Adlt u65 Learning Disabilities,LD Residential Care External,Third Party Payments,Private Contractors,Miscellaneous Agency Services,20110408,519,"3,336.00",Revenue,CARE MANAGEMENT GROUP
Adult Social Care,Older People 65&Over inc OP-MH,OP East - Nursing Care,Third Party Payments,Private Contractors,Miscellaneous Agency Services,20110408,520,"2,176.64",Revenue,GGIBSON LODGE NURSING HOME
Adult Social Care,Adlt u65 Learning Disabilities,LD Residential Care External,Third Party Payments,Private Contractors,Miscellaneous Agency Services,20110408,521,"2,848.72",Revenue,THE GRANGE & WALTON COTTAGE
Adult Social Care,Adlt u65 Learning Disabilities,LD Nursing Care,Third Party Payments,Private Contractors,Miscellaneous Agency Services,20110408,522,"3,000.00",Revenue,SUTTON NURSING HOMES LTD
Adult Social Care,Older People 65&Over inc OP-MH,OP West - Nursing Care,Third Party Payments,Private Contractors,Miscellaneous Agency Services,20110408,523,"2,255.16",Revenue,SUTTON NURSING HOMES LTD
Adult Social Care,Adlt u65 Learning Disabilities,LD Residential Care External,Third Party Payments,Private Contractors,Miscellaneous Agency Services,20110408,524,"7,840.00",Revenue,SOLAR CARE GROUP LTD - ROBINIA
Adult Social Care,Adult u65 Phys/Sensory Impair,PD EAST TEAM-Nursing,Third Party Payments,Private Contractors,Miscellaneous Agency Services,20110408,525,"4,696.15",Revenue,ROYAL HOSP FOR NEURO-DISAB
Adult Social Care,Older People 65&Over inc OP-MH,OP Hosp - Residential Care Ext,Third Party Payments,Private Contractors,Miscellaneous Agency Services,20110408,526,"2,400.00",Revenue,RUTLAND HOME
Adult Social Care,Older People 65&Over inc OP-MH,OP West - Nursing Care,Third Party Payments,Private Contractors,Miscellaneous Agency Services,20110408,527,"2,314.20",Revenue,FAMILY STAR LTD
Adult Social Care,Older People 65&Over inc OP-MH,OP East - Nursing Care,Third Party Payments,Private Contractors,Miscellaneous Agency Services,20110408,528,"2,255.16",Revenue,FAMILY STAR LTD
Adult Social Care,Older People 65&Over inc OP-MH,OP Hosp - Residential Care Ext,Third Party Payments,Private Contractors,Miscellaneous Agency Services,20110408,529,"1,677.25",Revenue,SOUTHERN CROSS HEALTHCARE LTD
Adult Social Care,Older People 65&Over inc OP-MH,OP West - Residential Care Ext,Customer and client receipts,Charges,Bd&Acc-contrib coll by home X,20110408,530,"-1,213.30",Revenue,ST TERESA`S HOME FORTHE ELDER
Adult Social Care,Older People 65&Over inc OP-MH,OP West - Residential Care Ext,Third Party Payments,Private Contractors,Miscellaneous Agency Services,20110408,531,"1,888.16",Revenue,ST TERESA`S HOME FORTHE ELDER
Adult Social Care,Older People 65&Over inc OP-MH,OP West - Nursing Care,Third Party Payments,Private Contractors,Miscellaneous Agency Services,20110408,532,"2,341.84",Revenue,SUTTON COURT CARE CENTRE
Adult Social Care,Older People 65&Over inc OP-MH,OP Hosp - Nursing Care,Third Party Payments,Private Contractors,Miscellaneous Agency Services,20110408,533,"2,341.84",Revenue,SUTTON COURT CARE CENTRE
Adult Social Care,Older People 65&Over inc OP-MH,OP East - Nursing Care,Third Party Payments,Private Contractors,Miscellaneous Agency Services,20110408,534,"2,341.84",Revenue,SUTTON COURT CARE CENTRE
Adult Social Care,Older People 65&Over inc OP-MH,OP Hosp - Nursing Care,Third Party Payments,Private Contractors,Miscellaneous Agency Services,20110408,535,"2,341.84",Revenue,SUTTON COURT CARE CENTRE
Adult Social Care,Older People 65&Over inc OP-MH,OP Hosp - Nursing Care,Third Party Payments,Private Contractors,Miscellaneous Agency Services,20110408,536,"2,341.84",Revenue,SUTTON COURT CARE CENTRE
Adult Social Care,Older People 65&Over inc OP-MH,OP West - Nursing Care,Third Party Payments,Private Contractors,Miscellaneous Agency Services,20110408,537,"2,341.84",Revenue,SUTTON COURT CARE CENTRE
Adult Social Care,Older People 65&Over inc OP-MH,OP West - Nursing Care,Third Party Payments,Private Contractors,Miscellaneous Agency Services,20110408,538,"2,341.84",Revenue,SUTTON COURT CARE CENTRE
Adult Social Care,Older People 65&Over inc OP-MH,OP West - Nursing Care,Third Party Payments,Private Contractors,Miscellaneous Agency Services,20110408,539,"2,341.84",Revenue,SUTTON COURT CARE CENTRE
Adult Social Care,Older People 65&Over inc OP-MH,OP East - Nursing Care,Third Party Payments,Private Contractors,Miscellaneous Agency Services,20110408,540,"2,341.84",Revenue,SUTTON COURT CARE CENTRE
Adult Social Care,Older People 65&Over inc OP-MH,OP Hosp - Nursing Care,Third Party Payments,Private Contractors,Miscellaneous Agency Services,20110408,541,"2,341.84",Revenue,SUTTON COURT CARE CENTRE
Adult Social Care,Older People 65&Over inc OP-MH,OP Hosp - Nursing Care,Third Party Payments,Private Contractors,Miscellaneous Agency Services,20110408,542,"2,341.84",Revenue,SUTTON COURT CARE CENTRE
Adult Social Care,Older People 65&Over inc OP-MH,OP Hosp - Nursing Care,Third Party Payments,Private Contractors,Miscellaneous Agency Services,20110408,543,"2,341.84",Revenue,SUTTON COURT CARE CENTRE
Adult Social Care,Older People 65&Over inc OP-MH,OP Hosp - Nursing Care,Third Party Payments,Private Contractors,Miscellaneous Agency Services,20110408,544,"2,760.03",Revenue,SUTTON COURT CARE CENTRE
Adult Social Care,Older People 65&Over inc OP-MH,OP East - Nursing Care,Third Party Payments,Private Contractors,Miscellaneous Agency Services,20110408,545,"2,334.52",Revenue,THE CROFT NURSING HOME
Adult Social Care,Older People 65&Over inc OP-MH,OP West - Residential Care Ext,Third Party Payments,Private Contractors,Miscellaneous Agency Services,20110408,546,"2,552.88",Revenue,WESTMINSTER HEALTHCARE LTD
Adult Social Care,Older People 65&Over inc OP-MH,OP West - Nursing Care,Third Party Payments,Private Contractors,Miscellaneous Agency Services,20110408,547,"2,312.36",Revenue,WESTMINSTER HEALTHCARE LTD
Adult Social Care,Older People 65&Over inc OP-MH,OP West - Nursing Care,Third Party Payments,Private Contractors,Miscellaneous Agency Services,20110408,548,"2,552.88",Revenue,WESTMINSTER HEALTHCARE LTD
Adult Social Care,Older People 65&Over inc OP-MH,OP West - Residential Care Ext,Third Party Payments,Private Contractors,Miscellaneous Agency Services,20110408,549,"2,552.88",Revenue,WESTMINSTER HEALTHCARE LTD
Adult Social Care,Adult u65 Phys/Sensory Impair,PD WEST TEAM-Homecare,Third Party Payments,Private Contractors,Miscellaneous Agency Services,20110408,550,850.00,Revenue,BELGRAVIA NURS. & CARE BUREAU
Adult Social Care,Older People 65&Over inc OP-MH,OP East - Home Care External,Third Party Payments,Private Contractors,Miscellaneous Agency Services,20110408,551,542.72,Revenue,COMPASSIONATE CARING AGENCY UK
Adult Social Care,Older People 65&Over inc OP-MH,OP West - Home Care External,Third Party Payments,Private Contractors,Miscellaneous Agency Services,20110408,552,654.90,Revenue,COMPASSIONATE CARING AGENCY UK
Adult Social Care,Older People 65&Over inc OP-MH,OP West - Home Care External,Third Party Payments,Private Contractors,Miscellaneous Agency Services,20110408,553,542.72,Revenue,COMPASSIONATE CARING AGENCY UK
Adult Social Care,Older People 65&Over inc OP-MH,OP East - Home Care External,Third Party Payments,Private Contractors,Miscellaneous Agency Services,20110408,554,521.34,Revenue,COMPASSIONATE CARING AGENCY UK
Adult Social Care,Adult u65 Phys/Sensory Impair,PD EAST TEAM-Homecare,Third Party Payments,Private Contractors,Miscellaneous Agency Services,20110408,555,567.78,Revenue,COMPASSIONATE CARING AGENCY UK
Adult Social Care,Older People 65&Over inc OP-MH,OP West - Home Care External,Third Party Payments,Private Contractors,Miscellaneous Agency Services,20110408,556,542.92,Revenue,COMPASSIONATE CARING AGENCY UK
Adult Social Care,Older People 65&Over inc OP-MH,OP East - Home Care External,Third Party Payments,Private Contractors,Miscellaneous Agency Services,20110408,557,645.07,Revenue,COMPASSIONATE CARING AGENCY UK
Adult Social Care,Adult u65 Phys/Sensory Impair,PD EAST TEAM-Day Care,Third Party Payments,Private Contractors,Miscellaneous Agency Services,20110408,558,574.00,Revenue,THE GARWOOD FOUNDATION
Adult Social Care,Adult u65 Phys/Sensory Impair,PD WEST TEAM-Day Care,Third Party Payments,Private Contractors,Miscellaneous Agency Services,20110408,559,574.00,Revenue,THE GARWOOD FOUNDATION
Adult Social Care,Adlt u65 Learning Disabilities,LD Comm -Home Care-Campus Hm,Third Party Payments,Private Contractors,Miscellaneous Agency Services,20110408,560,"8,449.68",Revenue,THE AVENUES TRUST GROUP
Adult Social Care,Older People 65&Over inc OP-MH,OP West - Daycare,Third Party Payments,Private Contractors,Miscellaneous Agency Services,20110408,561,"4,893.72",Revenue,WOODLANDS
Adult Social Care,Older People 65&Over inc OP-MH,OP - Hosp - Daycare,Third Party Payments,Private Contractors,Miscellaneous Agency Services,20110408,562,"7,811.13",Revenue,WOODLANDS
Adult Social Care,Older People 65&Over inc OP-MH,OP East - Daycare,Third Party Payments,Private Contractors,Miscellaneous Agency Services,20110408,563,"15,308.56",Revenue,WOODLANDS
Adult Social Care,Adult u65 Phys/Sensory Impair,PS Other Serv - NRTPF,Third Party Payments,Private Contractors,Miscellaneous Agency Services,20110408,564,"1,384.56",Revenue,JOHN JOSEPH PROPERTY SERVICES
Adult Social Care,Adult u65 Phys/Sensory Impair,PD EAST TEAM-Other Services,Third Party Payments,Private Contractors,Miscellaneous Agency Services,20110408,565,692.28,Revenue,JOHN JOSEPH PROPERTY SERVICES
Childrens & Education Services,Other Ch's & Family Services,CL Leaving Care/Supp Lodgings,Third Party Payments,Private Contractors,Supported Lodgings,20110408,566,600.00,Revenue,REDACTED
Childrens & Education Services,Other Ch's & Family Services,CL Leaving Care/Supp Lodgings,Third Party Payments,Private Contractors,Supported Lodgings,20110408,567,600.00,Revenue,REDACTED
Childrens & Education Services,Other Ch's & Family Services,CL Leaving Care/Supp Lodgings,Third Party Payments,Private Contractors,Supported Lodgings,20110408,568,600.00,Revenue,REDACTED
Childrens & Education Services,Children Looked After (24hrs+),CL Independent Fostering,Supplies and Services,Services,Long Term Fostering,20110408,569,"2,685.76",Revenue,FOSTERPLUS LTD
Childrens & Education Services,Children Looked After (24hrs+),CL Independent Fostering,Supplies and Services,Services,Long Term Fostering,20110408,570,"1,726.56",Revenue,FOSTERPLUS LTD
Childrens & Education Services,Children Looked After (24hrs+),CL Independent Fostering,Supplies and Services,Services,Task Based Fostering,20110408,571,"6,935.76",Revenue,SAFEHOUSES
Adult Social Care,Adlt u65 Learning Disabilities,LD Residential Care External,Third Party Payments,Private Contractors,Miscellaneous Agency Services,20110413,572,"2,466.40",Revenue,CANTERBURY OAST TRUST LTD
Adult Social Care,Older People 65&Over inc OP-MH,OP Hosp - Residential Care Ext,Third Party Payments,Private Contractors,Miscellaneous Agency Services,20110411,573,"2,200.00",Revenue,CARTER HOUSE
Adult Social Care,Older People 65&Over inc OP-MH,OP West - Residential Care Ext,Third Party Payments,Private Contractors,Miscellaneous Agency Services,20110411,574,"2,200.00",Revenue,CARTER HOUSE
Adult Social Care,Older People 65&Over inc OP-MH,OP East - Residential Care Ext,Third Party Payments,Private Contractors,Miscellaneous Agency Services,20110413,575,"1,767.08",Revenue,CENTRAL & CECIL
Adult Social Care,Adlt u65 Learning Disabilities,LD Residential Care External,Third Party Payments,Private Contractors,Miscellaneous Agency Services,20110413,576,"4,707.44",Revenue,THE CHESTNUTS LIMITED
Adult Social Care,Older People 65&Over inc OP-MH,OP West - Residential Care Ext,Third Party Payments,Private Contractors,Miscellaneous Agency Services,20110426,577,"1,825.16",Revenue,DEEPDENE CARE LIMITED
Adult Social Care,Adult u65 Mental Health Needs,MH ResidentialCare Ext - Wim,Third Party Payments,Private Contractors,Miscellaneous Agency Services,20110426,578,"1,825.16",Revenue,DEEPDENE CARE LIMITED
Adult Social Care,Adult u65 Mental Health Needs,MH ResidentialCare Ext-Morden,Third Party Payments,Private Contractors,Miscellaneous Agency Services,20110413,579,"1,497.04",Revenue,ENNIS REST HOME
Adult Social Care,Adlt u65 Learning Disabilities,LD Comm -Residential-Campus Hm,Third Party Payments,Private Contractors,Miscellaneous Agency Services,20110413,580,"14,234.08",Revenue,HARBOUR CARE GROUP
Adult Social Care,Adlt u65 Learning Disabilities,LD Comm -Residential-Campus Hm,Third Party Payments,Private Contractors,Miscellaneous Agency Services,20110413,581,"8,896.30",Revenue,HARBOUR CARE GROUP
Adult Social Care,Adlt u65 Learning Disabilities,LD Comm -Residential-Campus Hm,Third Party Payments,Private Contractors,Miscellaneous Agency Services,20110413,582,"7,117.04",Revenue,HARBOUR CARE GROUP
Adult Social Care,Adlt u65 Learning Disabilities,LD Residential Care External,Third Party Payments,Private Contractors,Miscellaneous Agency Services,20110411,583,"2,719.32",Revenue,HAYDON PARK LODGE
Adult Social Care,Adlt u65 Learning Disabilities,LD Residential Care External,Third Party Payments,Private Contractors,Miscellaneous Agency Services,20110411,584,"1,975.24",Revenue,HAYDON PARK LODGE
Adult Social Care,Adlt u65 Learning Disabilities,LD Residential Care External,Third Party Payments,Private Contractors,Miscellaneous Agency Services,20110411,585,"3,600.00",Revenue,HAYDON PARK LODGE
Adult Social Care,Adlt u65 Learning Disabilities,LD Residential Care External,Third Party Payments,Private Contractors,Miscellaneous Agency Services,20110411,586,"2,458.36",Revenue,HAYDON PARK LODGE
Adult Social Care,Adlt u65 Learning Disabilities,LD Residential Care External,Third Party Payments,Private Contractors,Miscellaneous Agency Services,20110411,587,"2,816.00",Revenue,HAYDON PARK LODGE
Adult Social Care,Adlt u65 Learning Disabilities,LD Residential Care External,Third Party Payments,Private Contractors,Miscellaneous Agency Services,20110411,588,"3,532.48",Revenue,HAYDON PARK LODGE
Adult Social Care,Adlt u65 Learning Disabilities,LD Residential Care External,Third Party Payments,Private Contractors,Miscellaneous Agency Services,20110411,589,"3,451.00",Revenue,HAYDON PARK LODGE
Adult Social Care,Other Adult Services,MH Residential Care Ext- SM&A,Third Party Payments,Private Contractors,Miscellaneous Agency Services,20110411,590,"2,278.57",Revenue,MOUNT CARMEL HOSTEL
Adult Social Care,Adlt u65 Learning Disabilities,LD Residential Care External,Third Party Payments,Private Contractors,Miscellaneous Agency Services,20110411,591,"5,288.04",Revenue,REDACTED
Childrens & Education Services,Other Ch's & Family Services,CL Leaving Care/Supp Lodgings,Third Party Payments,Private Contractors,Supported Lodgings,20110411,592,836.64,Revenue,REDACTED
Childrens & Education Services,Other Ch's & Family Services,CL Leaving Care/Supp Lodgings,Third Party Payments,Private Contractors,Supported Lodgings,20110411,593,"1,000.00",Revenue,REDACTED
Adult Social Care,Adlt u65 Learning Disabilities,LD Comm -Home Care-Orch Hill,Third Party Payments,Private Contractors,Miscellaneous Agency Services,20110411,594,848.05,Revenue,UNITED RESPONSE
Childrens & Education Services,Children Looked After (24hrs+),CL Fostering Services,Supplies and Services,Services,Task Based Fostering,20110411,595,"1,543.90",Revenue,REDACTED
Childrens & Education Services,Children Looked After (24hrs+),CL Fostering Services,Supplies and Services,Services,Task Based Fostering,20110411,596,"1,114.92",Revenue,REDACTED
Childrens & Education Services,Children Looked After (24hrs+),CL Fostering Services,Supplies and Services,Services,Task Based Fostering,20110411,597,"1,502.66",Revenue,REDACTED
Childrens & Education Services,Children Looked After (24hrs+),CL Fostering Services,Supplies and Services,Services,Task Based Fostering,20110411,598,"1,161.60",Revenue,REDACTED
Childrens & Education Services,Children Looked After (24hrs+),CL Fostering Services,Supplies and Services,Services,Task Based Fostering,20110411,599,"2,300.08",Revenue,REDACTED
Childrens & Education Services,Children Looked After (24hrs+),CL Fostering Services,Supplies and Services,Services,Task Based Fostering,20110411,600,"2,266.12",Revenue,REDACTED
Childrens & Education Services,Children Looked After (24hrs+),CL Fostering Services,Supplies and Services,Services,Task Based Fostering,20110411,601,"1,519.64",Revenue,REDACTED
Childrens & Education Services,Children Looked After (24hrs+),CL Fostering Services,Supplies and Services,Services,Task Based Fostering,20110411,602,"4,236.68",Revenue,REDACTED
Childrens & Education Services,Children Looked After (24hrs+),CL Fostering Services,Supplies and Services,Services,Task Based Fostering,20110411,603,"2,324.34",Revenue,REDACTED
Childrens & Education Services,Children Looked After (24hrs+),CL Fostering Services,Supplies and Services,Services,Task Based Fostering,20110411,604,"2,705.50",Revenue,REDACTED
Childrens & Education Services,Children Looked After (24hrs+),CL Fostering Services,Supplies and Services,Services,Task Based Fostering,20110411,605,"1,560.88",Revenue,REDACTED
Childrens & Education Services,Children Looked After (24hrs+),CL Fostering Services,Supplies and Services,Services,Task Based Fostering,20110411,606,"3,243.36",Revenue,REDACTED
Childrens & Education Services,Children Looked After (24hrs+),CL Fostering Services,Supplies and Services,Services,Task Based Fostering,20110411,607,"1,560.88",Revenue,REDACTED
Childrens & Education Services,Children Looked After (24hrs+),CL Fostering Services,Supplies and Services,Services,Task Based Fostering,20110411,608,"1,478.40",Revenue,REDACTED
Childrens & Education Services,Children Looked After (24hrs+),CL Fostering Services,Supplies and Services,Services,Task Based Fostering,20110411,609,"1,560.88",Revenue,REDACTED
Childrens & Education Services,Children Looked After (24hrs+),CL Fostering Services,Supplies and Services,Services,Task Based Fostering,20110411,610,"1,560.88",Revenue,REDACTED
Childrens & Education Services,Children Looked After (24hrs+),CL Fostering Services,Supplies and Services,Services,Task Based Fostering,20110411,611,"1,478.40",Revenue,REDACTED
Childrens & Education Services,Children Looked After (24hrs+),CL Fostering Services,Supplies and Services,Services,Task Based Fostering,20110411,612,780.44,Revenue,REDACTED
Childrens & Education Services,Children Looked After (24hrs+),CL Fostering Services,Supplies and Services,Services,Task Based Fostering,20110411,613,"1,502.66",Revenue,REDACTED
Childrens & Education Services,Children Looked After (24hrs+),CL Fostering Services,Supplies and Services,Services,Task Based Fostering,20110411,614,"1,890.40",Revenue,REDACTED
Childrens & Education Services,Children Looked After (24hrs+),CL Fostering Services,Supplies and Services,Services,Task Based Fostering,20110411,615,"1,519.64",Revenue,REDACTED
Childrens & Education Services,Children Looked After (24hrs+),CL Fostering Services,Supplies and Services,Services,Task Based Fostering,20110411,616,"2,217.60",Revenue,REDACTED
Childrens & Education Services,Children Looked After (24hrs+),CL Fostering Services,Supplies and Services,Services,Task Based Fostering,20110411,617,"2,634.56",Revenue,REDACTED
Childrens & Education Services,Other Ch's & Family Services,CL Leaving Care/Supp Lodgings,Third Party Payments,Private Contractors,Miscellaneous Agency Services,20110413,618,963.20,Revenue,CROYDON CHURCHES HOUSING ASSOC
Childrens & Education Services,Other Ch's & Family Services,CL Leaving Care/Supp Lodgings,Third Party Payments,Private Contractors,Supported Lodgings,20110413,619,800.00,Revenue,REDACTED
Adult Social Care,Adlt u65 Learning Disabilities,LD Residential Care External,Third Party Payments,Private Contractors,Miscellaneous Agency Services,20110413,620,"4,294.68",Revenue,ASHCROFT CARE SERVICES
Adult Social Care,Adlt u65 Learning Disabilities,LD Residential Care External,Third Party Payments,Private Contractors,Miscellaneous Agency Services,20110413,621,"5,369.72",Revenue,ASHCROFT CARE SERVICES
Adult Social Care,Adlt u65 Learning Disabilities,LD Residential Care External,Third Party Payments,Private Contractors,Miscellaneous Agency Services,20110413,622,"5,364.52",Revenue,ASHCROFT CARE SERVICES
Adult Social Care,Adult u65 Mental Health Needs,MH Nursing Care - Morden,Third Party Payments,Private Contractors,Miscellaneous Agency Services,20110413,623,"2,866.36",Revenue,BROOME PARK NURSING HOME
Adult Social Care,Older People 65&Over inc OP-MH,OP East - Nursing Care,Third Party Payments,Private Contractors,Miscellaneous Agency Services,20110413,624,"2,540.00",Revenue,REDACTED
Adult Social Care,Older People 65&Over inc OP-MH,OP East - Residential Care Ext,Third Party Payments,Private Contractors,Miscellaneous Agency Services,20110413,625,"2,086.84",Revenue,CHURCH FARM RESIDENTIAL HOME
Adult Social Care,Older People 65&Over inc OP-MH,OP Hosp - Residential Care Ext,Third Party Payments,Private Contractors,Miscellaneous Agency Services,20110413,626,"1,880.00",Revenue,THE ELMS REST HOME LTD
Adult Social Care,Older People 65&Over inc OP-MH,OP East - Residential Care Ext,Third Party Payments,Private Contractors,Miscellaneous Agency Services,20110413,627,"1,880.00",Revenue,THE ELMS REST HOME LTD
Adult Social Care,Older People 65&Over inc OP-MH,OP Hosp - Residential Care Ext,Third Party Payments,Private Contractors,Miscellaneous Agency Services,20110413,628,"1,840.00",Revenue,THE ELMS REST HOME LTD
Adult Social Care,Older People 65&Over inc OP-MH,OP East - Residential Care Ext,Third Party Payments,Private Contractors,Miscellaneous Agency Services,20110413,629,"1,678.57",Revenue,THE ELMS REST HOME LTD
Adult Social Care,Adult u65 Mental Health Needs,MH ResidentialCare Ext-Morden,Third Party Payments,Private Contractors,Miscellaneous Agency Services,20110413,630,"1,425.56",Revenue,REDACTED
Adult Social Care,Older People 65&Over inc OP-MH,OP Hosp - Nursing Care,Third Party Payments,Private Contractors,Miscellaneous Agency Services,20110413,631,"2,406.60",Revenue,GROSVENOR PARK NURSING HOME
Adult Social Care,Older People 65&Over inc OP-MH,OP Hosp - Residential Care Ext,Third Party Payments,Private Contractors,Miscellaneous Agency Services,20110413,632,"2,200.00",Revenue,HASLINGTON RESIDENTIAL HOME
Adult Social Care,Adlt u65 Learning Disabilities,LD Residential Care External,Third Party Payments,Private Contractors,Miscellaneous Agency Services,20110413,633,"3,521.24",Revenue,HAYDON PARK LODGE
Adult Social Care,Adlt u65 Learning Disabilities,LD Home Care External,Third Party Payments,Private Contractors,Miscellaneous Agency Services,20110413,634,"3,234.96",Revenue,H F TRUST LTD
Adult Social Care,Older People 65&Over inc OP-MH,OP East - Nursing Care,Third Party Payments,Private Contractors,Miscellaneous Agency Services,20110413,635,"2,341.84",Revenue,HOPELIT UK LTD
Adult Social Care,Older People 65&Over inc OP-MH,OP West - Nursing Care,Third Party Payments,Private Contractors,Miscellaneous Agency Services,20110413,636,"1,285.39",Revenue,FAMILY STAR LTD
Adult Social Care,Older People 65&Over inc OP-MH,OP West - Nursing Care,Third Party Payments,Private Contractors,Miscellaneous Agency Services,20110413,637,"2,314.20",Revenue,FAMILY STAR LTD
Adult Social Care,Older People 65&Over inc OP-MH,OP East - Nursing Care,Third Party Payments,Private Contractors,Miscellaneous Agency Services,20110413,638,"2,255.16",Revenue,FAMILY STAR LTD
Adult Social Care,Older People 65&Over inc OP-MH,OP West - Nursing Care,Third Party Payments,Private Contractors,Miscellaneous Agency Services,20110413,639,"2,300.00",Revenue,SOUTHDOWN NURSING + RES.HOME
Adult Social Care,Older People 65&Over inc OP-MH,OP Hosp - Residential Care Ext,Third Party Payments,Private Contractors,Miscellaneous Agency Services,20110413,640,"1,920.00",Revenue,LITTLE SISTERS OF THE POOR
Adult Social Care,Adult u65 Phys/Sensory Impair,PD WEST TEAM-Direct Payment,Third Party Payments,Private Contractors,Direct Payments,20110413,641,"2,270.40",Revenue,REDACTED
Adult Social Care,Older People 65&Over inc OP-MH,OP West -Direct Payment Scheme,Third Party Payments,Private Contractors,Direct Payments,20110413,642,790.77,Revenue,REDACTED
Adult Social Care,Older People 65&Over inc OP-MH,OP West -Direct Payment Scheme,Third Party Payments,Private Contractors,Direct Payments,20110413,643,605.22,Revenue,REDACTED
Adult Social Care,Older People 65&Over inc OP-MH,OP West -Direct Payment Scheme,Third Party Payments,Private Contractors,Direct Payments,20110413,644,"1,034.87",Revenue,REDACTED
Adult Social Care,Adlt u65 Learning Disabilities,LD AdultPlacementCont,Third Party Payments,Private Contractors,Accommodation Based Support,20110413,645,"1,071.52",Revenue,REDACTED
Adult Social Care,Adlt u65 Learning Disabilities,LD Home Care External,Third Party Payments,Private Contractors,Miscellaneous Agency Services,20110413,646,"2,752.64",Revenue,ABLE COMMUNITY CARE
Adult Social Care,Adlt u65 Learning Disabilities,LD Home Care External,Third Party Payments,Private Contractors,Miscellaneous Agency Services,20110413,647,"8,810.32",Revenue,METROPOLITAN SUPPORT TRUST
Adult Social Care,Adlt u65 Learning Disabilities,LD Home Care External,Third Party Payments,Private Contractors,Miscellaneous Agency Services,20110413,648,"7,200.00",Revenue,PRECIOUS HOMES LTD
Adult Social Care,Older People 65&Over inc OP-MH,OP East - Daycare,Third Party Payments,Private Contractors,Miscellaneous Agency Services,20110413,649,"6,901.40",Revenue,WOODLANDS
Adult Social Care,Adult u65 Mental Health Needs,HS Adult Placements,Third Party Payments,Private Contractors,Accommodation Based Support,20110414,650,"2,055.04",Revenue,TRISWIT LIMITED
Adult Social Care,Adult u65 Mental Health Needs,HS Adult Placements,Third Party Payments,Private Contractors,Accommodation Based Support,20110414,651,"1,167.60",Revenue,REDACTED
Adult Social Care,Adlt u65 Learning Disabilities,LD Adult Placements - HST,Third Party Payments,Private Contractors,Accommodation Based Support,20110414,652,"1,758.56",Revenue,REDACTED
Adult Social Care,Adult u65 Mental Health Needs,HS Adult Placements,Third Party Payments,Private Contractors,Accommodation Based Support,20110414,653,973.00,Revenue,REDACTED
Adult Social Care,Older People 65&Over inc OP-MH,OP Hosp - Nursing Care,Third Party Payments,Private Contractors,Miscellaneous Agency Services,20110414,654,"-4,265.49",Revenue,LONDON RESIDENTIAL H/CARE LTD
Adult Social Care,Older People 65&Over inc OP-MH,OP West - Nursing Care,Customer and client receipts,Charges,Bd&Acc-contrib coll by home X,20110414,655,"-1,335.46",Revenue,LONDON RESIDENTIAL H/CARE LTD
Adult Social Care,Older People 65&Over inc OP-MH,OP Hosp - Nursing Care,Customer and client receipts,Charges,Bd&Acc-contrib coll by home X,20110414,656,791.96,Revenue,LONDON RESIDENTIAL H/CARE LTD
Adult Social Care,Older People 65&Over inc OP-MH,OP West - Nursing Care,Third Party Payments,Private Contractors,Miscellaneous Agency Services,20110414,657,"6,880.63",Revenue,LONDON RESIDENTIAL H/CARE LTD
Adult Social Care,Older People 65&Over inc OP-MH,OP East - Residential Care Ext,Third Party Payments,Private Contractors,Miscellaneous Agency Services,20110414,658,"1,873.20",Revenue,BETHUNE COURT
Adult Social Care,Adult u65 Phys/Sensory Impair,PD EAST TEAM-Nursing,Third Party Payments,Private Contractors,Miscellaneous Agency Services,20110414,659,"3,237.64",Revenue,BRITISH HOME
Adult Social Care,Adult u65 Phys/Sensory Impair,PD WEST TEAM-Nursing,Customer and client receipts,Charges,Bd&Acc-contrib coll by home X,20110414,660,-876.00,Revenue,BRITISH HOME
Adult Social Care,Adult u65 Phys/Sensory Impair,PD WEST TEAM-Nursing,Third Party Payments,Private Contractors,Miscellaneous Agency Services,20110414,661,"2,766.86",Revenue,BRITISH HOME
Adult Social Care,Adult u65 Phys/Sensory Impair,PD WEST TEAM-Nursing,Customer and client receipts,Charges,Miscellaneous Charges X,20110414,662,-567.60,Revenue,BRITISH HOME
Adult Social Care,Adult u65 Phys/Sensory Impair,PD WEST TEAM-Nursing,Third Party Payments,Private Contractors,Miscellaneous Agency Services,20110414,663,"2,935.68",Revenue,BRITISH HOME
Adult Social Care,Older People 65&Over inc OP-MH,OP East - Nursing Care,Third Party Payments,Private Contractors,Miscellaneous Agency Services,20110415,664,"2,592.59",Revenue,CLAREMONT CARE SVS LTD
Adult Social Care,Older People 65&Over inc OP-MH,OP Hosp - Nursing Care,Third Party Payments,Private Contractors,Miscellaneous Agency Services,20110415,665,"2,429.44",Revenue,CLAREMONT CARE SVS LTD
Adult Social Care,Older People 65&Over inc OP-MH,OP Hosp - Nursing Care,Third Party Payments,Private Contractors,Miscellaneous Agency Services,20110415,666,"2,380.54",Revenue,CLAREMONT CARE SVS LTD
Adult Social Care,Older People 65&Over inc OP-MH,OP West - Residential Care Ext,Third Party Payments,Private Contractors,Miscellaneous Agency Services,20110414,667,"1,812.40",Revenue,THE ELDERS
Adult Social Care,Adult u65 Phys/Sensory Impair,PD WEST TEAM-Residential Care,Third Party Payments,Private Contractors,Miscellaneous Agency Services,20110414,668,"4,149.44",Revenue,HOTHFIELD MANOR FSHC
Adult Social Care,Older People 65&Over inc OP-MH,OP East - Nursing Care,Third Party Payments,Private Contractors,Miscellaneous Agency Services,20110414,669,"9,180.00",Revenue,QUEENSMEAD
Adult Social Care,Older People 65&Over inc OP-MH,OP East - Residential Care Ext,Third Party Payments,Private Contractors,Miscellaneous Agency Services,20110426,670,"3,032.24",Revenue,SCOPE
Adult Social Care,Adlt u65 Learning Disabilities,LD Residential Care External,Third Party Payments,Private Contractors,Miscellaneous Agency Services,20110426,671,"3,487.92",Revenue,SCOPE
Adult Social Care,Adult u65 Phys/Sensory Impair,PD WEST TEAM-Residential Care,Third Party Payments,Private Contractors,Miscellaneous Agency Services,20110426,672,"3,290.56",Revenue,SCOPE
Adult Social Care,Adult u65 Phys/Sensory Impair,PD EAST TEAM-Residential,Third Party Payments,Private Contractors,Miscellaneous Agency Services,20110426,673,"3,239.28",Revenue,SCOPE
Adult Social Care,Older People 65&Over inc OP-MH,OP West - Residential Care Ext,Third Party Payments,Private Contractors,Miscellaneous Agency Services,20110415,674,"1,888.16",Revenue,ST TERESA`S HOME FORTHE ELDER
Adult Social Care,Older People 65&Over inc OP-MH,OP West - Residential Care Ext,Third Party Payments,Private Contractors,Miscellaneous Agency Services,20110415,675,"2,100.00",Revenue,THE DEVONSHIRE RESID CARE HOME
Childrens & Education Services,Other Ch's & Family Services,CL Leaving Care/Supp Lodgings,Third Party Payments,Private Contractors,Supported Lodgings,20110414,676,"1,000.00",Revenue,REDACTED
Adult Social Care,Asylum seekers,AS Child Res Care  (No Grant),Third Party Payments,Private Contractors,Miscellaneous Agency Services,20110414,677,850.00,Revenue,LIVINGSTONE SUPPORTED HOUSING
Adult Social Care,Asylum seekers,AS Child Res Care  (No Grant),Third Party Payments,Private Contractors,Miscellaneous Agency Services,20110414,678,775.00,Revenue,LIVINGSTONE SUPPORTED HOUSING
Childrens & Education Services,Other Ch's & Family Services,CL Leaving Care/Supp Lodgings,Third Party Payments,Private Contractors,Supported Lodgings,20110414,679,600.00,Revenue,REDACTED
Adult Social Care,Adlt u65 Learning Disabilities,LD Home Care External,Third Party Payments,Private Contractors,Miscellaneous Agency Services,20110414,680,655.30,Revenue,BEECH HOME CARE SERVICES
Adult Social Care,Adult u65 Phys/Sensory Impair,PD WEST TEAM-Homecare,Third Party Payments,Private Contractors,Miscellaneous Agency Services,20110414,681,850.00,Revenue,BELGRAVIA NURS. & CARE BUREAU
Adult Social Care,Adult u65 Phys/Sensory Impair,PD EAST TEAM-Homecare,Third Party Payments,Private Contractors,Miscellaneous Agency Services,20110414,682,664.62,Revenue,BELGRAVIA NURS. & CARE BUREAU
Adult Social Care,Adult u65 Phys/Sensory Impair,PD EAST TEAM-Homecare,Third Party Payments,Private Contractors,Miscellaneous Agency Services,20110414,683,684.00,Revenue,SWEET TREE HOME CARE SERVICES
Adult Social Care,Adlt u65 Learning Disabilities,LD Comm -Home Care-Campus Hm,Third Party Payments,Private Contractors,Miscellaneous Agency Services,20110414,684,"8,449.68",Revenue,THE AVENUES TRUST GROUP
Adult Social Care,Older People 65&Over inc OP-MH,OP East - Residential Care Ext,Third Party Payments,Private Contractors,Miscellaneous Agency Services,20110415,685,"2,056.24",Revenue,BOLTERS CORNER CARE HOME
Adult Social Care,Older People 65&Over inc OP-MH,OP Hosp - Residential Care Ext,Third Party Payments,Private Contractors,Miscellaneous Agency Services,20110415,686,"2,357.36",Revenue,BROOKVALE LAWN CARE HOME
Adult Social Care,Adult u65 Mental Health Needs,MH ResidentialCare Ext - Wim,Third Party Payments,Private Contractors,Miscellaneous Agency Services,20110415,687,"3,171.08",Revenue,MENTAL HEALTH CARE (UK) LTD
Adult Social Care,Adult u65 Phys/Sensory Impair,PD EAST TEAM-Residential,Third Party Payments,Private Contractors,Miscellaneous Agency Services,20110415,688,"5,068.72",Revenue,RNIB REDHILL COLLEGE
Adult Social Care,Adult u65 Mental Health Needs,MH ResidentialCare Ext - Wim,Third Party Payments,Private Contractors,Miscellaneous Agency Services,20110415,689,"14,600.00",Revenue,ROOKERY HOUSE
Adult Social Care,Older People 65&Over inc OP-MH,OP East - Residential Care Ext,Third Party Payments,Private Contractors,Miscellaneous Agency Services,20110415,690,"3,032.24",Revenue,SCOPE
Adult Social Care,Adlt u65 Learning Disabilities,LD Residential Care External,Third Party Payments,Private Contractors,Miscellaneous Agency Services,20110415,691,"3,487.92",Revenue,SCOPE
Adult Social Care,Adult u65 Phys/Sensory Impair,PD WEST TEAM-Residential Care,Third Party Payments,Private Contractors,Miscellaneous Agency Services,20110415,692,"3,300.96",Revenue,SCOPE
Adult Social Care,Adlt u65 Learning Disabilities,LD Residential Care External,Third Party Payments,Private Contractors,Miscellaneous Agency Services,20110415,693,"16,318.56",Revenue,SPRING LAKE CARE HOME LTD
Adult Social Care,Older People 65&Over inc OP-MH,OP Hosp - Residential Care Ext,Third Party Payments,Private Contractors,Miscellaneous Agency Services,20110415,694,"2,200.00",Revenue,THRESHFIELD CRT NURSING HOME
Adult Social Care,Adult u65 Mental Health Needs,MH Home Care External - Wim,Third Party Payments,Private Contractors,Miscellaneous Agency Services,20110415,695,"1,117.74",Revenue,NAS SERVICES LIMITED
Adult Social Care,Adult u65 Phys/Sensory Impair,PD EAST TEAM-Homecare,Third Party Payments,Private Contractors,Miscellaneous Agency Services,20110415,696,800.00,Revenue,RNIB REDHILL COLLEGE
Adult Social Care,Adult u65 Mental Health Needs,MH Home Care External - Wim,Third Party Payments,Private Contractors,Miscellaneous Agency Services,20110415,697,"1,966.80",Revenue,RNIB REDHILL COLLEGE
Adult Social Care,Adult u65 Phys/Sensory Impair,PD EAST TEAM-Homecare,Third Party Payments,Private Contractors,Miscellaneous Agency Services,20110415,698,867.60,Revenue,RNIB REDHILL COLLEGE
Childrens & Education Services,Other Ch's & Family Services,CL Leaving Care/Supp Lodgings,Third Party Payments,Private Contractors,Supported Lodgings,20110415,699,700.00,Revenue,REDACTED
Childrens & Education Services,Other Ch's & Family Services,CL Leaving Care/Supp Lodgings,Third Party Payments,Private Contractors,Supported Lodgings,20110415,700,700.00,Revenue,REDACTED
Adult Social Care,Adult u65 Mental Health Needs,MH Adult Placement Cont- NRTPF,Third Party Payments,Private Contractors,Accommodation Based Support,20110415,701,"1,118.92",Revenue,REDACTED
Adult Social Care,Adult u65 Mental Health Needs,HS Adult Placements,Third Party Payments,Private Contractors,Accommodation Based Support,20110415,702,"2,016.56",Revenue,REDACTED
Adult Social Care,Adult u65 Mental Health Needs,HS Adult Placements,Third Party Payments,Private Contractors,Accommodation Based Support,20110415,703,"1,167.60",Revenue,REDACTED
Adult Social Care,Adult u65 Mental Health Needs,HS Adult Placements,Third Party Payments,Private Contractors,Accommodation Based Support,20110415,704,"1,556.80",Revenue,REDACTED
Adult Social Care,Adult u65 Mental Health Needs,HS Adult Placements,Third Party Payments,Private Contractors,Accommodation Based Support,20110415,705,"3,057.68",Revenue,REDACTED
Childrens & Education Services,Other Ch's & Family Services,CL Setting Up Home Allowance,Third Party Payments,Private Contractors,Miscellaneous Agency Services,20110415,706,626.53,Revenue,ARGOS BUSINESS SOLUTIONS LTD
Adult Social Care,Adult u65 Phys/Sensory Impair,PD EAST TEAM-Homecare,Third Party Payments,Private Contractors,Miscellaneous Agency Services,20110415,707,"1,157.31",Revenue,ACCESS CARE LTD
Adult Social Care,Adult u65 Phys/Sensory Impair,PD WEST TEAM-Homecare,Third Party Payments,Private Contractors,Miscellaneous Agency Services,20110415,708,"3,531.00",Revenue,ACCESS CARE LTD
Adult Social Care,Adult u65 Phys/Sensory Impair,PD EAST TEAM-Homecare,Third Party Payments,Private Contractors,Miscellaneous Agency Services,20110415,709,981.12,Revenue,ACCESS CARE LTD
Adult Social Care,Adult u65 Phys/Sensory Impair,PD WEST TEAM-Homecare,Third Party Payments,Private Contractors,Miscellaneous Agency Services,20110415,710,"2,996.00",Revenue,ACCESS CARE LTD
Adult Social Care,Adult u65 Phys/Sensory Impair,PD EAST TEAM-Homecare,Third Party Payments,Private Contractors,Miscellaneous Agency Services,20110415,711,664.62,Revenue,BELGRAVIA NURS. & CARE BUREAU
Adult Social Care,Adult u65 Phys/Sensory Impair,PD WEST TEAM-Homecare,Third Party Payments,Private Contractors,Miscellaneous Agency Services,20110415,712,"1,530.51",Revenue,BELGRAVIA NURS. & CARE BUREAU
Adult Social Care,Adult u65 Phys/Sensory Impair,PD EAST TEAM-Homecare,Third Party Payments,Private Contractors,Miscellaneous Agency Services,20110415,713,664.62,Revenue,BELGRAVIA NURS. & CARE BUREAU
Adult Social Care,Adult u65 Phys/Sensory Impair,PD WEST TEAM-Homecare,Third Party Payments,Private Contractors,Miscellaneous Agency Services,20110415,714,850.00,Revenue,BELGRAVIA NURS. & CARE BUREAU
Adult Social Care,Adult u65 Phys/Sensory Impair,PD WEST TEAM-Homecare,Third Party Payments,Private Contractors,Miscellaneous Agency Services,20110415,715,850.00,Revenue,BELGRAVIA NURS. & CARE BUREAU
Adult Social Care,Older People 65&Over inc OP-MH,OP East - Home Care External,Third Party Payments,Private Contractors,Miscellaneous Agency Services,20110415,716,"2,520.00",Revenue,HOLISTIC COMMUNITY CARE LTD
Adult Social Care,Adult u65 Phys/Sensory Impair,PD EAST TEAM-Homecare,Third Party Payments,Private Contractors,Miscellaneous Agency Services,20110415,717,712.76,Revenue,LIFEWAYS COMMUNITY CARE LTD
Adult Social Care,Older People 65&Over inc OP-MH,OP East - Home Care External,Third Party Payments,Private Contractors,Miscellaneous Agency Services,20110415,718,"3,271.44",Revenue,REDACTED
Adult Social Care,Adult u65 Mental Health Needs,MH Day Care - Mitcham West,Third Party Payments,Private Contractors,Miscellaneous Agency Services,20110415,719,"1,305.48",Revenue,NAS SERVICES LIMITED
Adult Social Care,Older People 65&Over inc OP-MH,OP East Transport External,Transport Related Expenditure,Recharge frm Transport Holding,Transport SLA/Rech-Dir Non Std,20110415,720,"1,100.00",Revenue,PATIENT TRANSPORT (UK) LTD
Adult Social Care,Adlt u65 Learning Disabilities,LD Home Care External,Third Party Payments,Private Contractors,Miscellaneous Agency Services,20110415,721,"1,835.12",Revenue,ROYAL MENCAP SOCIETY
Adult Social Care,Adlt u65 Learning Disabilities,LD Day Care Agency,Third Party Payments,Private Contractors,Miscellaneous Agency Services,20110420,722,986.20,Revenue,THE SHEILING TRUST
Adult Social Care,Adlt u65 Learning Disabilities,LD Home Care External,Third Party Payments,Private Contractors,Miscellaneous Agency Services,20110415,723,"1,184.08",Revenue,SOLACE COMMUNITY CARE LTD
Adult Social Care,Other Adult Services,MH Residential Care Ext- SM&A,Third Party Payments,Private Contractors,Miscellaneous Agency Services,20110415,724,"2,469.51",Revenue,STREETSCENE
Adult Social Care,Older People 65&Over inc OP-MH,OP Hosp -Direct Payment Scheme,Third Party Payments,Private Contractors,Direct Payments,20110415,725,"1,189.59",Revenue,REDACTED
Adult Social Care,Older People 65&Over inc OP-MH,OP West -Direct Payment Scheme,Third Party Payments,Private Contractors,Direct Payments,20110415,726,"2,225.87",Revenue,REDACTED
Adult Social Care,Older People 65&Over inc OP-MH,OP East -Direct Payment Scheme,Third Party Payments,Private Contractors,Direct Payments,20110415,727,"3,355.64",Revenue,REDACTED
Adult Social Care,Older People 65&Over inc OP-MH,OP East -Direct Payment Scheme,Third Party Payments,Private Contractors,Direct Payments,20110420,728,700.00,Revenue,REDACTED
Adult Social Care,Older People 65&Over inc OP-MH,OP West - Misc services,Third Party Payments,Private Contractors,Miscellaneous Agency Services,20110420,729,840.00,Revenue,TOTAL PROPERTY SERVICES
Adult Social Care,Older People 65&Over inc OP-MH,OP West - Residential Care Ext,Third Party Payments,Private Contractors,Miscellaneous Agency Services,20110415,730,"1,907.04",Revenue,ABBEYFIELD PEABODY S.LOND.LTD
Adult Social Care,Older People 65&Over inc OP-MH,OP Hosp - Residential Care Ext,Third Party Payments,Private Contractors,Miscellaneous Agency Services,20110415,731,"2,094.40",Revenue,ABBEYFIELD PEABODY S.LOND.LTD
Adult Social Care,Older People 65&Over inc OP-MH,OP Hosp - Residential Care Ext,Third Party Payments,Private Contractors,Miscellaneous Agency Services,20110415,732,"1,904.00",Revenue,ABBEYFIELD PEABODY S.LOND.LTD
Adult Social Care,Older People 65&Over inc OP-MH,OP East - Residential Care Ext,Third Party Payments,Private Contractors,Miscellaneous Agency Services,20110415,733,"1,812.40",Revenue,ABBEYFIELD PEABODY S.LOND.LTD
Adult Social Care,Older People 65&Over inc OP-MH,OP East - Residential Care Ext,Third Party Payments,Private Contractors,Miscellaneous Agency Services,20110415,734,"1,884.24",Revenue,ABBEYFIELD PEABODY S.LOND.LTD
Adult Social Care,Adult u65 Phys/Sensory Impair,PD EAST TEAM-Hostel,Third Party Payments,Private Contractors,Miscellaneous Agency Services,20110415,735,955.80,Revenue,ADMINLAND LTD
Adult Social Care,Adult u65 Phys/Sensory Impair,PD EAST TEAM-Hostel,Third Party Payments,Private Contractors,Miscellaneous Agency Services,20110415,736,987.66,Revenue,ADMINLAND LTD
Adult Social Care,Adlt u65 Learning Disabilities,LD Residential Care External,Third Party Payments,Private Contractors,Miscellaneous Agency Services,20110420,737,"6,865.71",Revenue,CARRICKS BROOK
Adult Social Care,Adult u65 Phys/Sensory Impair,PD EAST TEAM-Nursing,Third Party Payments,Private Contractors,Miscellaneous Agency Services,20110415,738,"2,819.80",Revenue,BUPA CARE HOMES
Adult Social Care,Older People 65&Over inc OP-MH,OP West - Residential Care Ext,Third Party Payments,Private Contractors,Miscellaneous Agency Services,20110415,739,"3,995.00",Revenue,BUPA CARE HOMES
Adult Social Care,Older People 65&Over inc OP-MH,OP Hosp - Residential Care Ext,Third Party Payments,Private Contractors,Miscellaneous Agency Services,20110415,740,"8,170.92",Revenue,BUPA CARE HOMES
Adult Social Care,Older People 65&Over inc OP-MH,OP Hosp - Nursing Care,Third Party Payments,Private Contractors,Miscellaneous Agency Services,20110415,741,"17,261.80",Revenue,BUPA CARE HOMES
Adult Social Care,Older People 65&Over inc OP-MH,OP East - Residential Care Ext,Third Party Payments,Private Contractors,Miscellaneous Agency Services,20110415,742,"19,794.08",Revenue,BUPA CARE HOMES
Adult Social Care,Older People 65&Over inc OP-MH,OP East - Nursing Care,Third Party Payments,Private Contractors,Miscellaneous Agency Services,20110415,743,"20,198.25",Revenue,BUPA CARE HOMES
Adult Social Care,Older People 65&Over inc OP-MH,OP East - Nursing Care,Third Party Payments,Private Contractors,Miscellaneous Agency Services,20110415,744,"2,074.68",Revenue,BUPA CARE HOMES
Adult Social Care,Adlt u65 Learning Disabilities,LD Residential Care External,Third Party Payments,Private Contractors,Miscellaneous Agency Services,20110415,745,"7,951.81",Revenue,CARE ASPIRATIONS LIMITED
Adult Social Care,Adlt u65 Learning Disabilities,LD Residential Care External,Third Party Payments,Private Contractors,Miscellaneous Agency Services,20110415,746,"7,368.00",Revenue,CHATSWORTH CARE
Adult Social Care,Adult u65 Mental Health Needs,MH Res Care Ext- Mitcham West,Third Party Payments,Private Contractors,Miscellaneous Agency Services,20110415,747,"5,681.56",Revenue,COMMUNITY CARE SOLUTIONS LTD
Adult Social Care,Other Adult Services,MH Residential Care Ext - SM&D,Third Party Payments,Private Contractors,Miscellaneous Agency Services,20110415,748,"2,417.40",Revenue,CRANSTOUN DRUG SERVICES
Adult Social Care,Older People 65&Over inc OP-MH,OP West - Residential Care Ext,Third Party Payments,Private Contractors,Miscellaneous Agency Services,20110415,749,"1,825.16",Revenue,DEEPDENE CARE LIMITED
Adult Social Care,Adult u65 Mental Health Needs,MH ResidentialCare Ext - Wim,Third Party Payments,Private Contractors,Miscellaneous Agency Services,20110415,750,"1,825.16",Revenue,DEEPDENE CARE LIMITED
Adult Social Care,Older People 65&Over inc OP-MH,OP Hosp - Residential Care Ext,Third Party Payments,Private Contractors,Miscellaneous Agency Services,20110415,751,"3,600.00",Revenue,EDMUND HOUSE
Adult Social Care,Older People 65&Over inc OP-MH,OP East - Nursing Care,Third Party Payments,Private Contractors,Miscellaneous Agency Services,20110426,752,"2,332.36",Revenue,ELMWOOD
Adult Social Care,Older People 65&Over inc OP-MH,OP East - Residential Care Ext,Third Party Payments,Private Contractors,Miscellaneous Agency Services,20110415,753,"2,538.60",Revenue,GENESIS CARE HOME
Adult Social Care,Older People 65&Over inc OP-MH,OP East - Nursing Care,Third Party Payments,Private Contractors,Miscellaneous Agency Services,20110426,754,"2,406.60",Revenue,HERITAGE CARE CENTRE
Adult Social Care,Older People 65&Over inc OP-MH,OP West - Nursing Care,Third Party Payments,Private Contractors,Miscellaneous Agency Services,20110426,755,"2,173.96",Revenue,HERITAGE CARE CENTRE
Adult Social Care,Older People 65&Over inc OP-MH,OP Hosp - Nursing Care,Third Party Payments,Private Contractors,Miscellaneous Agency Services,20110426,756,"2,639.00",Revenue,HERITAGE CARE CENTRE
Adult Social Care,Adlt u65 Learning Disabilities,LD Nursing Care,Third Party Payments,Private Contractors,Miscellaneous Agency Services,20110415,757,"1,351.42",Revenue,HIGH HURLANDS HOMES
Adult Social Care,Adult u65 Mental Health Needs,MH Res Care Ext- Mitcham West,Third Party Payments,Private Contractors,Miscellaneous Agency Services,20110415,758,"1,399.96",Revenue,HILLDALE AND NORTHVIEW
Adult Social Care,Adult u65 Phys/Sensory Impair,PD WEST TEAM-Residential Care,Third Party Payments,Private Contractors,Miscellaneous Agency Services,20110415,759,"4,149.44",Revenue,HOTHFIELD MANOR FSHC
Adult Social Care,Adlt u65 Learning Disabilities,LD Residential Care External,Third Party Payments,Private Contractors,Miscellaneous Agency Services,20110420,760,"4,330.44",Revenue,HUNTERS' LODGE
Adult Social Care,Adlt u65 Learning Disabilities,LD Residential Care External,Third Party Payments,Private Contractors,Miscellaneous Agency Services,20110415,761,"7,308.00",Revenue,INDEPENDENCE HOMES LTD
Adult Social Care,Older People 65&Over inc OP-MH,OP East - Residential Care Ext,Third Party Payments,Private Contractors,Miscellaneous Agency Services,20110415,762,"1,675.60",Revenue,MANOR HOUSE RESIDENTIAL HOME
Adult Social Care,Older People 65&Over inc OP-MH,OP Hosp - Residential Care Ext,Third Party Payments,Private Contractors,Miscellaneous Agency Services,20110415,763,"2,080.00",Revenue,MANOR HOUSE RESIDENTIAL HOME
Adult Social Care,Older People 65&Over inc OP-MH,OP Hosp - Residential Care Ext,Third Party Payments,Private Contractors,Miscellaneous Agency Services,20110415,764,"2,030.00",Revenue,MANOR HOUSE RESIDENTIAL HOME
Adult Social Care,Older People 65&Over inc OP-MH,OP East - Residential Care Ext,Third Party Payments,Private Contractors,Miscellaneous Agency Services,20110415,765,"2,028.00",Revenue,MANOR HOUSE RESIDENTIAL HOME
Adult Social Care,Older People 65&Over inc OP-MH,OP Hosp - Residential Care Ext,Third Party Payments,Private Contractors,Miscellaneous Agency Services,20110415,766,"2,080.00",Revenue,MANOR HOUSE RESIDENTIAL HOME
Adult Social Care,Older People 65&Over inc OP-MH,OP Hosp - Residential Care Ext,Third Party Payments,Private Contractors,Miscellaneous Agency Services,20110415,767,"2,028.00",Revenue,MANOR HOUSE RESIDENTIAL HOME
Adult Social Care,Older People 65&Over inc OP-MH,OP East - Residential Care Ext,Third Party Payments,Private Contractors,Miscellaneous Agency Services,20110415,768,"2,028.00",Revenue,MANOR HOUSE RESIDENTIAL HOME
Adult Social Care,Adlt u65 Learning Disabilities,LD Residential Care External,Third Party Payments,Private Contractors,Miscellaneous Agency Services,20110426,769,"2,904.56",Revenue,ST MICHAEL'S ADULT SERVICES
Adult Social Care,Adlt u65 Learning Disabilities,LD Residential Care External,Third Party Payments,Private Contractors,Miscellaneous Agency Services,20110415,770,"2,697.04",Revenue,REDACTED
Adult Social Care,Adlt u65 Learning Disabilities,LD Residential Care External,Third Party Payments,Private Contractors,Miscellaneous Agency Services,20110415,771,"5,535.52",Revenue,THE REGARD PARTNERSHIP LTD
Adult Social Care,Adlt u65 Learning Disabilities,LD Home Care External,Third Party Payments,Private Contractors,Miscellaneous Agency Services,20110415,772,"4,186.88",Revenue,THE REGARD PARTNERSHIP LTD
Adult Social Care,Adlt u65 Learning Disabilities,LD Home Care External,Third Party Payments,Private Contractors,Miscellaneous Agency Services,20110415,773,"4,140.00",Revenue,THE REGARD PARTNERSHIP LTD
Adult Social Care,Adlt u65 Learning Disabilities,LD Residential Care External,Third Party Payments,Private Contractors,Miscellaneous Agency Services,20110415,774,"5,536.00",Revenue,THE REGARD PARTNERSHIP LTD
Adult Social Care,Adlt u65 Learning Disabilities,LD Residential Care External,Third Party Payments,Private Contractors,Miscellaneous Agency Services,20110415,775,"4,160.00",Revenue,THE REGARD PARTNERSHIP LTD
Adult Social Care,Adlt u65 Learning Disabilities,LD Residential Care External,Third Party Payments,Private Contractors,Miscellaneous Agency Services,20110415,776,"5,200.00",Revenue,THE REGARD PARTNERSHIP LTD
Adult Social Care,Adlt u65 Learning Disabilities,LD Residential Care External,Third Party Payments,Private Contractors,Miscellaneous Agency Services,20110415,777,"7,505.56",Revenue,SOLAR CARE GROUP LTD - ROBINIA
Adult Social Care,Adlt u65 Learning Disabilities,LD Residential Care External,Third Party Payments,Private Contractors,Miscellaneous Agency Services,20110415,778,"5,192.00",Revenue,SOLAR CARE GROUP LTD - ROBINIA
Adult Social Care,Adlt u65 Learning Disabilities,LD Residential Care External,Third Party Payments,Private Contractors,Miscellaneous Agency Services,20110415,779,"6,657.12",Revenue,SOLAR CARE GROUP LTD - ROBINIA
Adult Social Care,Older People 65&Over inc OP-MH,OP Hosp - Residential Care Ext,Third Party Payments,Private Contractors,Miscellaneous Agency Services,20110415,780,"1,941.60",Revenue,SHANGRI-LA
Adult Social Care,Adlt u65 Learning Disabilities,LD Residential Care External,Third Party Payments,Private Contractors,Miscellaneous Agency Services,20110420,781,"2,617.20",Revenue,THE SONS OF DIVINE PROVIDENCE
Adult Social Care,Older People 65&Over inc OP-MH,OP West - Nursing Care,Third Party Payments,Private Contractors,Miscellaneous Agency Services,20110426,782,"2,431.96",Revenue,SOUTHERN CROSS HEALTHCARE LTD
Adult Social Care,Older People 65&Over inc OP-MH,OP Hosp - Nursing Care,Third Party Payments,Private Contractors,Miscellaneous Agency Services,20110426,783,"2,593.00",Revenue,SOUTHERN CROSS HEALTHCARE LTD
Adult Social Care,Older People 65&Over inc OP-MH,OP Hosp - Nursing Care,Third Party Payments,Private Contractors,Miscellaneous Agency Services,20110426,784,"2,717.76",Revenue,SOUTHERN CROSS HEALTHCARE LTD
Adult Social Care,Adlt u65 Learning Disabilities,LD Residential Care External,Third Party Payments,Private Contractors,Miscellaneous Agency Services,20110415,785,"14,704.00",Revenue,SPRING LAKE CARE HOME LTD
Adult Social Care,Older People 65&Over inc OP-MH,OP West - Nursing Care,Third Party Payments,Private Contractors,Miscellaneous Agency Services,20110420,786,"2,400.00",Revenue,ST TERESA`S HOME FORTHE ELDER
Adult Social Care,Older People 65&Over inc OP-MH,OP West - Residential Care Ext,Third Party Payments,Private Contractors,Miscellaneous Agency Services,20110420,787,"2,341.84",Revenue,ST TERESA`S HOME FORTHE ELDER
Adult Social Care,Older People 65&Over inc OP-MH,OP West - Nursing Care,Third Party Payments,Private Contractors,Miscellaneous Agency Services,20110420,788,"2,199.12",Revenue,ST TERESA`S HOME FORTHE ELDER
Adult Social Care,Older People 65&Over inc OP-MH,OP West - Residential Care Ext,Third Party Payments,Private Contractors,Miscellaneous Agency Services,20110420,789,"1,888.16",Revenue,ST TERESA`S HOME FORTHE ELDER
Adult Social Care,Adlt u65 Learning Disabilities,LD Residential Care External,Third Party Payments,Private Contractors,Miscellaneous Agency Services,20110415,790,"5,678.20",Revenue,SUSSEX AUTISTIC COMMUNITY TRUS
Childrens & Education Services,Other Ch's & Family Services,CL Leaving Care/Supp Lodgings,Third Party Payments,Private Contractors,Bed & Breakfast Accom,20110420,791,"2,130.00",Revenue,FIERCE NEUTRAL LTD
Childrens & Education Services,Family Support Services,CS Children in Need Section 17,Transfer Payments,Adult Soc Servs Clients,Childr Act 1989 S17,20110415,792,"1,000.00",Revenue,SW LONDON ST GEORGES NHS TRUST
Childrens & Education Services,Family Support Services,CS Children in Need Section 17,Transfer Payments,Adult Soc Servs Clients,Childr Act 1989 S17,20110415,793,"3,801.92",Revenue,THE NEW LEVEL OF LIFE
Adult Social Care,Adlt u65 Learning Disabilities,LD AdultPlacementCont,Third Party Payments,Private Contractors,Accommodation Based Support,20110419,794,"4,680.00",Revenue,PROVIDENCE CARE UK LTD
Childrens & Education Services,Children Looked After (24hrs+),CL Independent Fostering,Supplies and Services,Services,Long Term Fostering,20110419,795,"2,413.66",Revenue,FAMILIES FOR CHILDREN
Adult Social Care,Asylum seekers,AS Child - Res Care (Grant),Third Party Payments,Private Contractors,Miscellaneous Agency Services,20110419,796,800.00,Revenue,KEYA SUPPORT LTD
Childrens & Education Services,Other Ch's & Family Services,CL Leaving Care/Supp Lodgings,Third Party Payments,Private Contractors,Supported Lodgings,20110419,797,"1,001.52",Revenue,REDACTED
Childrens & Education Services,Other Ch's & Family Services,CL Leaving Care/Supp Lodgings,Third Party Payments,Private Contractors,Miscellaneous Agency Services,20110419,798,"1,199.80",Revenue,ON BEHALF SP HOMES LTD NO2 ACC
Childrens & Education Services,Other Ch's & Family Services,CL Leaving Care/Supp Lodgings,Third Party Payments,Private Contractors,Miscellaneous Agency Services,20110419,799,"1,199.80",Revenue,ON BEHALF SP HOMES LTD NO2 ACC
Childrens & Education Services,Other Ch's & Family Services,CL Leaving Care/Supp Lodgings,Third Party Payments,Private Contractors,Miscellaneous Agency Services,20110419,800,"1,160.04",Revenue,ON BEHALF SP HOMES LTD NO2 ACC
Childrens & Education Services,Other Ch's & Family Services,CL Leaving Care/Supp Lodgings,Third Party Payments,Private Contractors,Supported Lodgings,20110419,801,700.00,Revenue,REDACTED
Adult Social Care,Adlt u65 Learning Disabilities,LD Home Care External,Third Party Payments,Private Contractors,Miscellaneous Agency Services,20110419,802,655.30,Revenue,BEECH HOME CARE SERVICES
Adult Social Care,Adlt u65 Learning Disabilities,LD Home Care External,Third Party Payments,Private Contractors,Miscellaneous Agency Services,20110419,803,655.30,Revenue,BEECH HOME CARE SERVICES
Adult Social Care,Adult u65 Phys/Sensory Impair,PD EAST TEAM-Homecare,Third Party Payments,Private Contractors,Miscellaneous Agency Services,20110419,804,"1,171.80",Revenue,BESPOKE CARE SOLUTIONS LTD
Adult Social Care,Adlt u65 Learning Disabilities,LD Day Care Agency,Third Party Payments,Private Contractors,Miscellaneous Agency Services,20110419,805,954.08,Revenue,BRIGSTOCK ACTIVITY CENTRE
Adult Social Care,Adlt u65 Learning Disabilities,LD Home Care External,Third Party Payments,Private Contractors,Miscellaneous Agency Services,20110419,806,"6,552.00",Revenue,LIFEWAYS COMMUNITY CARE LTD
Adult Social Care,Older People 65&Over inc OP-MH,OP East - Home Care External,Third Party Payments,Private Contractors,Miscellaneous Agency Services,20110419,807,960.80,Revenue,ROYAL MENCAP SOCIETY
Adult Social Care,Adlt u65 Learning Disabilities,LD Home Care External,Third Party Payments,Private Contractors,Miscellaneous Agency Services,20110419,808,"2,120.96",Revenue,ROYAL MENCAP SOCIETY
Adult Social Care,Adlt u65 Learning Disabilities,LD Home Care External,Third Party Payments,Private Contractors,Miscellaneous Agency Services,20110419,809,"1,906.56",Revenue,ROYAL MENCAP SOCIETY
Adult Social Care,Adlt u65 Learning Disabilities,LD Home Care External,Third Party Payments,Private Contractors,Miscellaneous Agency Services,20110419,810,"1,835.12",Revenue,ROYAL MENCAP SOCIETY
Adult Social Care,Other Adult Services,MH Residential Care Ext- SM&A,Third Party Payments,Private Contractors,Miscellaneous Agency Services,20110419,811,"1,339.28",Revenue,STREETSCENE
Adult Social Care,Adlt u65 Learning Disabilities,LD Comm -Day Care-Surrey Oak,Third Party Payments,Private Contractors,Miscellaneous Agency Services,20110419,812,"1,970.87",Revenue,SURREY & BORDERS PARTNERSHIP
Childrens & Education Services,Family Support Services,CL Residence Orders,Supplies and Services,Grants and Subscriptions,Residence Orders,20110419,813,866.44,Revenue,REDACTED
Adult Social Care,Asylum seekers,AS Child - Res Care (Grant),Third Party Payments,Private Contractors,Supported Lodgings,20110419,814,600.00,Revenue,REDACTED
Childrens & Education Services,Other Ch's & Family Services,CL Leaving Care/Supp Lodgings,Third Party Payments,Private Contractors,Supported Lodgings,20110419,815,600.00,Revenue,REDACTED
Childrens & Education Services,Family Support Services,CS Direct Payments,Third Party Payments,Private Contractors,Direct Payments,20110419,816,511.20,Revenue,REDACTED
Childrens & Education Services,Family Support Services,CS Direct Payments,Third Party Payments,Private Contractors,Direct Payments,20110419,817,"1,278.00",Revenue,REDACTED
Childrens & Education Services,Family Support Services,CS Direct Payments,Third Party Payments,Private Contractors,Direct Payments,20110419,818,894.60,Revenue,REDACTED
Childrens & Education Services,Family Support Services,CS Direct Payments,Third Party Payments,Private Contractors,Direct Payments,20110419,819,639.00,Revenue,REDACTED
Adult Social Care,Older People 65&Over inc OP-MH,OP East - Residential Care Ext,Third Party Payments,Private Contractors,Miscellaneous Agency Services,20110419,820,"1,827.00",Revenue,ABBEYGATE RESIDENTIAL HOME
Adult Social Care,Adlt u65 Learning Disabilities,LD Residential Care External,Third Party Payments,Private Contractors,Miscellaneous Agency Services,20110419,821,"10,519.70",Revenue,ASHBROOK HOUSE
Adult Social Care,Adlt u65 Learning Disabilities,LD Residential Care External,Customer and client receipts,Charges,Bd&Acc-contrib coll by home X,20110419,822,-569.20,Revenue,ASHINGTON HOUSE
Adult Social Care,Adlt u65 Learning Disabilities,LD Residential Care External,Third Party Payments,Private Contractors,Miscellaneous Agency Services,20110419,823,"8,309.94",Revenue,ASHINGTON HOUSE
Adult Social Care,Older People 65&Over inc OP-MH,OP Hosp - Nursing Care,Third Party Payments,Private Contractors,Miscellaneous Agency Services,20110419,824,"2,341.84",Revenue,ST AUBYNS NURSING HOME
Adult Social Care,Older People 65&Over inc OP-MH,OP West - Residential Care Ext,Third Party Payments,Private Contractors,Miscellaneous Agency Services,20110419,825,"2,600.00",Revenue,BARONS LODGE NURSING HOME
Adult Social Care,Adlt u65 Learning Disabilities,LD Nursing Care,Third Party Payments,Private Contractors,Miscellaneous Agency Services,20110419,826,"3,696.28",Revenue,BARONS LODGE NURSING HOME
Adult Social Care,Adlt u65 Learning Disabilities,LD Residential Care External,Third Party Payments,Private Contractors,Miscellaneous Agency Services,20110419,827,"2,228.57",Revenue,BARONS LODGE NURSING HOME
Adult Social Care,Older People 65&Over inc OP-MH,OP West - Nursing Care,Third Party Payments,Private Contractors,Miscellaneous Agency Services,20110419,828,"2,462.53",Revenue,LONDON RESIDENTIAL H/CARE LTD
Adult Social Care,Older People 65&Over inc OP-MH,OP Hosp - Residential Care Ext,Third Party Payments,Private Contractors,Miscellaneous Agency Services,20110426,829,"1,763.16",Revenue,BLAIR HOUSE
Adult Social Care,Older People 65&Over inc OP-MH,OP East - Nursing Care,Third Party Payments,Private Contractors,Miscellaneous Agency Services,20110419,830,"3,353.84",Revenue,BRENDON CARE FOUNDATION
Adult Social Care,Older People 65&Over inc OP-MH,OP East - Nursing Care,Customer and client receipts,Charges,Bd&Acc-contrib coll by home X,20110420,831,-605.76,Revenue,BRIDGE HOUSE CARE CENTRE
Adult Social Care,Older People 65&Over inc OP-MH,OP East - Nursing Care,Third Party Payments,Private Contractors,Miscellaneous Agency Services,20110420,832,"1,987.20",Revenue,BRIDGE HOUSE CARE CENTRE
Adult Social Care,Adlt u65 Learning Disabilities,LD Residential Care External,Third Party Payments,Private Contractors,Miscellaneous Agency Services,20110419,833,"3,798.04",Revenue,BRIGSTOCK HOUSE
Adult Social Care,Adult u65 Phys/Sensory Impair,PD EAST TEAM-Nursing,Third Party Payments,Private Contractors,Miscellaneous Agency Services,20110419,834,"5,800.00",Revenue,BUPA CARE HOMES
Adult Social Care,Adult u65 Phys/Sensory Impair,PD EAST TEAM-Nursing,Third Party Payments,Private Contractors,Miscellaneous Agency Services,20110419,835,"7,561.44",Revenue,BUPA CARE SERVICES BACS RECEIP
Adult Social Care,Older People 65&Over inc OP-MH,OP Hosp - Nursing Care,Customer and client receipts,Charges,Bd&Acc-contrib coll by home X,20110420,836,-683.26,Revenue,CLAREMONT CARE SVS LTD
Adult Social Care,Older People 65&Over inc OP-MH,OP Hosp - Nursing Care,Third Party Payments,Private Contractors,Miscellaneous Agency Services,20110420,837,"3,491.34",Revenue,CLAREMONT CARE SVS LTD
Adult Social Care,Older People 65&Over inc OP-MH,OP Hosp - Nursing Care,Third Party Payments,Private Contractors,Miscellaneous Agency Services,20110420,838,"2,459.80",Revenue,CLAREMONT CARE SVS LTD
Adult Social Care,Other Adult Services,MH Residential Care Ext - SM&D,Third Party Payments,Private Contractors,Miscellaneous Agency Services,20110419,839,"2,417.40",Revenue,CRANSTOUN DRUG SERVICES
Adult Social Care,Older People 65&Over inc OP-MH,OP East - Residential Care Ext,Third Party Payments,Private Contractors,Miscellaneous Agency Services,20110419,840,"2,233.00",Revenue,ELM LODGE
Adult Social Care,Older People 65&Over inc OP-MH,OP West - Nursing Care,Customer and client receipts,Charges,Bd&Acc-contrib coll by home X,20110419,841,-562.28,Revenue,GRACE MANOR NURSING HOME
Adult Social Care,Older People 65&Over inc OP-MH,OP West - Nursing Care,Third Party Payments,Private Contractors,Miscellaneous Agency Services,20110419,842,"2,232.84",Revenue,GRACE MANOR NURSING HOME
Adult Social Care,Adult u65 Phys/Sensory Impair,PD EAST TEAM-Residential,Third Party Payments,Private Contractors,Miscellaneous Agency Services,20110419,843,"5,142.26",Revenue,HIGHVIEW CARE SERVICES LTD
Adult Social Care,Adlt u65 Learning Disabilities,LD Residential Care External,Third Party Payments,Private Contractors,Miscellaneous Agency Services,20110420,844,"3,256.32",Revenue,L'ARCHE
Adult Social Care,Older People 65&Over inc OP-MH,OP Hosp - Residential Care Ext,Third Party Payments,Private Contractors,Miscellaneous Agency Services,20110419,845,"1,812.00",Revenue,LAURELS CARE HOME
Adult Social Care,Older People 65&Over inc OP-MH,OP East - Nursing Care,Third Party Payments,Private Contractors,Miscellaneous Agency Services,20110426,846,"2,577.00",Revenue,SOUTHERN CROSS HEALTHCARE
Adult Social Care,Older People 65&Over inc OP-MH,OP West - Residential Care Ext,Third Party Payments,Private Contractors,Miscellaneous Agency Services,20110419,847,"1,636.20",Revenue,LYNCROFT RESIDENTIAL HOME
Adult Social Care,Older People 65&Over inc OP-MH,OP Hosp - Residential Care Ext,Third Party Payments,Private Contractors,Miscellaneous Agency Services,20110419,848,"1,680.00",Revenue,MAESYFELIN RESIDENTIAL HOME
Adult Social Care,Adlt u65 Learning Disabilities,LD Residential Care External,Third Party Payments,Private Contractors,Miscellaneous Agency Services,20110420,849,"5,600.00",Revenue,REDACTED
Adult Social Care,Older People 65&Over inc OP-MH,OP West - Residential Care Ext,Third Party Payments,Private Contractors,Miscellaneous Agency Services,20110419,850,"2,848.06",Revenue,MALDEN HOUSE
Adult Social Care,Older People 65&Over inc OP-MH,OP West - Residential Care Ext,Third Party Payments,Private Contractors,Miscellaneous Agency Services,20110419,851,"1,812.40",Revenue,MALDEN HOUSE
Adult Social Care,Older People 65&Over inc OP-MH,OP West - Residential Care Ext,Third Party Payments,Private Contractors,Miscellaneous Agency Services,20110419,852,841.48,Revenue,MALDEN HOUSE
Adult Social Care,Adlt u65 Learning Disabilities,LD Home Care External,Third Party Payments,Private Contractors,Miscellaneous Agency Services,20110419,853,"4,186.88",Revenue,ROYAL MENCAP SOCIETY
Adult Social Care,Adlt u65 Learning Disabilities,LD Residential Care External,Third Party Payments,Private Contractors,Miscellaneous Agency Services,20110419,854,"2,571.59",Revenue,THE NAK CENTRE
Adult Social Care,Adlt u65 Learning Disabilities,LD Residential Care External,Third Party Payments,Private Contractors,Miscellaneous Agency Services,20110420,855,"2,031.90",Revenue,OAKDOWN HOUSE LTD
Adult Social Care,Older People 65&Over inc OP-MH,OP West - Residential Care Ext,Third Party Payments,Private Contractors,Miscellaneous Agency Services,20110420,856,"2,288.84",Revenue,OATLANDS CARE LIMITED
Adult Social Care,Adlt u65 Learning Disabilities,LD Residential Care External,Customer and client receipts,Charges,Bd&Acc-contrib coll by home X,20110419,857,-777.80,Revenue,TRACESCENT LIMITED
Adult Social Care,Adlt u65 Learning Disabilities,LD Residential Care External,Third Party Payments,Private Contractors,Miscellaneous Agency Services,20110419,858,"9,350.12",Revenue,TRACESCENT LIMITED
Adult Social Care,Older People 65&Over inc OP-MH,OP East - Nursing Care,Customer and client receipts,Charges,Bd&Acc-contrib coll by home X,20110419,859,-590.09,Revenue,PRIORY COURT CARE HOME
Adult Social Care,Older People 65&Over inc OP-MH,OP East - Nursing Care,Third Party Payments,Private Contractors,Miscellaneous Agency Services,20110419,860,"3,178.21",Revenue,PRIORY COURT CARE HOME
Adult Social Care,Adlt u65 Learning Disabilities,LD Comm -Residential-Orch Hill,Customer and client receipts,Charges,Bd&Acc-contrib coll by home X,20110419,861,-682.40,Revenue,PROSPECT HOUSING & SUPPORT SER
Adult Social Care,Adlt u65 Learning Disabilities,LD Comm -Residential-Orch Hill,Third Party Payments,Private Contractors,Miscellaneous Agency Services,20110419,862,"1,138.40",Revenue,PROSPECT HOUSING & SUPPORT SER
Adult Social Care,Adult u65 Phys/Sensory Impair,PD WEST TEAM-Residential Care,Third Party Payments,Private Contractors,Miscellaneous Agency Services,20110419,863,"3,811.60",Revenue,VIRIDIAN HOUSING
Adult Social Care,Older People 65&Over inc OP-MH,OP East - Residential Care Ext,Third Party Payments,Private Contractors,Miscellaneous Agency Services,20110419,864,"3,308.92",Revenue,RNID
Adult Social Care,Adult u65 Phys/Sensory Impair,PD EAST TEAM-Residential,Third Party Payments,Private Contractors,Miscellaneous Agency Services,20110419,865,"3,249.68",Revenue,SCOPE
Adult Social Care,Older People 65&Over inc OP-MH,OP West - Nursing Care,Third Party Payments,Private Contractors,Miscellaneous Agency Services,20110420,866,"2,400.00",Revenue,ST TERESA`S HOME FORTHE ELDER
Adult Social Care,Older People 65&Over inc OP-MH,OP West - Residential Care Ext,Third Party Payments,Private Contractors,Miscellaneous Agency Services,20110420,867,"2,341.84",Revenue,ST TERESA`S HOME FORTHE ELDER
Adult Social Care,Older People 65&Over inc OP-MH,OP West - Nursing Care,Third Party Payments,Private Contractors,Miscellaneous Agency Services,20110420,868,"2,199.12",Revenue,ST TERESA`S HOME FORTHE ELDER
Adult Social Care,Older People 65&Over inc OP-MH,OP East - Residential Care Ext,Customer and client receipts,Charges,Bd&Acc-contrib coll by home X,20110420,869,-586.12,Revenue,LANGLEY HOUSE TRUST
Adult Social Care,Older People 65&Over inc OP-MH,OP East - Residential Care Ext,Third Party Payments,Private Contractors,Miscellaneous Agency Services,20110420,870,"1,632.64",Revenue,LANGLEY HOUSE TRUST
Adult Social Care,Adult u65 Phys/Sensory Impair,PD EAST TEAM-Residential,Third Party Payments,Private Contractors,Miscellaneous Agency Services,20110419,871,765.00,Revenue,VITALISE
Adult Social Care,Adlt u65 Learning Disabilities,LD Residential Care External,Third Party Payments,Private Contractors,Miscellaneous Agency Services,20110419,872,"5,823.76",Revenue,WALSINGHAM
Adult Social Care,Adlt u65 Learning Disabilities,LD Residential Care External,Third Party Payments,Private Contractors,Miscellaneous Agency Services,20110419,873,"5,820.16",Revenue,WALSINGHAM
Adult Social Care,Adlt u65 Learning Disabilities,LD Residential Care External,Third Party Payments,Private Contractors,Miscellaneous Agency Services,20110419,874,"5,826.12",Revenue,WALSINGHAM
Adult Social Care,Other Adult Services,MH Residential Care Ext - SM&D,Third Party Payments,Private Contractors,Miscellaneous Agency Services,20110419,875,569.94,Revenue,WESTERN COUNSELLING SERVICES
Childrens & Education Services,Children Looked After (24hrs+),CL Fostering Services,Supplies and Services,Services,Task Based Fostering,20110419,876,"1,543.90",Revenue,REDACTED
Childrens & Education Services,Children Looked After (24hrs+),CL Fostering Services,Supplies and Services,Services,Task Based Fostering,20110419,877,"1,021.44",Revenue,REDACTED
Childrens & Education Services,Children Looked After (24hrs+),CL Fostering Services,Supplies and Services,Services,Task Based Fostering,20110419,878,"1,502.66",Revenue,REDACTED
Childrens & Education Services,Children Looked After (24hrs+),CL Fostering Services,Supplies and Services,Services,Task Based Fostering,20110419,879,739.20,Revenue,REDACTED
Childrens & Education Services,Children Looked After (24hrs+),CL Fostering Services,Supplies and Services,Services,Task Based Fostering,20110419,880,"2,300.08",Revenue,REDACTED
Childrens & Education Services,Children Looked After (24hrs+),CL Fostering Services,Supplies and Services,Services,Task Based Fostering,20110419,881,"2,266.12",Revenue,REDACTED
Childrens & Education Services,Children Looked After (24hrs+),CL Fostering Services,Supplies and Services,Services,Task Based Fostering,20110419,882,"1,519.64",Revenue,REDACTED
Childrens & Education Services,Children Looked After (24hrs+),CL Fostering Services,Supplies and Services,Services,Task Based Fostering,20110419,883,"1,560.88",Revenue,REDACTED
Childrens & Education Services,Children Looked After (24hrs+),CL Fostering Services,Supplies and Services,Services,Task Based Fostering,20110419,884,"2,324.34",Revenue,REDACTED
Childrens & Education Services,Children Looked After (24hrs+),CL Fostering Services,Supplies and Services,Services,Task Based Fostering,20110419,885,"2,283.10",Revenue,REDACTED
Childrens & Education Services,Children Looked After (24hrs+),CL Fostering Services,Supplies and Services,Services,Task Based Fostering,20110419,886,"1,560.88",Revenue,REDACTED
Childrens & Education Services,Children Looked After (24hrs+),CL Fostering Services,Supplies and Services,Services,Task Based Fostering,20110419,887,"3,016.76",Revenue,REDACTED
Childrens & Education Services,Children Looked After (24hrs+),CL Fostering Services,Supplies and Services,Services,Task Based Fostering,20110419,888,"1,560.88",Revenue,REDACTED
Childrens & Education Services,Children Looked After (24hrs+),CL Fostering Services,Supplies and Services,Services,Task Based Fostering,20110419,889,"1,478.40",Revenue,REDACTED
Childrens & Education Services,Children Looked After (24hrs+),CL Fostering Services,Supplies and Services,Services,Task Based Fostering,20110419,890,"1,560.88",Revenue,REDACTED
Childrens & Education Services,Children Looked After (24hrs+),CL Fostering Services,Supplies and Services,Services,Task Based Fostering,20110419,891,"1,560.88",Revenue,REDACTED
Childrens & Education Services,Children Looked After (24hrs+),CL Fostering Services,Supplies and Services,Services,Task Based Fostering,20110419,892,"1,478.40",Revenue,REDACTED
Childrens & Education Services,Children Looked After (24hrs+),CL Fostering Services,Supplies and Services,Services,Task Based Fostering,20110419,893,780.44,Revenue,REDACTED
Childrens & Education Services,Children Looked After (24hrs+),CL Fostering Services,Supplies and Services,Services,Task Based Fostering,20110419,894,"1,510.00",Revenue,REDACTED
Childrens & Education Services,Children Looked After (24hrs+),CL Fostering Services,Supplies and Services,Services,Task Based Fostering,20110419,895,"1,519.64",Revenue,REDACTED
Childrens & Education Services,Children Looked After (24hrs+),CL Fostering Services,Supplies and Services,Services,Task Based Fostering,20110419,896,876.00,Revenue,REDACTED
Childrens & Education Services,Children Looked After (24hrs+),CL Fostering Services,Supplies and Services,Services,Task Based Fostering,20110419,897,"2,726.82",Revenue,REDACTED
Adult Social Care,Adlt u65 Learning Disabilities,LD Home Care External,Third Party Payments,Private Contractors,Miscellaneous Agency Services,20110420,898,"2,760.00",Revenue,ABLE COMMUNITY CARE
Adult Social Care,Adult u65 Phys/Sensory Impair,PD EAST TEAM-Homecare,Third Party Payments,Private Contractors,Miscellaneous Agency Services,20110420,899,981.12,Revenue,ACCESS CARE LTD
Adult Social Care,Adult u65 Phys/Sensory Impair,PD WEST TEAM-Homecare,Third Party Payments,Private Contractors,Miscellaneous Agency Services,20110420,900,"2,996.00",Revenue,ACCESS CARE LTD
Adult Social Care,Adult u65 Phys/Sensory Impair,PD WEST TEAM-Homecare,Third Party Payments,Private Contractors,Miscellaneous Agency Services,20110420,901,850.00,Revenue,BELGRAVIA NURS. & CARE BUREAU
Adult Social Care,Older People 65&Over inc OP-MH,OP East - Carer Services,Third Party Payments,Private Contractors,Miscellaneous Agency Services,20110420,902,734.70,Revenue,ENARA COMMUNITY CARE
Adult Social Care,Adult u65 Phys/Sensory Impair,PD EAST TEAM-Homecare,Third Party Payments,Private Contractors,Miscellaneous Agency Services,20110420,903,881.50,Revenue,ENARA COMMUNITY CARE
Adult Social Care,Adult u65 Phys/Sensory Impair,PD WEST TEAM-Homecare,Third Party Payments,Private Contractors,Miscellaneous Agency Services,20110420,904,"4,281.52",Revenue,ENARA COMMUNITY CARE
Adult Social Care,Older People 65&Over inc OP-MH,OP West - Home Care External,Third Party Payments,Private Contractors,Miscellaneous Agency Services,20110420,905,"7,915.31",Revenue,ENARA COMMUNITY CARE
Adult Social Care,Older People 65&Over inc OP-MH,OP East - Home Care External,Third Party Payments,Private Contractors,Miscellaneous Agency Services,20110420,906,"10,108.95",Revenue,ENARA COMMUNITY CARE
Adult Social Care,Adult u65 Mental Health Needs,MH Day Care - Mitcham West,Third Party Payments,Private Contractors,Miscellaneous Agency Services,20110420,907,"1,305.48",Revenue,NAS SERVICES LIMITED
Adult Social Care,Adlt u65 Learning Disabilities,LD Day Care Agency,Third Party Payments,Private Contractors,Miscellaneous Agency Services,20110420,908,"18,863.40",Revenue,WANDSWORTH BOROUGH COUNCIL
Adult Social Care,Adult u65 Phys/Sensory Impair,PD EAST TEAM-Hostel,Third Party Payments,Private Contractors,Miscellaneous Agency Services,20110420,909,892.08,Revenue,ADMINLAND LTD
Adult Social Care,Adult u65 Phys/Sensory Impair,PD EAST TEAM-Hostel,Third Party Payments,Private Contractors,Miscellaneous Agency Services,20110420,910,987.66,Revenue,ADMINLAND LTD
Adult Social Care,Older People 65&Over inc OP-MH,OP East - Residential Care Ext,Third Party Payments,Private Contractors,Miscellaneous Agency Services,20110420,911,"2,120.00",Revenue,ALBA ROSE RESIDENTIAL HOME
Adult Social Care,Adlt u65 Learning Disabilities,LD Residential Care External,Third Party Payments,Private Contractors,Miscellaneous Agency Services,20110420,912,"4,939.16",Revenue,ASHTEAD HOUSE LIMITED
Adult Social Care,Older People 65&Over inc OP-MH,OP Hosp - Residential Care Ext,Third Party Payments,Private Contractors,Miscellaneous Agency Services,20110420,913,"1,624.00",Revenue,THE BEECHES
Adult Social Care,Older People 65&Over inc OP-MH,OP East - Nursing Care,Third Party Payments,Private Contractors,Miscellaneous Agency Services,20110420,914,"2,254.92",Revenue,BEVERLEY LODGE NURSING HOME
Adult Social Care,Adult u65 Mental Health Needs,MH ResidentialCare Ext-Morden,Third Party Payments,Private Contractors,Miscellaneous Agency Services,20110420,915,"6,117.00",Revenue,BROOKDALE HEALTH CARE
Adult Social Care,Adlt u65 Learning Disabilities,LD Residential Care External,Third Party Payments,Private Contractors,Miscellaneous Agency Services,20110420,916,"3,400.00",Revenue,BURGH HEATH LODGE
Adult Social Care,Older People 65&Over inc OP-MH,OP East - Residential Care Ext,Third Party Payments,Private Contractors,Miscellaneous Agency Services,20110420,917,"2,086.84",Revenue,CHURCH FARM RESIDENTIAL HOME
Adult Social Care,Older People 65&Over inc OP-MH,OP Hosp - Nursing Care,Third Party Payments,Private Contractors,Miscellaneous Agency Services,20110420,918,"2,337.20",Revenue,CLARENDON LS
Adult Social Care,Adult u65 Mental Health Needs,MH Res Care Ext- Mitcham West,Third Party Payments,Private Contractors,Miscellaneous Agency Services,20110420,919,"5,665.96",Revenue,COMMUNITY CARE SOLUTIONS LTD
Adult Social Care,Older People 65&Over inc OP-MH,OP Hosp - Residential Care Ext,Third Party Payments,Private Contractors,Miscellaneous Agency Services,20110420,920,"2,614.29",Revenue,AVERY HOMES LEEDS
Adult Social Care,Adlt u65 Learning Disabilities,LD Comm-Residential-Surrey Oak,Third Party Payments,Private Contractors,Miscellaneous Agency Services,20110420,921,"4,610.56",Revenue,COTTISBRAINE HOUSE
Adult Social Care,Adlt u65 Learning Disabilities,LD Supported Housing,Third Party Payments,Private Contractors,Miscellaneous Agency Services,20110420,922,"3,160.00",Revenue,CRUSOE CARE RESIDENTIAL HOME
Adult Social Care,Older People 65&Over inc OP-MH,OP East - Residential Care Ext,Third Party Payments,Private Contractors,Miscellaneous Agency Services,20110420,923,"2,233.00",Revenue,ELM LODGE
Adult Social Care,Older People 65&Over inc OP-MH,OP East - Nursing Care,Third Party Payments,Private Contractors,Miscellaneous Agency Services,20110420,924,"2,332.36",Revenue,ELMWOOD
Adult Social Care,Older People 65&Over inc OP-MH,OP East - Residential Care Ext,Third Party Payments,Private Contractors,Miscellaneous Agency Services,20110420,925,"1,812.40",Revenue,GRANGE COTTAGE LIMITED
Adult Social Care,Older People 65&Over inc OP-MH,OP West - Residential Care Ext,Third Party Payments,Private Contractors,Miscellaneous Agency Services,20110420,926,"3,612.76",Revenue,GRANGE COTTAGE LIMITED
Adult Social Care,Adult u65 Phys/Sensory Impair,PD EAST TEAM-Residential,Third Party Payments,Private Contractors,Miscellaneous Agency Services,20110420,927,"4,602.28",Revenue,GRANGE COTTAGE LIMITED
Adult Social Care,Older People 65&Over inc OP-MH,OP East - Residential Care Ext,Third Party Payments,Private Contractors,Miscellaneous Agency Services,20110420,928,"1,812.40",Revenue,GRASMERE RESIDENTIAL HOME
Adult Social Care,Adlt u65 Learning Disabilities,LD Residential Care External,Third Party Payments,Private Contractors,Miscellaneous Agency Services,20110420,929,"6,997.00",Revenue,CHHG LTD T/A GRETTON HOMES
Adult Social Care,Older People 65&Over inc OP-MH,OP Hosp - Residential Care Ext,Third Party Payments,Private Contractors,Miscellaneous Agency Services,20110420,930,"1,832.00",Revenue,LANCHASHIRE COUNTY COMM GROUP
Adult Social Care,Older People 65&Over inc OP-MH,OP Hosp - Residential Care Ext,Third Party Payments,Private Contractors,Miscellaneous Agency Services,20110420,931,"1,832.00",Revenue,LANCHASHIRE COUNTY COMM GROUP
Adult Social Care,Adult u65 Phys/Sensory Impair,PD EAST TEAM-Residential,Third Party Payments,Private Contractors,Miscellaneous Agency Services,20110420,932,"5,142.60",Revenue,HIGHVIEW CARE SERVICES LTD
Adult Social Care,Older People 65&Over inc OP-MH,OP Hosp - Nursing Care,Third Party Payments,Private Contractors,Miscellaneous Agency Services,20110420,933,"1,589.11",Revenue,HOME CLOSE
Adult Social Care,Older People 65&Over inc OP-MH,OP West - Residential Care Ext,Third Party Payments,Private Contractors,Miscellaneous Agency Services,20110420,934,"1,812.00",Revenue,KAL-TAN LTD
Adult Social Care,Older People 65&Over inc OP-MH,OP East - Nursing Care,Third Party Payments,Private Contractors,Miscellaneous Agency Services,20110420,935,"2,577.00",Revenue,SOUTHERN CROSS HEALTHCARE
Adult Social Care,Older People 65&Over inc OP-MH,OP Hosp - Residential Care Ext,Third Party Payments,Private Contractors,Miscellaneous Agency Services,20110420,936,"1,800.00",Revenue,REDACTED
Adult Social Care,Older People 65&Over inc OP-MH,OP Hosp - Residential Care Ext,Third Party Payments,Private Contractors,Miscellaneous Agency Services,20110420,937,"1,800.00",Revenue,REDACTED
Adult Social Care,Older People 65&Over inc OP-MH,OP Hosp - Residential Care Ext,Third Party Payments,Private Contractors,Miscellaneous Agency Services,20110420,938,"1,812.40",Revenue,LINDEN HOUSE
Adult Social Care,Adlt u65 Learning Disabilities,LD Residential Care External,Third Party Payments,Private Contractors,Miscellaneous Agency Services,20110426,939,"2,087.64",Revenue,LINKAGE COMMUNITY TR.LONG-STAY
Adult Social Care,Older People 65&Over inc OP-MH,OP West - Nursing Care,Third Party Payments,Private Contractors,Miscellaneous Agency Services,20110420,940,"2,457.86",Revenue,LYNWOOD NURSING HOME
Adult Social Care,Older People 65&Over inc OP-MH,OP West - Residential Care Ext,Third Party Payments,Private Contractors,Miscellaneous Agency Services,20110420,941,"1,692.00",Revenue,METHODIST HOMES FOR THE AGED
Adult Social Care,Adlt u65 Learning Disabilities,LD Residential Care External,Customer and client receipts,Charges,Bd&Acc-contrib coll by home X,20110420,942,"-1,138.40",Revenue,METROPOLITAN SUPPORT TRUST
Adult Social Care,Adlt u65 Learning Disabilities,LD Residential Care External,Third Party Payments,Private Contractors,Miscellaneous Agency Services,20110420,943,"14,971.22",Revenue,METROPOLITAN SUPPORT TRUST
Adult Social Care,Adlt u65 Learning Disabilities,LD Home Care External,Third Party Payments,Private Contractors,Miscellaneous Agency Services,20110426,944,"4,186.88",Revenue,THE REGARD PARTNERSHIP LTD
Adult Social Care,Adlt u65 Learning Disabilities,LD Home Care External,Third Party Payments,Private Contractors,Miscellaneous Agency Services,20110426,945,"4,140.00",Revenue,THE REGARD PARTNERSHIP LTD
Adult Social Care,Adlt u65 Learning Disabilities,LD Residential Care External,Third Party Payments,Private Contractors,Miscellaneous Agency Services,20110426,946,"4,160.00",Revenue,THE REGARD PARTNERSHIP LTD
Adult Social Care,Older People 65&Over inc OP-MH,OP East - Residential Care Ext,Third Party Payments,Private Contractors,Miscellaneous Agency Services,20110420,947,"1,786.40",Revenue,ROSEDALE REST HOME
Adult Social Care,Older People 65&Over inc OP-MH,OP East - Residential Care Ext,Third Party Payments,Private Contractors,Miscellaneous Agency Services,20110420,948,"1,745.80",Revenue,ROSEDALE REST HOME
Adult Social Care,Adult u65 Mental Health Needs,MH ResidentialCare Ext-Morden,Third Party Payments,Private Contractors,Miscellaneous Agency Services,20110420,949,"1,834.52",Revenue,ROSEDALE REST HOME
Adult Social Care,Older People 65&Over inc OP-MH,OP East - Residential Care Ext,Third Party Payments,Private Contractors,Miscellaneous Agency Services,20110420,950,"1,464.64",Revenue,ROSEDALE REST HOME
Adult Social Care,Older People 65&Over inc OP-MH,OP East - Residential Care Ext,Third Party Payments,Private Contractors,Miscellaneous Agency Services,20110420,951,"1,505.72",Revenue,ROSEDALE REST HOME
Adult Social Care,Older People 65&Over inc OP-MH,OP Hosp - Residential Care Ext,Third Party Payments,Private Contractors,Miscellaneous Agency Services,20110420,952,"1,799.84",Revenue,ROSEDALE REST HOME
Adult Social Care,Adlt u65 Learning Disabilities,LD Residential Care External,Third Party Payments,Private Contractors,Miscellaneous Agency Services,20110420,953,"1,863.54",Revenue,ROYAL BOROUGH OF KINGSTON
Adult Social Care,Older People 65&Over inc OP-MH,OP West - Nursing Care,Third Party Payments,Private Contractors,Miscellaneous Agency Services,20110420,954,"2,431.96",Revenue,SOUTHERN CROSS HEALTHCARE LTD
Adult Social Care,Older People 65&Over inc OP-MH,OP Hosp - Nursing Care,Third Party Payments,Private Contractors,Miscellaneous Agency Services,20110420,955,"2,593.00",Revenue,SOUTHERN CROSS HEALTHCARE LTD
Adult Social Care,Older People 65&Over inc OP-MH,OP West - Nursing Care,Third Party Payments,Private Contractors,Miscellaneous Agency Services,20110420,956,"1,944.75",Revenue,SOUTHERN CROSS HEALTHCARE LTD
Adult Social Care,Older People 65&Over inc OP-MH,OP Hosp - Nursing Care,Third Party Payments,Private Contractors,Miscellaneous Agency Services,20110420,957,"2,717.76",Revenue,SOUTHERN CROSS HEALTHCARE LTD
Adult Social Care,Adlt u65 Learning Disabilities,LD Residential Care External,Third Party Payments,Private Contractors,Miscellaneous Agency Services,20110420,958,"18,250.00",Revenue,ST LUKE'S HOSPITAL- OLD LEIGH
Adult Social Care,Adlt u65 Learning Disabilities,LD Residential Care External,Third Party Payments,Private Contractors,Miscellaneous Agency Services,20110420,959,"29,881.60",Revenue,ST LUKE'S HOSPITAL- OLD LEIGH
Adult Social Care,Older People 65&Over inc OP-MH,OP East - Residential Care Ext,Third Party Payments,Private Contractors,Miscellaneous Agency Services,20110420,960,"3,164.00",Revenue,SUNRISE SENIOR LIVING RES.HOME
Adult Social Care,Older People 65&Over inc OP-MH,OP West - Nursing Care,Third Party Payments,Private Contractors,Miscellaneous Agency Services,20110420,961,"2,998.41",Revenue,TRINITY COURT NURSING HOME
Adult Social Care,Adlt u65 Learning Disabilities,LD Home Care External,Third Party Payments,Private Contractors,Miscellaneous Agency Services,20110420,962,"20,112.00",Revenue,UNITED RESPONSE
Adult Social Care,Adlt u65 Learning Disabilities,LD Residential Care External,Customer and client receipts,Charges,Bd&Acc-contrib coll by home X,20110420,963,"-1,579.60",Revenue,UNITED RESPONSE
Adult Social Care,Adlt u65 Learning Disabilities,LD Residential Care External,Third Party Payments,Private Contractors,Miscellaneous Agency Services,20110420,964,"26,279.04",Revenue,UNITED RESPONSE
Adult Social Care,Adlt u65 Learning Disabilities,LD Residential Care External,Customer and client receipts,Charges,Bd&Acc-contrib coll by home X,20110420,965,"-2,334.44",Revenue,UNITED RESPONSE
Adult Social Care,Adlt u65 Learning Disabilities,LD Comm -Residential-Orch Hill,Third Party Payments,Private Contractors,Miscellaneous Agency Services,20110420,966,"4,359.44",Revenue,UNITED RESPONSE
Adult Social Care,Adlt u65 Learning Disabilities,LD Residential Care External,Third Party Payments,Private Contractors,Miscellaneous Agency Services,20110420,967,"21,791.48",Revenue,UNITED RESPONSE
Adult Social Care,Older People 65&Over inc OP-MH,OP Hosp - Residential Care Ext,Third Party Payments,Private Contractors,Miscellaneous Agency Services,20110420,968,"1,812.40",Revenue,WHITECLIFF RESID. CARE HOME
Adult Social Care,Older People 65&Over inc OP-MH,OP East - Residential Care Ext,Third Party Payments,Private Contractors,Miscellaneous Agency Services,20110420,969,"1,551.84",Revenue,WILLETT LODGE
Adult Social Care,Older People 65&Over inc OP-MH,OP Hosp - Nursing Care,Third Party Payments,Private Contractors,Miscellaneous Agency Services,20110420,970,"3,440.00",Revenue,WIMBLEDON GUILD
Adult Social Care,Older People 65&Over inc OP-MH,OP West - Nursing Care,Third Party Payments,Private Contractors,Miscellaneous Agency Services,20110420,971,"3,440.00",Revenue,WIMBLEDON GUILD
Adult Social Care,Older People 65&Over inc OP-MH,OP West - Nursing Care,Third Party Payments,Private Contractors,Miscellaneous Agency Services,20110420,972,"2,996.00",Revenue,WIMBLEDON GUILD
Adult Social Care,Older People 65&Over inc OP-MH,OP West - Nursing Care,Third Party Payments,Private Contractors,Miscellaneous Agency Services,20110420,973,"2,255.16",Revenue,WIMBLEDON GUILD
Adult Social Care,Older People 65&Over inc OP-MH,OP West - Nursing Care,Third Party Payments,Private Contractors,Miscellaneous Agency Services,20110420,974,"2,996.00",Revenue,WIMBLEDON GUILD
Adult Social Care,Older People 65&Over inc OP-MH,OP Hosp - Residential Care Ext,Third Party Payments,Private Contractors,Miscellaneous Agency Services,20110420,975,"2,044.56",Revenue,WIMBLEDON GUILD
Adult Social Care,Older People 65&Over inc OP-MH,OP West - Nursing Care,Third Party Payments,Private Contractors,Miscellaneous Agency Services,20110420,976,"2,864.64",Revenue,WIMBLEDON GUILD
Adult Social Care,Older People 65&Over inc OP-MH,OP West - Nursing Care,Third Party Payments,Private Contractors,Miscellaneous Agency Services,20110420,977,"3,085.60",Revenue,WIMBLEDON GUILD
Adult Social Care,Adlt u65 Learning Disabilities,LD Residential Care External,Third Party Payments,Private Contractors,Miscellaneous Agency Services,20110420,978,"5,717.76",Revenue,WINSLOW COURT
Adult Social Care,Older People 65&Over inc OP-MH,OP East - Residential Care Ext,Third Party Payments,Private Contractors,Miscellaneous Agency Services,20110420,979,"2,000.00",Revenue,WOODLANDS
Adult Social Care,Older People 65&Over inc OP-MH,OP West - Residential Care Ext,Third Party Payments,Private Contractors,Miscellaneous Agency Services,20110420,980,"2,000.00",Revenue,WOODLANDS
Adult Social Care,Older People 65&Over inc OP-MH,OP Hosp - Residential Care Ext,Third Party Payments,Private Contractors,Miscellaneous Agency Services,20110420,981,"2,200.00",Revenue,WOODLANDS
Adult Social Care,Older People 65&Over inc OP-MH,OP East - Nursing Care,Third Party Payments,Private Contractors,Miscellaneous Agency Services,20110420,982,"2,552.88",Revenue,WOODLANDS
Adult Social Care,Older People 65&Over inc OP-MH,OP West - Residential Care Ext,Third Party Payments,Private Contractors,Miscellaneous Agency Services,20110420,983,"2,044.56",Revenue,WOODLANDS
Adult Social Care,Older People 65&Over inc OP-MH,OP East - Residential Care Ext,Customer and client receipts,Charges,Bd&Acc-contrib coll by home X,20110420,984,"-1,124.16",Revenue,WOODLANDS
Adult Social Care,Older People 65&Over inc OP-MH,OP West - Nursing Care,Third Party Payments,Private Contractors,Miscellaneous Agency Services,20110420,985,"7,658.64",Revenue,WOODLANDS
Adult Social Care,Older People 65&Over inc OP-MH,OP Hosp - Residential Care Ext,Third Party Payments,Private Contractors,Miscellaneous Agency Services,20110420,986,"14,155.52",Revenue,WOODLANDS
Adult Social Care,Older People 65&Over inc OP-MH,OP West - Residential Care Ext,Third Party Payments,Private Contractors,Miscellaneous Agency Services,20110420,987,"15,553.26",Revenue,WOODLANDS
Adult Social Care,Older People 65&Over inc OP-MH,OP East - Nursing Care,Third Party Payments,Private Contractors,Miscellaneous Agency Services,20110420,988,"37,804.56",Revenue,WOODLANDS
Adult Social Care,Older People 65&Over inc OP-MH,OP East - Residential Care Ext,Third Party Payments,Private Contractors,Miscellaneous Agency Services,20110420,989,"38,533.84",Revenue,WOODLANDS
Childrens & Education Services,Other Ch's & Family Services,CL Leaving Care/Supp Lodgings,Third Party Payments,Private Contractors,Private Tenant/Landlord,20110420,990,616.00,Revenue,REDACTED
Adult Social Care,Asylum seekers,AS Child Res Care  (No Grant),Third Party Payments,Private Contractors,Private Tenant/Landlord,20110420,991,784.56,Revenue,REDACTED
Childrens & Education Services,Other Ch's & Family Services,CL Leaving Care/Supp Lodgings,Third Party Payments,Private Contractors,Supported Lodgings,20110420,992,800.00,Revenue,REDACTED
Childrens & Education Services,Other Ch's & Family Services,CL Leaving Care/Supp Lodgings,Third Party Payments,Private Contractors,Supported Lodgings,20110420,993,500.00,Revenue,REDACTED
Adult Social Care,Adlt u65 Learning Disabilities,LD Direct Payment Scheme,Third Party Payments,Private Contractors,Direct Payments,20110420,994,"1,278.00",Revenue,REDACTED
Adult Social Care,Adlt u65 Learning Disabilities,LD Direct Payment Scheme,Third Party Payments,Private Contractors,Direct Payments,20110420,995,"1,189.90",Revenue,REDACTED
Adult Social Care,Older People 65&Over inc OP-MH,OP Hosp -Direct Payment Scheme,Third Party Payments,Private Contractors,Direct Payments,20110420,996,"1,670.24",Revenue,REDACTED
Adult Social Care,Older People 65&Over inc OP-MH,OP East -Direct Payment Scheme,Third Party Payments,Private Contractors,Direct Payments,20110420,997,"1,856.20",Revenue,REDACTED
Adult Social Care,Older People 65&Over inc OP-MH,OP West -Direct Payment Scheme,Third Party Payments,Private Contractors,Direct Payments,20110420,998,"1,165.68",Revenue,REDACTED
Adult Social Care,Adult u65 Phys/Sensory Impair,PD WEST TEAM-Direct Payment,Third Party Payments,Private Contractors,Direct Payments,20110420,999,596.40,Revenue,REDACTED
Adult Social Care,Older People 65&Over inc OP-MH,OP West -Direct Payment Scheme,Third Party Payments,Private Contractors,Direct Payments,20110420,1000,695.28,Revenue,REDACTED
Adult Social Care,Adlt u65 Learning Disabilities,LD Direct Payment Scheme,Third Party Payments,Private Contractors,Direct Payments,20110420,1001,"1,241.72",Revenue,REDACTED
Adult Social Care,Adlt u65 Learning Disabilities,LD Direct Payment Scheme,Third Party Payments,Private Contractors,Direct Payments,20110420,1002,668.72,Revenue,REDACTED
Adult Social Care,Adlt u65 Learning Disabilities,LD Direct Payment Scheme,Third Party Payments,Private Contractors,Direct Payments,20110420,1003,593.88,Revenue,REDACTED
Adult Social Care,Adult u65 Phys/Sensory Impair,PD EAST TEAM-Direct Payment,Third Party Payments,Private Contractors,Direct Payments,20110420,1004,"1,818.64",Revenue,REDACTED
Adult Social Care,Older People 65&Over inc OP-MH,OP Hosp -Direct Payment Scheme,Third Party Payments,Private Contractors,Direct Payments,20110420,1005,811.04,Revenue,REDACTED
Adult Social Care,Adult u65 Phys/Sensory Impair,PD WEST TEAM-Direct Payment,Third Party Payments,Private Contractors,Direct Payments,20110420,1006,792.00,Revenue,REDACTED
Adult Social Care,Older People 65&Over inc OP-MH,OP West -Direct Payment Scheme,Third Party Payments,Private Contractors,Direct Payments,20110420,1007,670.96,Revenue,REDACTED
Adult Social Care,Older People 65&Over inc OP-MH,OP West -Direct Payment Scheme,Third Party Payments,Private Contractors,Direct Payments,20110420,1008,"1,566.56",Revenue,REDACTED
Adult Social Care,Older People 65&Over inc OP-MH,OP East -Direct Payment Scheme,Third Party Payments,Private Contractors,Direct Payments,20110420,1009,913.76,Revenue,REDACTED
Adult Social Care,Older People 65&Over inc OP-MH,OP East -Direct Payment Scheme,Third Party Payments,Private Contractors,Direct Payments,20110420,1010,"1,300.00",Revenue,REDACTED
Adult Social Care,Adult u65 Phys/Sensory Impair,PD EAST TEAM-Direct Payment,Third Party Payments,Private Contractors,Direct Payments,20110420,1011,915.88,Revenue,REDACTED
Adult Social Care,Older People 65&Over inc OP-MH,OP East -Direct Payment Scheme,Third Party Payments,Private Contractors,Direct Payments,20110420,1012,"3,386.68",Revenue,REDACTED
Adult Social Care,Older People 65&Over inc OP-MH,OP East -Direct Payment Scheme,Third Party Payments,Private Contractors,Direct Payments,20110420,1013,"2,103.80",Revenue,REDACTED
Adult Social Care,Older People 65&Over inc OP-MH,OP West -Direct Payment Scheme,Third Party Payments,Private Contractors,Direct Payments,20110420,1014,511.20,Revenue,REDACTED
Adult Social Care,Adult u65 Phys/Sensory Impair,PD EAST TEAM-Direct Payment,Third Party Payments,Private Contractors,Direct Payments,20110420,1015,"1,319.20",Revenue,REDACTED
Adult Social Care,Adult u65 Phys/Sensory Impair,PD EAST TEAM-Direct Payment,Third Party Payments,Private Contractors,Direct Payments,20110420,1016,532.48,Revenue,REDACTED
Adult Social Care,Adult u65 Mental Health Needs,MH Direct Payment Scheme- West,Third Party Payments,Private Contractors,Direct Payments,20110420,1017,718.48,Revenue,REDACTED
Adult Social Care,Adult u65 Phys/Sensory Impair,PD WEST TEAM-Direct Payment,Third Party Payments,Private Contractors,Direct Payments,20110420,1018,"1,323.72",Revenue,REDACTED
Adult Social Care,Adlt u65 Learning Disabilities,LD Direct Payment Scheme,Third Party Payments,Private Contractors,Direct Payments,20110420,1019,"1,254.60",Revenue,REDACTED
Adult Social Care,Older People 65&Over inc OP-MH,OP West -Direct Payment Scheme,Third Party Payments,Private Contractors,Direct Payments,20110420,1020,502.56,Revenue,REDACTED
Adult Social Care,Older People 65&Over inc OP-MH,OP West -Direct Payment Scheme,Third Party Payments,Private Contractors,Direct Payments,20110420,1021,"1,128.88",Revenue,REDACTED
Adult Social Care,Adult u65 Phys/Sensory Impair,PD EAST TEAM-Direct Payment,Third Party Payments,Private Contractors,Direct Payments,20110420,1022,"2,283.00",Revenue,REDACTED
Adult Social Care,Adult u65 Mental Health Needs,MH Direct Payment Scheme- West,Third Party Payments,Private Contractors,Direct Payments,20110420,1023,838.00,Revenue,REDACTED
Adult Social Care,Adult u65 Phys/Sensory Impair,PD WEST TEAM-Direct Payment,Third Party Payments,Private Contractors,Direct Payments,20110420,1024,"1,456.40",Revenue,REDACTED
Adult Social Care,Adult u65 Phys/Sensory Impair,PD EAST TEAM-Direct Payment,Third Party Payments,Private Contractors,Direct Payments,20110420,1025,745.48,Revenue,REDACTED
Adult Social Care,Adult u65 Phys/Sensory Impair,PD WEST TEAM-Direct Payment,Third Party Payments,Private Contractors,Direct Payments,20110420,1026,711.96,Revenue,REDACTED
Adult Social Care,Older People 65&Over inc OP-MH,OP East -Direct Payment Scheme,Third Party Payments,Private Contractors,Direct Payments,20110420,1027,"1,435.44",Revenue,REDACTED
Adult Social Care,Adult u65 Phys/Sensory Impair,PD WEST TEAM-Direct Payment,Third Party Payments,Private Contractors,Direct Payments,20110420,1028,565.36,Revenue,REDACTED
Adult Social Care,Adult u65 Phys/Sensory Impair,PD WEST TEAM-Direct Payment,Third Party Payments,Private Contractors,Direct Payments,20110420,1029,"1,244.04",Revenue,REDACTED
Adult Social Care,Older People 65&Over inc OP-MH,OP East -Direct Payment Scheme,Third Party Payments,Private Contractors,Direct Payments,20110420,1030,"2,384.16",Revenue,REDACTED
Adult Social Care,Adult u65 Phys/Sensory Impair,PD EAST TEAM-Direct Payment,Third Party Payments,Private Contractors,Direct Payments,20110420,1031,"2,308.11",Revenue,REDACTED
Adult Social Care,Adlt u65 Learning Disabilities,LD Direct Payment Scheme,Third Party Payments,Private Contractors,Direct Payments,20110420,1032,891.44,Revenue,REDACTED
